Directorate,Department,Expenditure Type,Ref.Doc.1,Vendor Name,Expenditure Amount (exc VAT),Payment Date
Assurance,Assurance,Postage,0060083055,ROYAL MAIL GROUP LIMITED,306.90,14/07/2017
Assurance,Assurance,General Office Expenses,0040002328,OFFICE DEPOT UK LTD,0.99,17/07/2017
Assurance,Assurance,General Office Expenses,0040002345,OFFICE DEPOT UK LTD,2.60,17/07/2017
Assurance,Assurance,Printing-Contract,0040002346,OFFICE DEPOT UK LTD,0.26,17/07/2017
Assurance,Assurance,General Office Expenses,0040002352,OFFICE DEPOT UK LTD,2.04,17/07/2017
Assurance,Assurance,Equipment and Materials Purcha,0060081266,LONDON SITE SERVICES LTD,"13,295.25",07/07/2017
Assurance,Assurance,Professional Services,0060081276,PAKFLATT (UK) LIMITED,859.00,06/07/2017
Assurance,Assurance,Printing-Contract,0060082408,ELECTORAL REFORM SERVICES,"45,423.04",06/07/2017
Assurance,Assurance,Printing-Contract,0060082451,ELECTORAL REFORM SERVICES,"62,266.47",04/07/2017
Assurance,Assurance,Furniture-Purchase-Repair,0060082658,EASYCRATE LTD,427.50,06/07/2017
Assurance,Assurance,Equipment and Materials Purcha,0060082824,CITY FURNITURE HIRE LIMITED,785.25,10/07/2017
Assurance,Assurance,Equipment and Materials Purcha,0060082835,CITY FURNITURE HIRE LIMITED,502.00,10/07/2017
Assurance,Assurance,Equipment and Materials Purcha,0060082844,CITY FURNITURE HIRE LIMITED,598.82,10/07/2017
Assurance,Assurance,Rents,0060083026,PORTAKABIN LTD,"1,860.00",13/07/2017
Assurance,Assurance,Printing-Contract,0060083044,ELECTORAL REFORM SERVICES,"12,580.78",13/07/2017
Assurance,Assurance,Postage,0060083106,ROYAL MAIL GROUP LIMITED,51.80,13/07/2017
Assurance,Assurance,Rents,0060083181,PORTAKABIN LTD,"17,550.00",21/07/2017
Assurance,Assurance,Printing-Contract,0060083567,ELECTORAL REFORM SERVICES,"7,074.87",27/07/2017
Assurance,Assurance,Other Services,0060083574,SHRED-IT,321.18,20/07/2017
Assurance,Assurance,Other Services,0080011344,SECUR TEAM LIM,227.70,13/07/2017
Assurance,Assurance,Fees and Charges,0080011447,CABINET OFFICE,500.00,13/07/2017
Assurance,Assurance,Fees and Charges,0080011448,CABINET OFFICE,"1,000.00",13/07/2017
Assurance,Assurance,Fees and Charges,0080011449,CABINET OFFICE,"1,500.00",13/07/2017
Assurance,Assurance,Professional Services,0080011759,04-5 GRAYS INN SQUARE,"2,000.00",31/07/2017
Assurance,Assurance,Advertising,0060083002,LONDON BOROUGH OF LAMBETH,"3,500.00",26/07/2017
Assurance,Assurance,Rents,0060083645,THE HYDE EF ACADEMY,150.00,21/07/2017
Assurance,Assurance,Rents,0060083649,ETZ CHAIM JEWISH PRIMARY SCHOOL,"1,218.75",21/07/2017
Assurance,Assurance,Rents,0060083566,BARNET MULTICULTURAL COMMUNITY CENTRE,500.00,20/07/2017
Assurance,Assurance,Rents,0060083679,HADLEY DISABLED SPORTS ASSOCIATION,300.00,28/07/2017
Assurance,Assurance,Rents,0060082006,EDGWARE PCC-ST PETER'S,995.00,13/07/2017
Assurance,Assurance,Rents,0060083603,TRINITY CHURCH MILL HILL,624.30,20/07/2017
Assurance,Assurance,Rents,0080011452,TOTTERIDGE TENNIS CLUB,670.00,18/07/2017
Assurance,Assurance,Rents,0080011498,NEW BEVAN BAPTIST CHURCH,300.00,18/07/2017
Assurance,Assurance,Rents,0080011500,ST EDWARD THE CONFESSOR CHURCH,700.00,18/07/2017
Assurance,Assurance,Equipment and Materials Purcha,0060061351,CITY FURNITURE HIRE LIMITED,(45.00),10/07/2017
Assurance,Assurance,Training,0060083327,LLG LEGAL TRAINING,215.00,17/07/2017
Assurance,Assurance,Vehicle Running Costs,0080011159,LASER,63.09,04/07/2017
Assurance,Assurance,Vehicle Running Costs,0080011163,LASER,64.55,04/07/2017
Assurance,Assurance,Other Indirect Employee Expens,0080011554,MAYOR OF BRENT'S CHARITY APPEA,24.00,18/07/2017
Assurance,Assurance,Other Indirect Employee Expens,0080011612,THE SPEAKER'S CHARITY,35.00,21/07/2017
Assurance,Assurance,Other Indirect Employee Expens,0080011626,THE SPEAKER'S CHARITY,10.00,25/07/2017
Assurance,Assurance,Subscriptions,0080011674,THE INFORMATION COMMISSIONER,35.00,28/07/2017
Assurance,Assurance,Rents,0060082750,THE HENRIETTA BARNETT SCHOOL TRUST,309.37,07/07/2017
Assurance,Assurance,Professional Services,0060080594,PRICEWATERHOUSE COOPERS,"19,567.79",04/07/2017
Assurance,Assurance,Professional Services,0060081413,PRICEWATERHOUSE COOPERS,"8,695.00",13/07/2017
Assurance,Assurance,General Office Expenses,0040002332,OFFICE DEPOT UK LTD,0.99,17/07/2017
Assurance,Assurance,Printing-Contract,0040002334,OFFICE DEPOT UK LTD,0.26,17/07/2017
Assurance,Assurance,Software Licences & Support,0060082576,INTEC FOR BUSINESS LIMITED,"6,000.00",27/07/2017
Assurance,Assurance,Equipment and Materials Purcha,0060083079,PRIME PRODUCTION LTD,39.50,17/07/2017
Assurance,Assurance,Equipment and Materials Purcha,0060083119,PRIME PRODUCTION LTD,39.50,17/07/2017
Assurance,Assurance,Equipment and Materials Purcha,0060083122,PRIME PRODUCTION LTD,39.50,17/07/2017
Assurance,Assurance,Equipment and Materials Purcha,0060083138,PRIME PRODUCTION LTD,39.50,17/07/2017
Assurance,Assurance,Postage,0060084453,ROYAL MAIL GROUP LIMITED,0.47,31/07/2017
Assurance,Assurance,Subscriptions,0060081984,COMPANIES HOUSE,4.00,19/07/2017
Central Expenses,Central Expenses,Subscriptions,0060082056,LONDON COUNCILS,"31,306.00",21/07/2017
Central Expenses,Central Expenses,Subscriptions,0060082063,LONDON COUNCILS,"120,652.00",21/07/2017
Central Expenses,Central Expenses,Other Establishments - Third P,0060082354,CITY OF LONDON,"94,147.00",03/07/2017
Central Expenses,Central Expenses,Other Local Authorities - Thir,0060083287,CITY OF LONDON,"83,918.00",19/07/2017
Central Expenses,Central Expenses,Other Local Authorities - Thir,0060083352,CITY OF LONDON,"83,918.00",18/07/2017
Commercial,Customer Support Group,Building Repairs & Maintenance,0060081737,RGE SERVICES,47.03,12/07/2017
Commercial,Customer Support Group,Building Repairs & Maintenance,0060081741,RGE SERVICES,25.65,12/07/2017
Commercial,Customer Support Group,Building Repairs & Maintenance,0060081762,RGE SERVICES,632.51,12/07/2017
Commercial,Customer Support Group,Building Repairs & Maintenance,0060081780,RGE SERVICES,167.64,12/07/2017
Commercial,Customer Support Group,Building Repairs & Maintenance,0060081824,RGE SERVICES,482.39,12/07/2017
Commercial,Customer Support Group,Building Repairs & Maintenance,0060081833,RGE SERVICES,149.63,12/07/2017
Commercial,Customer Support Group,Building Repairs & Maintenance,0060081836,RGE SERVICES,64.13,12/07/2017
Commercial,Customer Support Group,Building Repairs & Maintenance,0060081946,HERTEL (UK) LTD,119.70,06/07/2017
Commercial,Customer Support Group,Building Repairs & Maintenance,0060081950,RGE SERVICES,624.15,12/07/2017
Commercial,Customer Support Group,Building Repairs & Maintenance,0060083019,RGE SERVICES,64.13,27/07/2017
Commercial,Customer Support Group,Building Repairs & Maintenance,0060083054,RGE SERVICES,157.33,27/07/2017
Commercial,Customer Support Group,Building Repairs & Maintenance,0060083085,RGE SERVICES,47.03,27/07/2017
Commercial,Customer Support Group,Building Repairs & Maintenance,0060083847,OAKRAY LIMITED,44.00,27/07/2017
Commercial,Customer Support Group,Building Repairs & Maintenance,0060081236,S W BRUCE & CO LTD,57.00,11/07/2017
Commercial,Customer Support Group,Building Repairs & Maintenance,0060081246,S W BRUCE & CO LTD,139.02,11/07/2017
Commercial,Customer Support Group,Building Repairs & Maintenance,0060081259,S W BRUCE & CO LTD,101.44,11/07/2017
Commercial,Customer Support Group,Building Repairs & Maintenance,0060081268,S W BRUCE & CO LTD,66.19,11/07/2017
Commercial,Customer Support Group,Building Repairs & Maintenance,0060081270,S W BRUCE & CO LTD,59.18,11/07/2017
Commercial,Customer Support Group,Building Repairs & Maintenance,0060081344,S W BRUCE & CO LTD,114.00,11/07/2017
Commercial,Customer Support Group,Building Repairs & Maintenance,0060081697,RGE SERVICES,62.00,11/07/2017
Commercial,Customer Support Group,Building Repairs & Maintenance,0060081756,RGE SERVICES,115.43,12/07/2017
Commercial,Customer Support Group,Equipment and Materials Purcha,0060082014,EVAC & CHAIR INTERNATIONAL LTD,970.00,19/07/2017
Commercial,Customer Support Group,Furniture-Purchase-Repair,0060082291,SCREWFIX DIRECT LTD,4.49,14/07/2017
Commercial,Customer Support Group,Building Repairs & Maintenance,0060082299,LIFT & ENGINEERING SERVICES LTD,203.00,20/07/2017
Commercial,Customer Support Group,Building Repairs & Maintenance,0060082340,S W BRUCE & CO LTD,57.00,11/07/2017
Commercial,Customer Support Group,Furniture-Purchase-Repair,0060082364,SCREWFIX DIRECT LTD,3.17,14/07/2017
Commercial,Customer Support Group,Furniture-Purchase-Repair,0060082371,SCREWFIX DIRECT LTD,24.16,14/07/2017
Commercial,Customer Support Group,Building Repairs & Maintenance,0060082375,S W BRUCE & CO LTD,184.00,06/07/2017
Commercial,Customer Support Group,Rubbish Collection,0060082804,PEARCE RECYCLING CO. LTD,25.00,27/07/2017
Commercial,Customer Support Group,Building Repairs & Maintenance,0060082829,S W BRUCE & CO LTD,57.00,11/07/2017
Commercial,Customer Support Group,Water Services,0060082867,ANGEL SPRINGS LTD,15.50,27/07/2017
Commercial,Customer Support Group,Water Services,0060082880,ANGEL SPRINGS LTD,135.74,27/07/2017
Commercial,Customer Support Group,Building Repairs & Maintenance,0060083080,S W BRUCE & CO LTD,478.23,13/07/2017
Commercial,Customer Support Group,Building Repairs & Maintenance,0060083091,RGE SERVICES,191.49,13/07/2017
Commercial,Customer Support Group,Training,0060083384,SKILLS TRAINING CENTRE LTD,170.00,17/07/2017
Commercial,Customer Support Group,Building Repairs & Maintenance,0060083565,S W BRUCE & CO LTD,241.25,26/07/2017
Commercial,Customer Support Group,Cleaning and domestic material,0060083853,CHURCHILL CONTRACT SERVICES,107.52,28/07/2017
Commercial,Customer Support Group,Cleaning and domestic material,0060083894,CHURCHILL CONTRACT SERVICES,107.52,28/07/2017
Commercial,Customer Support Group,Cleaning and domestic material,0060083904,CHURCHILL CONTRACT SERVICES,107.52,28/07/2017
Commercial,Customer Support Group,Cleaning and domestic material,0060083924,CHURCHILL CONTRACT SERVICES,107.52,28/07/2017
Commercial,Customer Support Group,Cleaning and domestic material,0060083926,CHURCHILL CONTRACT SERVICES,107.52,28/07/2017
Commercial,Customer Support Group,Cleaning and domestic material,0060083931,CHURCHILL CONTRACT SERVICES,63.60,28/07/2017
Commercial,Customer Support Group,Cleaning and domestic material,0060083959,CHURCHILL CONTRACT SERVICES,254.00,28/07/2017
Commercial,Customer Support Group,Cleaning and domestic material,0060083961,CHURCHILL CONTRACT SERVICES,75.22,28/07/2017
Commercial,Customer Support Group,Cleaning and domestic material,0060083973,CHURCHILL CONTRACT SERVICES,107.52,28/07/2017
Commercial,Customer Support Group,Rubbish Collection,0060084027,PREMIER SHREDDING,50.00,26/07/2017
Commercial,Customer Support Group,Furniture-Purchase-Repair,0060084052,SCREWFIX DIRECT LTD,513.54,31/07/2017
Commercial,Customer Support Group,Building Repairs & Maintenance,0060084372,LIFT & ENGINEERING SERVICES LTD,44.63,31/07/2017
Commercial,Customer Support Group,Building Repairs & Maintenance,0060084377,LIFT & ENGINEERING SERVICES LTD,44.63,31/07/2017
Commercial,Customer Support Group,Building Repairs & Maintenance,0060084384,LIFT & ENGINEERING SERVICES LTD,44.63,31/07/2017
Commercial,Customer Support Group,Building Repairs & Maintenance,0060084391,LIFT & ENGINEERING SERVICES LTD,44.63,31/07/2017
Commercial,Customer Support Group,Building Repairs & Maintenance,0060084414,LIFT & ENGINEERING SERVICES LTD,44.63,31/07/2017
Commercial,Customer Support Group,Building Repairs & Maintenance,0060084428,LIFT & ENGINEERING SERVICES LTD,44.63,31/07/2017
Commercial,Customer Support Group,Building Repairs & Maintenance,0060084454,LIFT & ENGINEERING SERVICES LTD,44.63,31/07/2017
Commercial,Customer Support Group,Building Repairs & Maintenance,0060084455,LIFT & ENGINEERING SERVICES LTD,44.63,31/07/2017
Commercial,Customer Support Group,Building Repairs & Maintenance,0060084458,LIFT & ENGINEERING SERVICES LTD,44.63,31/07/2017
Commercial,Customer Support Group,Cleaning and domestic material,0060082860,HERTFORDSHIRE SUPPLIES   COUNTY CO,"2,573.95",11/07/2017
Commercial,Customer Support Group,Building Repairs & Maintenance,0060081151,OAKRAY LIMITED,162.00,12/07/2017
Commercial,Customer Support Group,Building Repairs & Maintenance,0060081309,S W BRUCE & CO LTD,57.00,11/07/2017
Commercial,Customer Support Group,Building Repairs & Maintenance,0060081410,S W BRUCE & CO LTD,128.25,11/07/2017
Commercial,Customer Support Group,Other Services,0060082792,BLUE 9 SECURITY LIMITED,"5,654.61",12/07/2017
Commercial,Customer Support Group,Building Repairs & Maintenance,0060083569,S W BRUCE & CO LTD,321.00,20/07/2017
Commercial,Customer Support Group,Cleaning and domestic material,0060083953,CHURCHILL CONTRACT SERVICES,"1,000.00",25/07/2017
Commercial,Customer Support Group,Building Repairs & Maintenance,0060084389,LIFT & ENGINEERING SERVICES LTD,44.63,31/07/2017
Commercial,Customer Support Group,Building Repairs & Maintenance,0060084420,LIFT & ENGINEERING SERVICES LTD,44.63,31/07/2017
Commercial,Customer Support Group,Building Repairs & Maintenance,0060084424,LIFT & ENGINEERING SERVICES LTD,44.63,31/07/2017
Commercial,Customer Support Group,Cleaning and domestic material,0060082855,HERTFORDSHIRE SUPPLIES   COUNTY CO,173.34,11/07/2017
Commercial,Customer Support Group,Books-CDs-Audio-Video,0010013814,SM ELECTRICAL SERVICES,725.00,11/07/2017
Commercial,Customer Support Group,Books-CDs-Audio-Video,0060082345,SM ELECTRICAL SERVICES,600.00,24/07/2017
Commercial,Customer Support Group,Building Repairs & Maintenance,0060061391,LIFT & ENGINEERING SERVICES LTD,145.00,10/07/2017
Commercial,Customer Support Group,Building Repairs & Maintenance,0060081861,HERTEL (UK) LTD,34.91,13/07/2017
Commercial,Customer Support Group,Building Repairs & Maintenance,0060084208,RGE SERVICES,362.00,27/07/2017
Commercial,Customer Support Group,Building Repairs & Maintenance,0060084405,LIFT & ENGINEERING SERVICES LTD,89.25,31/07/2017
Commercial,Customer Support Group,Building Repairs & Maintenance,0060081291,S W BRUCE & CO LTD,57.00,11/07/2017
Commercial,Customer Support Group,Building Repairs & Maintenance,0060081965,S W BRUCE & CO LTD,350.00,20/07/2017
Commercial,Customer Support Group,Building Repairs & Maintenance,0060081995,HERTEL (UK) LTD,34.91,06/07/2017
Commercial,Customer Support Group,Building Repairs & Maintenance,0060082001,S W BRUCE & CO LTD,885.50,20/07/2017
Commercial,Customer Support Group,Building Repairs & Maintenance,0060082040,HERTEL (UK) LTD,34.91,28/07/2017
Commercial,Customer Support Group,Furniture-Purchase-Repair,0060082315,SCREWFIX DIRECT LTD,24.99,03/07/2017
Commercial,Customer Support Group,Rubbish Collection,0060082729,PEARCE RECYCLING CO. LTD,25.00,27/07/2017
Commercial,Customer Support Group,Rubbish Collection,0060082775,PEARCE RECYCLING CO. LTD,25.00,27/07/2017
Commercial,Customer Support Group,Other Services,0060082803,BLUE 9 SECURITY LIMITED,"22,039.20",12/07/2017
Commercial,Customer Support Group,Water Services,0060082852,ANGEL SPRINGS LTD,356.00,27/07/2017
Commercial,Customer Support Group,Water Services,0060082870,ANGEL SPRINGS LTD,158.00,27/07/2017
Commercial,Customer Support Group,Rubbish Collection,0060082913,G.B.HOLDINGS LTD,77.40,13/07/2017
Commercial,Customer Support Group,Building Repairs & Maintenance,0060083096,RGE SERVICES,124.00,13/07/2017
Commercial,Customer Support Group,Rubbish Collection,0060083335,PEARCE RECYCLING CO. LTD,2.50,27/07/2017
Commercial,Customer Support Group,Vending Machines,0060083376,SIEMENS FINANCIAL SERVICES LTD,664.04,19/07/2017
Commercial,Customer Support Group,Vending Machines,0060083396,SIEMENS FINANCIAL SERVICES LTD,664.04,18/07/2017
Commercial,Customer Support Group,Building Repairs & Maintenance,0060083998,CHARLES WILSON ENGINEERS LTD,920.00,28/07/2017
Commercial,Customer Support Group,Building Repairs & Maintenance,0060084001,CHARLES WILSON ENGINEERS LTD,920.00,28/07/2017
Commercial,Customer Support Group,Building Repairs & Maintenance,0060084086,CHARLES WILSON ENGINEERS LTD,253.00,28/07/2017
Commercial,Customer Support Group,Building Repairs & Maintenance,0060084107,HERTEL (UK) LTD,34.91,28/07/2017
Commercial,Customer Support Group,Building Repairs & Maintenance,0060084112,HERTEL (UK) LTD,34.91,28/07/2017
Commercial,Customer Support Group,Building Repairs & Maintenance,0060084203,HERTEL (UK) LTD,34.91,27/07/2017
Commercial,Customer Support Group,Building Repairs & Maintenance,0060084214,HERTEL (UK) LTD,34.91,27/07/2017
Commercial,Customer Support Group,Building Repairs & Maintenance,0060084246,AJS LTD,813.53,28/07/2017
Commercial,Customer Support Group,Building Repairs & Maintenance,0060084259,HERTEL (UK) LTD,34.91,31/07/2017
Commercial,Customer Support Group,Building Repairs & Maintenance,0060084262,HERTEL (UK) LTD,34.91,31/07/2017
Commercial,Customer Support Group,Building Repairs & Maintenance,0060084275,HERTEL (UK) LTD,34.91,31/07/2017
Commercial,Customer Support Group,Building Repairs & Maintenance,0060084277,HERTEL (UK) LTD,34.91,31/07/2017
Commercial,Customer Support Group,Building Repairs & Maintenance,0060084278,HERTEL (UK) LTD,34.91,31/07/2017
Commercial,Customer Support Group,Building Repairs & Maintenance,0060084285,HERTEL (UK) LTD,133.00,28/07/2017
Commercial,Customer Support Group,Building Repairs & Maintenance,0060084295,HERTEL (UK) LTD,34.91,31/07/2017
Commercial,Customer Support Group,Building Repairs & Maintenance,0060084296,HERTEL (UK) LTD,34.91,31/07/2017
Commercial,Customer Support Group,Building Repairs & Maintenance,0060084299,HERTEL (UK) LTD,34.91,31/07/2017
Commercial,Customer Support Group,Building Repairs & Maintenance,0060084302,HERTEL (UK) LTD,34.91,31/07/2017
Commercial,Customer Support Group,Building Repairs & Maintenance,0060084306,HERTEL (UK) LTD,34.91,31/07/2017
Commercial,Customer Support Group,Building Repairs & Maintenance,0060084335,HERTEL (UK) LTD,34.91,31/07/2017
Commercial,Customer Support Group,Building Repairs & Maintenance,0060084358,HERTEL (UK) LTD,34.91,31/07/2017
Commercial,Customer Support Group,Cleaning and domestic material,0060082884,HERTFORDSHIRE SUPPLIES   COUNTY CO,142.50,11/07/2017
Commercial,Customer Support Group,Cleaning and domestic material,0060082903,HERTFORDSHIRE SUPPLIES   COUNTY CO,287.63,11/07/2017
Commercial,Customer Support Group,Furniture-Purchase-Repair,0060080908,UNIQUE OFFICE SOLUTIONS LTD,12.00,04/07/2017
Commercial,Customer Support Group,Building Repairs & Maintenance,0060081636,RGE SERVICES,211.26,11/07/2017
Commercial,Customer Support Group,Equipment and Materials Purcha,0060082068,EVAC & CHAIR INTERNATIONAL LTD,145.00,19/07/2017
Commercial,Customer Support Group,Equipment and Materials Purcha,0060082373,HSM (UK) LTD.,86.40,20/07/2017
Commercial,Customer Support Group,Publications,0060082516,PHONOGRAPHIC PERFORMANCE LTD,66.56,21/07/2017
Commercial,Customer Support Group,Other Services,0060082727,BLUE 9 SECURITY LIMITED,"11,210.40",12/07/2017
Commercial,Customer Support Group,Rubbish Collection,0060083331,PEARCE RECYCLING CO. LTD,36.00,27/07/2017
Commercial,Customer Support Group,Building Repairs & Maintenance,0060083812,OAKRAY LIMITED,162.00,27/07/2017
Commercial,Customer Support Group,Building Repairs & Maintenance,0060083838,OAKRAY LIMITED,139.70,27/07/2017
Commercial,Customer Support Group,Rubbish Collection,0060084137,PREMIER SHREDDING,136.00,27/07/2017
Commercial,Customer Support Group,Building Repairs & Maintenance,0060084265,HERTEL (UK) LTD,350.00,28/07/2017
Commercial,Customer Support Group,General Sales,0080011746,FINCHLEY REFORM SYNAGOGUE,300.00,28/07/2017
Commercial,Customer Support Group,Books-CDs-Audio-Video,0060082000,SM ELECTRICAL SERVICES,230.00,19/07/2017
Commercial,Customer Support Group,Equipment and Materials Purcha,0060081726,EVAC & CHAIR INTERNATIONAL LTD,145.00,19/07/2017
Commercial,Customer Support Group,Building Repairs & Maintenance,0060082049,RGE SERVICES,207.77,12/07/2017
Commercial,Customer Support Group,Building Repairs & Maintenance,0060082407,LIFT & ENGINEERING SERVICES LTD,89.25,20/07/2017
Commercial,Customer Support Group,Electricity,0060084181,KENT COUNTY COUNCIL (KCS),465.62,27/07/2017
Commercial,Customer Support Group,CSG Services Contract Payment,0060082175,CAPITA BUSINESS SERVICES LTD,"91,515.17",06/07/2017
Commercial,Customer Support Group,CSG Services Contract Payment,0060082536,CAPITA BUSINESS SERVICES LTD,"7,335.40",13/07/2017
Commercial,Customer Support Group,CSG Services Contract Payment,0060083547,CAPITA BUSINESS SERVICES LTD,"58,994.00",27/07/2017
Commercial,Customer Support Group,CSG Services Contract Payment,0060083502,CAPITA BUSINESS SERVICES LTD,"27,502.56",19/07/2017
Commercial,Customer Support Group,CSG Services Contract Payment,0060083535,CAPITA BUSINESS SERVICES LTD,"44,993.11",19/07/2017
Commercial,Customer Support Group,CSG Services Contract Payment,0060083546,CAPITA BUSINESS SERVICES LTD,"41,666.36",19/07/2017
Commercial,Customer Support Group,CSG Services Contract Payment,0060083555,CAPITA BUSINESS SERVICES LTD,"38,862.40",19/07/2017
Commercial,Customer Support Group,CSG Services Contract Payment,0060083557,CAPITA BUSINESS SERVICES LTD,"73,572.50",31/07/2017
Commercial,Customer Support Group,CSG Services Contract Payment,0060083624,CAPITA BUSINESS SERVICES LTD,"871,235.29",31/07/2017
Commercial,Customer Support Group,Software Licences & Support,0060081361,RM EDUCATION PLC,"59,625.00",11/07/2017
Commercial,Customer Support Group,Software Licences & Support,0060081434,RM EDUCATION PLC,"15,150.00",11/07/2017
Commercial,Customer Support Group,Building Repairs & Maintenance,0060078476,S W BRUCE & CO LTD,621.40,06/07/2017
Commercial,Customer Support Group,Cleaning and domestic material,0060080387,CHURCHILL CONTRACT SERVICES,294.16,14/07/2017
Commercial,Customer Support Group,Other Services,0060080657,BLUE 9 SECURITY LIMITED,840.79,04/07/2017
Commercial,Customer Support Group,Building Repairs & Maintenance,0060081289,S W BRUCE & CO LTD,181.73,11/07/2017
Commercial,Customer Support Group,Building Repairs & Maintenance,0060081317,S W BRUCE & CO LTD,238.99,11/07/2017
Commercial,Customer Support Group,Gas,0060081375,TOTAL GAS & POWER LTD,"1,192.98",18/07/2017
Commercial,Customer Support Group,Gas,0060081424,TOTAL GAS & POWER LTD,"1,067.76",18/07/2017
Commercial,Customer Support Group,Building Repairs & Maintenance,0060081518,S W BRUCE & CO LTD,148.50,11/07/2017
Commercial,Customer Support Group,Building Repairs & Maintenance,0060081632,RGE SERVICES,7.67,11/07/2017
Commercial,Customer Support Group,Building Repairs & Maintenance,0060081727,RGE SERVICES,119.71,12/07/2017
Commercial,Customer Support Group,Building Repairs & Maintenance,0060081771,RGE SERVICES,277.09,12/07/2017
Commercial,Customer Support Group,Building Repairs & Maintenance,0060081773,RGE SERVICES,76.12,12/07/2017
Commercial,Customer Support Group,Building Repairs & Maintenance,0060081809,S W BRUCE & CO LTD,123.90,11/07/2017
Commercial,Customer Support Group,Building Repairs & Maintenance,0060081839,S W BRUCE & CO LTD,57.00,11/07/2017
Commercial,Customer Support Group,Building Repairs & Maintenance,0060081840,S W BRUCE & CO LTD,66.56,11/07/2017
Commercial,Customer Support Group,Building Repairs & Maintenance,0060081866,HERTEL (UK) LTD,34.91,06/07/2017
Commercial,Customer Support Group,Building Repairs & Maintenance,0060081882,HERTEL (UK) LTD,34.91,06/07/2017
Commercial,Customer Support Group,Building Repairs & Maintenance,0060081941,RGE SERVICES,389.20,12/07/2017
Commercial,Customer Support Group,Building Repairs & Maintenance,0060081959,HERTEL (UK) LTD,34.91,06/07/2017
Commercial,Customer Support Group,Building Repairs & Maintenance,0060081964,S W BRUCE & CO LTD,122.57,11/07/2017
Commercial,Customer Support Group,Building Repairs & Maintenance,0060081971,HERTEL (UK) LTD,34.91,06/07/2017
Commercial,Customer Support Group,Building Repairs & Maintenance,0060081974,HERTEL (UK) LTD,34.91,06/07/2017
Commercial,Customer Support Group,Building Repairs & Maintenance,0060081978,HERTEL (UK) LTD,34.91,06/07/2017
Commercial,Customer Support Group,Building Repairs & Maintenance,0060081985,HERTEL (UK) LTD,34.91,06/07/2017
Commercial,Customer Support Group,Building Repairs & Maintenance,0060082041,HERTEL (UK) LTD,34.91,06/07/2017
Commercial,Customer Support Group,Building Repairs & Maintenance,0060082412,LIFT & ENGINEERING SERVICES LTD,89.25,21/07/2017
Commercial,Customer Support Group,Building Repairs & Maintenance,0060082413,LIFT & ENGINEERING SERVICES LTD,89.25,20/07/2017
Commercial,Customer Support Group,Building Repairs & Maintenance,0060082421,LIFT & ENGINEERING SERVICES LTD,89.25,20/07/2017
Commercial,Customer Support Group,Building Repairs & Maintenance,0060082466,LIFT & ENGINEERING SERVICES LTD,66.94,21/07/2017
Commercial,Customer Support Group,Building Repairs & Maintenance,0060082846,LIFT & ENGINEERING SERVICES LTD,89.25,20/07/2017
Commercial,Customer Support Group,Other Services,0060082853,BLUE 9 SECURITY LIMITED,451.54,13/07/2017
Commercial,Customer Support Group,Building Repairs & Maintenance,0060083074,RGE SERVICES,115.43,27/07/2017
Commercial,Customer Support Group,Building Repairs & Maintenance,0060083098,RGE SERVICES,166.73,27/07/2017
Commercial,Customer Support Group,Building Repairs & Maintenance,0060083102,RGE SERVICES,94.06,27/07/2017
Commercial,Customer Support Group,Building Repairs & Maintenance,0060083272,HERTEL (UK) LTD,34.91,19/07/2017
Commercial,Customer Support Group,Building Repairs & Maintenance,0060083273,HERTEL (UK) LTD,34.91,19/07/2017
Commercial,Customer Support Group,Building Repairs & Maintenance,0060083282,HERTEL (UK) LTD,34.91,19/07/2017
Commercial,Customer Support Group,Building Repairs & Maintenance,0060083284,HERTEL (UK) LTD,34.91,19/07/2017
Commercial,Customer Support Group,Building Repairs & Maintenance,0060083292,HERTEL (UK) LTD,34.91,19/07/2017
Commercial,Customer Support Group,Building Repairs & Maintenance,0060083306,HERTEL (UK) LTD,34.91,19/07/2017
Commercial,Customer Support Group,Building Repairs & Maintenance,0060083322,HERTEL (UK) LTD,34.91,18/07/2017
Commercial,Customer Support Group,Building Repairs & Maintenance,0060083347,HERTEL (UK) LTD,34.91,18/07/2017
Commercial,Customer Support Group,Cleaning and domestic material,0060083367,CHURCHILL CONTRACT SERVICES,658.45,28/07/2017
Commercial,Customer Support Group,Building Repairs & Maintenance,0060083379,HERTEL (UK) LTD,34.91,18/07/2017
Commercial,Customer Support Group,Building Repairs & Maintenance,0060083388,HERTEL (UK) LTD,34.91,18/07/2017
Commercial,Customer Support Group,Building Repairs & Maintenance,0060083391,HERTEL (UK) LTD,34.91,18/07/2017
Commercial,Customer Support Group,Other Services,0060083412,BLUE 9 SECURITY LIMITED,67.15,19/07/2017
Commercial,Customer Support Group,Other Services,0060083477,BLUE 9 SECURITY LIMITED,13.43,20/07/2017
Commercial,Customer Support Group,Other Services,0060083479,BLUE 9 SECURITY LIMITED,402.90,20/07/2017
Commercial,Customer Support Group,Other Services,0060083486,BLUE 9 SECURITY LIMITED,201.45,19/07/2017
Commercial,Customer Support Group,Building Repairs & Maintenance,0060083585,S W BRUCE & CO LTD,43.72,26/07/2017
Commercial,Customer Support Group,Building Repairs & Maintenance,0060083601,S W BRUCE & CO LTD,318.76,25/07/2017
Commercial,Customer Support Group,Building Repairs & Maintenance,0060083775,OAKRAY LIMITED,112.00,27/07/2017
Commercial,Customer Support Group,Building Repairs & Maintenance,0060083823,OAKRAY LIMITED,162.00,27/07/2017
Commercial,Customer Support Group,Building Repairs & Maintenance,0060084113,HERTEL (UK) LTD,34.91,28/07/2017
Commercial,Customer Support Group,Building Repairs & Maintenance,0060084145,HERTEL (UK) LTD,34.91,28/07/2017
Commercial,Customer Support Group,Building Repairs & Maintenance,0060084146,RGE SERVICES,197.23,27/07/2017
Commercial,Customer Support Group,Building Repairs & Maintenance,0060084163,HERTEL (UK) LTD,34.91,27/07/2017
Commercial,Customer Support Group,Building Repairs & Maintenance,0060084177,HERTEL (UK) LTD,34.91,27/07/2017
Commercial,Customer Support Group,Building Repairs & Maintenance,0060084194,HERTEL (UK) LTD,34.91,27/07/2017
Commercial,Customer Support Group,Building Repairs & Maintenance,0060084201,HERTEL (UK) LTD,34.91,27/07/2017
Commercial,Customer Support Group,Building Repairs & Maintenance,0060084248,HERTEL (UK) LTD,157.65,28/07/2017
Commercial,Customer Support Group,Building Repairs & Maintenance,0060084283,HERTEL (UK) LTD,386.00,28/07/2017
Commercial,Customer Support Group,Building Repairs & Maintenance,0060084284,AJS LTD,7.84,28/07/2017
Commercial,Customer Support Group,Building Repairs & Maintenance,0060084304,HERTEL (UK) LTD,60.30,28/07/2017
Commercial,Customer Support Group,Building Repairs & Maintenance,0060084326,HERTEL (UK) LTD,250.00,28/07/2017
Commercial,Customer Support Group,Building Repairs & Maintenance,0060084328,HERTEL (UK) LTD,117.00,28/07/2017
Commercial,Customer Support Group,Building Repairs & Maintenance,0060084390,LIFT & ENGINEERING SERVICES LTD,66.94,31/07/2017
Commercial,Customer Support Group,Building Repairs & Maintenance,0060084404,LIFT & ENGINEERING SERVICES LTD,203.00,31/07/2017
Commercial,Customer Support Group,Building Repairs & Maintenance,0060084410,LIFT & ENGINEERING SERVICES LTD,133.88,31/07/2017
Commercial,Customer Support Group,Building Repairs & Maintenance,0060084421,LIFT & ENGINEERING SERVICES LTD,174.00,31/07/2017
Commercial,Customer Support Group,Electricity,0060081421,KENT COUNTY COUNCIL (KCS),107.02,04/07/2017
Commercial,Customer Support Group,Electricity,0060082016,KENT COUNTY COUNCIL (KCS),872.71,21/07/2017
Commercial,Customer Support Group,Electricity,0060082024,KENT COUNTY COUNCIL (KCS),555.05,06/07/2017
Commercial,Customer Support Group,Consultants Fees,0060082303,VALUATION OFFICE AGENCY,"1,799.60",03/07/2017
Commercial,Customer Support Group,Consultants Fees,0060082366,VALUATION OFFICE AGENCY,500.00,03/07/2017
Commercial,Customer Support Group,Consultants Fees,0060083944,VALUATION OFFICE AGENCY,"2,500.00",25/07/2017
Commercial,Customer Support Group,Electricity,0060081495,BRITISH GAS BUSINESS(ELEC),73.84,12/07/2017
Commercial,Customer Support Group,Water Services,0060083291,AFFINITY WATER LIMITED,"1,430.66",17/07/2017
Commercial,Customer Support Group,Ttl IT & Comms,0060083179,TELEFONICA UK LTD,"1,245.18",14/07/2017
Commercial,Customer Support Group,Ttl IT & Comms,0060083180,TELEFONICA UK LTD,9.67,14/07/2017
Commercial,Customer Support Group,Ttl IT & Comms,0060083246,TELEFONICA UK LTD,10.00,14/07/2017
Commercial,Customer Support Group,Ttl IT & Comms,0060083249,TELEFONICA UK LTD,5.87,14/07/2017
Commercial,Customer Support Group,Ttl IT & Comms,0060083260,TELEFONICA UK LTD,10.00,20/07/2017
Commercial,Customer Support Group,Professional Services,0060075587,EQUITA LTD HIGH COURT ENFORCEMENT,480.00,28/07/2017
Commercial,Customer Support Group,Professional Services,0060075613,EQUITA LTD HIGH COURT ENFORCEMENT,600.00,28/07/2017
Commercial,Customer Support Group,Postage,0060080899,ROYAL MAIL GROUP LIMITED,"5,498.69",07/07/2017
Commercial,Customer Support Group,Postage,0060082942,ROYAL MAIL GROUP LIMITED,"4,331.89",12/07/2017
Commercial,Customer Support Group,Postage,0060082952,ROYAL MAIL GROUP LIMITED,131.11,12/07/2017
Commercial,Customer Support Group,Postage,0060082957,ROYAL MAIL GROUP LIMITED,"4,047.44",12/07/2017
Commercial,Customer Support Group,Postage,0060083006,ROYAL MAIL GROUP LIMITED,"4,546.25",12/07/2017
Commercial,Customer Support Group,Postage,0060083747,TABBERS,109.90,28/07/2017
Commercial,Customer Support Group,Water Services,0060082887,ANGEL SPRINGS LTD,188.00,27/07/2017
Commercial,Customer Support Group,Clothing - Uniforms,0060083984,PANORAMIC PROMOTIONS LIMITED,230.00,26/07/2017
Commercial,Customer Support Group,CSG Services Contract Payment,0060082498,CAPITA BUSINESS SERVICES LTD,"12,252.06",11/07/2017
Commercial,Customer Support Group,CSG Services Contract Payment,0060082574,CAPITA BUSINESS SERVICES LTD,"74,299.00",11/07/2017
Commercial,Customer Support Group,CSG Services Contract Payment,0060083524,CAPITA BUSINESS SERVICES LTD,"3,787.85",19/07/2017
Commercial,Customer Support Group,CSG Services Contract Payment,0060083525,CAPITA BUSINESS SERVICES LTD,"4,210.25",19/07/2017
Commercial,HRA,Consultants Fees,0060081739,PRIORITY ESTATES PROJECT LTD,"2,479.70",13/07/2017
Commercial,HRA,Consultants Fees,0060083692,PRIORITY ESTATES PROJECT LTD,"3,073.40",21/07/2017
Commercial,HRA,Consultants Fees,0060083855,PRIORITY ESTATES PROJECT LTD,"2,165.35",25/07/2017
Commercial,HRA,Venue Hire,0010013820,ROYAL AIR FORCE MUSEUM,"5,800.00",13/07/2017
Commercial,HRA,Other Services,0060080684,S W BRUCE & CO LTD,"2,133.25",05/07/2017
Commercial,HRA,Water Services,0010013839,THAMES WATER UTILITIES,"292,709.29",26/07/2017
Commercial,HRA,Water Services,0060081850,AFFINITY WATER LIMITED,"739,920.08",04/07/2017
Commercial,HRA,Water Services,0060081879,AFFINITY WATER LIMITED,"2,503.66",04/07/2017
Commercial,HRA,Water Services,0060081905,AFFINITY WATER LIMITED,109.30,04/07/2017
Commercial,HRA,Water Services,0060081920,AFFINITY WATER LIMITED,239.09,04/07/2017
Commercial,HRA,Consultants Fees,0060083962,THE BARNETGROUP LIMITED,"2,131.50",25/07/2017
Commercial,HRA,Consultants Fees,0060079867,MURPHY SURVEYS LIMITED,"32,225.00",21/07/2017
Commercial,Parking & Infrastructure,Equipment and Materials Purcha,0060081287,GREENHAM TRADING LIMITED,568.10,11/07/2017
Commercial,Parking & Infrastructure,Equipment and Materials Purcha,0060082054,LAFARGE TARMAC TRADING LIMITED,111.26,06/07/2017
Commercial,Parking & Infrastructure,Equipment and Materials Purcha,0060082064,LAFARGE TARMAC TRADING LIMITED,97.60,06/07/2017
Commercial,Parking & Infrastructure,Equipment and Materials Purcha,0060082734,LAFARGE TARMAC TRADING LIMITED,101.50,19/07/2017
Commercial,Parking & Infrastructure,Equipment and Materials Purcha,0060082745,LAFARGE TARMAC TRADING LIMITED,107.36,19/07/2017
Commercial,Parking & Infrastructure,Equipment and Materials Purcha,0060082795,LAFARGE TARMAC TRADING LIMITED,113.22,14/07/2017
Commercial,Parking & Infrastructure,Equipment and Materials Purcha,0060083185,LAFARGE TARMAC TRADING LIMITED,119.07,27/07/2017
Commercial,Parking & Infrastructure,Equipment and Materials Purcha,0060084128,INSTARMAC GROUP PLC,"2,337.92",28/07/2017
Commercial,Parking & Infrastructure,Equipment and Materials Purcha,0060084152,W. FAYERS & SONS,730.80,28/07/2017
Commercial,Parking & Infrastructure,Equipment and Materials Purcha,0060084186,W. FAYERS & SONS,855.68,28/07/2017
Commercial,Parking & Infrastructure,Equipment and Materials Purcha,0060081088,RENNICK UK LTD,228.12,11/07/2017
Commercial,Parking & Infrastructure,Equipment and Materials Purcha,0060081541,RENNICK UK LTD,416.10,13/07/2017
Commercial,Parking & Infrastructure,Equipment and Materials Purcha,0060083550,RENNICK UK LTD,301.10,19/07/2017
Commercial,Parking & Infrastructure,Equipment and Materials Purcha,0060083995,WM SMITH & SONS LIMITED,567.68,26/07/2017
Commercial,Parking & Infrastructure,Equipment and Materials Purcha,0060084185,WM SMITH & SONS LIMITED,102.98,27/07/2017
Commercial,Parking & Infrastructure,Equipment and Materials Purcha,0060083213,KLOECKNER METALS UK,81.00,14/07/2017
Commercial,Parking & Infrastructure,Equipment and Materials Purcha,0060083425,KLOECKNER METALS UK,87.50,19/07/2017
Commercial,Parking & Infrastructure,Other Services,0060081508,PARKEON LIMITED,810.00,13/07/2017
Commercial,Parking & Infrastructure,Other Services,0060081540,PARKEON LIMITED,"2,190.80",24/07/2017
Commercial,Parking & Infrastructure,Software Licences & Support,0060083771,NSL LTD,"8,849.80",28/07/2017
Commercial,Parking & Infrastructure,Software Licences & Support,0060083845,NSL LTD,"35,570.76",28/07/2017
Commercial,Parking & Infrastructure,Other Services,0060078330,LONDON COUNCILS,"43,078.77",03/07/2017
Commercial,Parking & Infrastructure,Other Services,0060080744,LONDON COUNCILS,"29,016.00",14/07/2017
Commercial,Parking & Infrastructure,Other Services,0060082881,LONDON COUNCILS,"13,544.00",14/07/2017
Commercial,Parking & Infrastructure,Electricity,0060082825,NETWORK RAIL ACCOUNTS RECEIVABLE,139.15,10/07/2017
Commercial,Regional Enterprise,Grant Payments,0080010930,SCOOTER STORE,"2,718.00",18/07/2017
Commercial,Regional Enterprise,Grant Payments,0080011244,STANNAH STAIRLIFTS LTD,"4,668.00",05/07/2017
Commercial,Regional Enterprise,Grant Payments,0080011257,DP BUILDERS DISABLED ADAPTATIONS,"5,818.00",13/07/2017
Commercial,Regional Enterprise,Grant Payments,0080011316,DP BUILDERS DISABLED ADAPTATIONS,"14,389.00",13/07/2017
Commercial,Regional Enterprise,Grant Payments,0080011317,SOUTH HERTFORDSHIRE,"9,320.00",13/07/2017
Commercial,Regional Enterprise,Grant Payments,0080011318,ARTHUR J. FERRYMAN ASSOCIATES,"1,118.40",13/07/2017
Commercial,Regional Enterprise,Grant Payments,0080011339,AMWELL CONSTRUCTION LTD,"5,784.00",11/07/2017
Commercial,Regional Enterprise,Grant Payments,0080011409,AMWELL CONSTRUCTION LTD,"6,515.00",12/07/2017
Commercial,Regional Enterprise,Grant Payments,0080011413,AMWELL CONSTRUCTION LTD,"4,533.97",12/07/2017
Commercial,Regional Enterprise,Grant Payments,0080011414,SOUTH HERTFORDSHIRE,"4,751.16",13/07/2017
Commercial,Regional Enterprise,Grant Payments,0080011415,LINK DESIGN,"10,272.00",13/07/2017
Commercial,Regional Enterprise,Grant Payments,0080011420,ARTHUR J. FERRYMAN ASSOCIATES,894.00,13/07/2017
Commercial,Regional Enterprise,Grant Payments,0080011422,DOLPHIN MOBILITY LTD.,"2,900.00",13/07/2017
Commercial,Regional Enterprise,Grant Payments,0080011436,H D PROPERTY SERVICES LTD,"5,250.00",13/07/2017
Commercial,Regional Enterprise,Grant Payments,0080011467,DP BUILDERS DISABLED ADAPTATIONS,"3,970.00",20/07/2017
Commercial,Regional Enterprise,Grant Payments,0080011468,SOUTH HERTFORDSHIRE,"4,443.00",14/07/2017
Commercial,Regional Enterprise,Grant Payments,0080011472,STANNAH STAIRLIFTS LTD,"3,337.95",14/07/2017
Commercial,Regional Enterprise,Grant Payments,0080011489,STANNAH STAIRLIFTS LTD,"10,400.00",18/07/2017
Commercial,Regional Enterprise,Grant Payments,0080011505,THE HOPPS PARTNERSHIP,"1,020.00",18/07/2017
Commercial,Regional Enterprise,Grant Payments,0080011519,TAYLOR DOLMAN LTD,"16,075.00",19/07/2017
Commercial,Regional Enterprise,Grant Payments,0080011551,ARTHUR J. FERRYMAN ASSOCIATES,480.00,20/07/2017
Commercial,Regional Enterprise,Grant Payments,0080011556,ARTHUR J. FERRYMAN ASSOCIATES,300.00,20/07/2017
Commercial,Regional Enterprise,Grant Payments,0080011573,DP BUILDERS DISABLED ADAPTATIONS,"5,632.00",27/07/2017
Commercial,Regional Enterprise,Grant Payments,0080011574,AAL LTD,"1,750.00",21/07/2017
Commercial,Regional Enterprise,Grant Payments,0080011661,ADROIT BROTHERS,"2,000.00",26/07/2017
Commercial,Regional Enterprise,Grant Payments,0080011665,AMWELL CONSTRUCTION LTD,"6,131.00",26/07/2017
Commercial,Regional Enterprise,Grant Payments,0080011668,STANNAH STAIRLIFTS LTD,"4,606.00",26/07/2017
Commercial,Regional Enterprise,Grant Payments,0080011706,H D PROPERTY SERVICES LTD,"3,360.00",28/07/2017
Commercial,Regional Enterprise,Grant Payments,0080011712,H D PROPERTY SERVICES LTD,872.55,28/07/2017
Commercial,Regional Enterprise,Grant Payments,0080011681,H D PROPERTY SERVICES LTD,"3,555.30",27/07/2017
Commercial,Regional Enterprise,Capital Construction and Works,0060081888,ROMFORD INSULATIONS LTD.,"6,250.00",18/07/2017
Commercial,Regional Enterprise,Other Services,0060082423,CONWAY AECOM LTD,"21,322.76",04/07/2017
Commercial,Regional Enterprise,Other Services,0060083598,CONWAY AECOM LTD,"30,902.91",20/07/2017
Commercial,Regional Enterprise,Other Services,0060082112,CONWAY AECOM LTD,"3,031.18",20/07/2017
Commercial,Regional Enterprise,Other Services,0060082115,CONWAY AECOM LTD,336.80,20/07/2017
Commercial,Regional Enterprise,Other Services,0060082121,CONWAY AECOM LTD,"3,140.81",20/07/2017
Commercial,Regional Enterprise,Other Services,0060082125,CONWAY AECOM LTD,673.60,20/07/2017
Commercial,Regional Enterprise,Other Services,0060082129,CONWAY AECOM LTD,"1,233.61",20/07/2017
Commercial,Regional Enterprise,Other Services,0060082133,CONWAY AECOM LTD,"1,907.20",20/07/2017
Commercial,Regional Enterprise,Other Services,0060082145,CONWAY AECOM LTD,673.60,20/07/2017
Commercial,Regional Enterprise,Other Services,0060082148,CONWAY AECOM LTD,"1,010.39",20/07/2017
Commercial,Regional Enterprise,Other Services,0060082149,CONWAY AECOM LTD,953.60,20/07/2017
Commercial,Regional Enterprise,Other Services,0060082171,CONWAY AECOM LTD,673.60,20/07/2017
Commercial,Regional Enterprise,Other Services,0060082176,CONWAY AECOM LTD,"1,347.19",20/07/2017
Commercial,Regional Enterprise,Other Services,0060082178,CONWAY AECOM LTD,336.80,20/07/2017
Commercial,Regional Enterprise,Other Services,0060082182,CONWAY AECOM LTD,953.60,20/07/2017
Commercial,Regional Enterprise,Other Services,0060082195,CONWAY AECOM LTD,673.60,20/07/2017
Commercial,Regional Enterprise,Other Services,0060082197,CONWAY AECOM LTD,"1,683.99",20/07/2017
Commercial,Regional Enterprise,Other Services,0060082199,CONWAY AECOM LTD,673.60,20/07/2017
Commercial,Regional Enterprise,Other Services,0060082203,CONWAY AECOM LTD,"2,020.79",20/07/2017
Commercial,Regional Enterprise,Other Services,0060082209,CONWAY AECOM LTD,673.60,20/07/2017
Commercial,Regional Enterprise,Other Services,0060082214,CONWAY AECOM LTD,"1,010.39",20/07/2017
Commercial,Regional Enterprise,Other Services,0060082219,CONWAY AECOM LTD,953.60,20/07/2017
Commercial,Regional Enterprise,Other Services,0060082220,CONWAY AECOM LTD,"5,608.02",20/07/2017
Commercial,Regional Enterprise,Other Services,0060082221,CONWAY AECOM LTD,"2,020.79",20/07/2017
Commercial,Regional Enterprise,Other Services,0060082228,CONWAY AECOM LTD,"1,233.61",20/07/2017
Commercial,Regional Enterprise,Other Services,0060082229,CONWAY AECOM LTD,"1,233.61",20/07/2017
Commercial,Regional Enterprise,Other Services,0060082231,CONWAY AECOM LTD,"1,683.99",20/07/2017
Commercial,Regional Enterprise,Other Services,0060082236,CONWAY AECOM LTD,953.60,20/07/2017
Commercial,Regional Enterprise,Other Services,0060082481,CONWAY AECOM LTD,673.60,27/07/2017
Commercial,Regional Enterprise,Other Services,0060082482,CONWAY AECOM LTD,673.60,27/07/2017
Commercial,Regional Enterprise,Other Services,0060082488,CONWAY AECOM LTD,673.60,27/07/2017
Commercial,Regional Enterprise,Other Services,0060082489,CONWAY AECOM LTD,673.60,27/07/2017
Commercial,Regional Enterprise,Other Services,0060082490,CONWAY AECOM LTD,673.60,27/07/2017
Commercial,Regional Enterprise,Other Services,0060082499,CONWAY AECOM LTD,673.60,27/07/2017
Commercial,Regional Enterprise,Other Services,0060082506,CONWAY AECOM LTD,673.60,27/07/2017
Commercial,Regional Enterprise,Other Services,0060082507,CONWAY AECOM LTD,673.60,27/07/2017
Commercial,Regional Enterprise,Other Services,0060082508,CONWAY AECOM LTD,"1,233.61",27/07/2017
Commercial,Regional Enterprise,Other Services,0060082511,CONWAY AECOM LTD,673.60,27/07/2017
Commercial,Regional Enterprise,Other Services,0060082512,CONWAY AECOM LTD,"1,400.03",27/07/2017
Commercial,Regional Enterprise,Other Services,0060082513,CONWAY AECOM LTD,673.60,27/07/2017
Commercial,Regional Enterprise,Other Services,0060082514,CONWAY AECOM LTD,953.60,27/07/2017
Commercial,Regional Enterprise,Other Services,0060082517,CONWAY AECOM LTD,"1,010.39",27/07/2017
Commercial,Regional Enterprise,Other Services,0060082519,CONWAY AECOM LTD,"1,347.19",27/07/2017
Commercial,Regional Enterprise,Other Services,0060082525,CONWAY AECOM LTD,673.60,27/07/2017
Commercial,Regional Enterprise,Other Services,0060082527,CONWAY AECOM LTD,"2,020.79",27/07/2017
Commercial,Regional Enterprise,Other Services,0060082529,CONWAY AECOM LTD,673.60,27/07/2017
Commercial,Regional Enterprise,Other Services,0060082531,CONWAY AECOM LTD,673.60,27/07/2017
Commercial,Regional Enterprise,Other Services,0060082532,CONWAY AECOM LTD,"1,347.19",27/07/2017
Commercial,Regional Enterprise,Other Services,0060082535,CONWAY AECOM LTD,"1,233.61",27/07/2017
Commercial,Regional Enterprise,Other Services,0060082538,CONWAY AECOM LTD,336.80,27/07/2017
Commercial,Regional Enterprise,Other Services,0060082542,CONWAY AECOM LTD,"1,683.99",27/07/2017
Commercial,Regional Enterprise,Other Services,0060082543,CONWAY AECOM LTD,"1,683.99",27/07/2017
Commercial,Regional Enterprise,Other Services,0060082544,CONWAY AECOM LTD,673.60,27/07/2017
Commercial,Regional Enterprise,Other Services,0060082546,CONWAY AECOM LTD,"2,020.79",27/07/2017
Commercial,Regional Enterprise,Other Services,0060082551,CONWAY AECOM LTD,336.80,27/07/2017
Commercial,Regional Enterprise,Other Services,0060082553,CONWAY AECOM LTD,"1,010.39",27/07/2017
Commercial,Regional Enterprise,Other Services,0060082554,CONWAY AECOM LTD,673.60,27/07/2017
Commercial,Regional Enterprise,Other Services,0060082566,CONWAY AECOM LTD,673.60,27/07/2017
Commercial,Regional Enterprise,Other Services,0060082568,CONWAY AECOM LTD,336.80,27/07/2017
Commercial,Regional Enterprise,Other Services,0060082572,CONWAY AECOM LTD,673.60,27/07/2017
Commercial,Regional Enterprise,Other Services,0060082575,CONWAY AECOM LTD,"1,513.61",27/07/2017
Commercial,Regional Enterprise,Other Services,0060082577,CONWAY AECOM LTD,673.60,27/07/2017
Commercial,Regional Enterprise,Other Services,0060082578,CONWAY AECOM LTD,673.60,27/07/2017
Commercial,Regional Enterprise,Other Services,0060082580,CONWAY AECOM LTD,673.60,27/07/2017
Commercial,Regional Enterprise,Other Services,0060082581,CONWAY AECOM LTD,"1,347.19",27/07/2017
Commercial,Regional Enterprise,Other Services,0060082584,CONWAY AECOM LTD,673.60,27/07/2017
Commercial,Regional Enterprise,Other Services,0060083533,TMP (UK) LTD,261.76,19/07/2017
Commercial,Regional Enterprise,Other Services,0060084021,TMP (UK) LTD,181.76,26/07/2017
Commercial,Regional Enterprise,Other Services,0060083010,CONWAY AECOM LTD,"3,894.40",27/07/2017
Commercial,Regional Enterprise,Other Services,0060083013,CONWAY AECOM LTD,"9,574.40",27/07/2017
Commercial,Regional Enterprise,Other Services,0060083022,CONWAY AECOM LTD,"23,945.35",27/07/2017
Commercial,Regional Enterprise,Other Services,0060083025,CONWAY AECOM LTD,"84,745.00",27/07/2017
Commercial,Regional Enterprise,Other Services,0060083062,CONWAY AECOM LTD,"65,887.50",27/07/2017
Commercial,Regional Enterprise,Other Services,0060083078,CONWAY AECOM LTD,"11,697.72",27/07/2017
Commercial,Regional Enterprise,Other Services,0060083111,CONWAY AECOM LTD,"13,126.40",27/07/2017
Commercial,Regional Enterprise,Other Services,0060083113,CONWAY AECOM LTD,"12,346.00",13/07/2017
Commercial,Regional Enterprise,Other Services,0060083115,CONWAY AECOM LTD,"82,730.50",27/07/2017
Commercial,Regional Enterprise,Consultants Fees,0060083443,GOOD IMPRESSIONS (LONDON) LIMITED,"5,630.00",19/07/2017
Commercial,Regional Enterprise,Other Services,0060082432,RM COUNTRYSIDE SERVICES LTD,175.00,06/07/2017
Commercial,Regional Enterprise,Other Services,0060083008,CONWAY AECOM LTD,"1,648.60",27/07/2017
Commercial,Regional Enterprise,Other Services,0060083027,CONWAY AECOM LTD,"1,648.60",27/07/2017
Commercial,Regional Enterprise,Other Services,0060083030,CONWAY AECOM LTD,"1,648.60",27/07/2017
Commercial,Regional Enterprise,Other Services,0060083034,CONWAY AECOM LTD,"3,297.20",27/07/2017
Commercial,Regional Enterprise,Other Services,0060083038,CONWAY AECOM LTD,"3,297.20",27/07/2017
Commercial,Regional Enterprise,Other Services,0060083041,CONWAY AECOM LTD,"1,648.60",27/07/2017
Commercial,Regional Enterprise,Other Services,0060083043,CONWAY AECOM LTD,"1,648.60",27/07/2017
Commercial,Regional Enterprise,Other Services,0060083046,CONWAY AECOM LTD,"26,377.60",27/07/2017
Commercial,Regional Enterprise,Other Services,0060083081,CONWAY AECOM LTD,"1,648.60",27/07/2017
Commercial,Regional Enterprise,Other Services,0060083586,BARNET LIGHTING SERVICES LTD,"1,213.46",24/07/2017
Commercial,Regional Enterprise,Other Services,0060081722,BARNET LIGHTING SERVICES LTD,"1,532.70",13/07/2017
Commercial,Regional Enterprise,Other Services,0060083128,CONWAY AECOM LTD,"8,550.00",27/07/2017
Commercial,Regional Enterprise,Other Services,0060081263,CONWAY AECOM LTD,"5,830.38",19/07/2017
Commercial,Regional Enterprise,Other Services,0060083510,CONWAY AECOM LTD,"3,725.81",21/07/2017
Commercial,Regional Enterprise,Other Services,0060082207,CONWAY AECOM LTD,274.40,13/07/2017
Commercial,Regional Enterprise,Other Services,0060082238,CONWAY AECOM LTD,329.28,13/07/2017
Commercial,Regional Enterprise,Other Services,0060082380,BARNET LIGHTING SERVICES LTD,510.20,03/07/2017
Commercial,Regional Enterprise,Other Services,0060082344,CONWAY AECOM LTD,"17,784.82",03/07/2017
Commercial,Regional Enterprise,Other Services,0060082390,CONWAY AECOM LTD,"53,550.52",03/07/2017
Commercial,Regional Enterprise,Other Services,0060083033,CONWAY AECOM LTD,"3,465.37",26/07/2017
Commercial,Regional Enterprise,Other Services,0060083129,CONWAY AECOM LTD,"26,966.12",13/07/2017
Commercial,Regional Enterprise,Other Services,0060083720,CONWAY AECOM LTD,"23,001.24",21/07/2017
Commercial,Regional Enterprise,Other Services,0060084015,CONWAY AECOM LTD,"9,528.72",26/07/2017
Commercial,Regional Enterprise,Other Services,0060082190,CONWAY AECOM LTD,"25,469.89",18/07/2017
Commercial,Regional Enterprise,Other Services,0060082455,CONWAY AECOM LTD,"4,388.50",04/07/2017
Commercial,Regional Enterprise,Other Services,0060083325,CYCLE CONFIDENT LTD,"25,588.97",28/07/2017
Commercial,Regional Enterprise,Other Services,0060082941,THE RIOT ACT LIMITED,"4,760.00",20/07/2017
Commercial,Regional Enterprise,Other Services,0060083140,BARNET LIGHTING SERVICES LTD,500.00,13/07/2017
Commercial,Regional Enterprise,Other Services,0060083612,BARNET LIGHTING SERVICES LTD,500.00,24/07/2017
Commercial,Regional Enterprise,Other Services,0060082316,CONWAY AECOM LTD,"15,797.19",20/07/2017
Commercial,Regional Enterprise,Advertising,0060081475,TMP (UK) LTD,374.84,14/07/2017
Commercial,Regional Enterprise,Other Services,0060082296,CONWAY AECOM LTD,"33,086.55",20/07/2017
Commercial,Regional Enterprise,Advertising,0060081461,TMP (UK) LTD,389.10,14/07/2017
Commercial,Regional Enterprise,Other Services,0060082294,CONWAY AECOM LTD,"12,060.71",25/07/2017
Commercial,Regional Enterprise,Other Services,0060082103,CONWAY AECOM LTD,39.97,06/07/2017
Commercial,Regional Enterprise,Other Services,0060082137,CONWAY AECOM LTD,39.10,06/07/2017
Commercial,Regional Enterprise,Other Services,0060082153,CONWAY AECOM LTD,39.97,06/07/2017
Commercial,Regional Enterprise,Other Services,0060082155,CONWAY AECOM LTD,39.97,06/07/2017
Commercial,Regional Enterprise,Other Services,0060082161,CONWAY AECOM LTD,40.33,06/07/2017
Commercial,Regional Enterprise,Other Services,0060082184,CONWAY AECOM LTD,36.58,06/07/2017
Commercial,Regional Enterprise,Other Services,0060082205,CONWAY AECOM LTD,40.33,06/07/2017
Commercial,Regional Enterprise,Other Services,0060082210,CONWAY AECOM LTD,39.10,06/07/2017
Commercial,Regional Enterprise,Other Services,0060082232,CONWAY AECOM LTD,39.97,06/07/2017
Commercial,Regional Enterprise,Other Services,0060082241,CONWAY AECOM LTD,39.97,13/07/2017
Commercial,Regional Enterprise,Other Services,0060082404,CONWAY AECOM LTD,"33,760.46",26/07/2017
Commercial,Regional Enterprise,Other Services,0060082447,CONWAY AECOM LTD,"2,682.79",26/07/2017
Commercial,Regional Enterprise,Other Services,0060082206,CONWAY AECOM LTD,"14,466.33",18/07/2017
Commercial,Regional Enterprise,Other Services,0060082265,CONWAY AECOM LTD,"1,101.02",18/07/2017
Commercial,Regional Enterprise,Other Services,0060083116,CONWAY AECOM LTD,"1,145.74",13/07/2017
Commercial,Regional Enterprise,Other Services,0010013831,CONWAY AECOM LTD,"5,298.09",18/07/2017
Commercial,Regional Enterprise,Other Services,0060083108,CONWAY AECOM LTD,128.29,27/07/2017
Commercial,Regional Enterprise,Other Services,0060083597,CONWAY AECOM LTD,337.41,27/07/2017
Commercial,Regional Enterprise,Other Services,0060084095,CONWAY AECOM LTD,111.40,27/07/2017
Commercial,Regional Enterprise,Other Services,0060084179,CONWAY AECOM LTD,222.80,27/07/2017
Commercial,Regional Enterprise,Other Services,0060084199,CONWAY AECOM LTD,327.93,27/07/2017
Commercial,Regional Enterprise,Advertising,0060082081,TMP (UK) LTD,144.16,06/07/2017
Commercial,Regional Enterprise,Advertising,0060082092,TMP (UK) LTD,112.08,06/07/2017
Commercial,Regional Enterprise,Advertising,0060082558,TMP (UK) LTD,32.08,28/07/2017
Commercial,Regional Enterprise,Advertising,0060082917,TMP (UK) LTD,35.64,12/07/2017
Commercial,Regional Enterprise,Advertising,0060083501,TMP (UK) LTD,119.20,19/07/2017
Commercial,Regional Enterprise,Advertising,0060083517,TMP (UK) LTD,112.08,19/07/2017
Commercial,Regional Enterprise,Advertising,0060083528,TMP (UK) LTD,108.51,19/07/2017
Commercial,Regional Enterprise,Advertising,0060084002,TMP (UK) LTD,28.51,26/07/2017
Commercial,Regional Enterprise,Advertising,0060084018,TMP (UK) LTD,115.64,26/07/2017
Commercial,Regional Enterprise,Advertising,0060084029,TMP (UK) LTD,39.20,26/07/2017
Commercial,Regional Enterprise,Advertising,0060084046,TMP (UK) LTD,108.51,26/07/2017
Commercial,Regional Enterprise,Advertising,0060084067,TMP (UK) LTD,32.08,26/07/2017
Commercial,Regional Enterprise,Other Services,0060083917,RM COUNTRYSIDE SERVICES LTD,"1,304.00",25/07/2017
Commercial,Regional Enterprise,Other Services,0060082457,RM COUNTRYSIDE SERVICES LTD,175.00,06/07/2017
Commercial,Regional Enterprise,Other Services,0060083015,CONWAY AECOM LTD,"1,144.00",26/07/2017
Commercial,Regional Enterprise,Other Services,0060083020,CONWAY AECOM LTD,629.20,27/07/2017
Commercial,Regional Enterprise,Other Services,0060083051,CONWAY AECOM LTD,800.80,27/07/2017
Commercial,Regional Enterprise,Other Services,0060083053,CONWAY AECOM LTD,"1,430.00",27/07/2017
Commercial,Regional Enterprise,Other Services,0060083071,CONWAY AECOM LTD,"1,029.60",26/07/2017
Commercial,Regional Enterprise,Other Services,0060083092,CONWAY AECOM LTD,"1,315.60",27/07/2017
Commercial,Regional Enterprise,Other Services,0060083105,CONWAY AECOM LTD,"1,201.20",27/07/2017
Commercial,Regional Enterprise,Other Services,0060083121,CONWAY AECOM LTD,800.80,27/07/2017
Commercial,Regional Enterprise,Other Services,0060083130,CONWAY AECOM LTD,"1,315.60",27/07/2017
Commercial,Regional Enterprise,Other Services,0060083137,CONWAY AECOM LTD,572.00,26/07/2017
Commercial,Regional Enterprise,Other Services,0060083577,CONWAY AECOM LTD,514.80,26/07/2017
Commercial,Regional Enterprise,Other Services,0060083581,CONWAY AECOM LTD,858.00,27/07/2017
Commercial,Regional Enterprise,Other Services,0060083602,CONWAY AECOM LTD,171.60,27/07/2017
Commercial,Regional Enterprise,Other Services,0060083638,CONWAY AECOM LTD,743.60,27/07/2017
Commercial,Regional Enterprise,Other Services,0060083647,CONWAY AECOM LTD,"1,258.40",27/07/2017
Commercial,Regional Enterprise,Professional Services,0060082636,WATES LIVING SPACE,"1,849.70",06/07/2017
Commercial,Regional Enterprise,Professional Services,0060082696,WATES LIVING SPACE,236.95,06/07/2017
Commercial,Regional Enterprise,Professional Services,0060082716,LONDON BOROUGH OF CAMDEN,214.00,07/07/2017
Commercial,Regional Enterprise,Advertising,0060080228,TMP (UK) LTD,234.15,11/07/2017
Commercial,Regional Enterprise,Advertising,0060080235,TMP (UK) LTD,158.40,11/07/2017
Commercial,Regional Enterprise,Other Services,0060082168,CONWAY AECOM LTD,17.41,06/07/2017
Commercial,Regional Enterprise,Other Services,0060082357,CONWAY AECOM LTD,11.87,03/07/2017
Commercial,Regional Enterprise,Advertising,0060082397,TMP (UK) LTD,248.41,28/07/2017
Commercial,Regional Enterprise,Advertising,0060083032,TMP (UK) LTD,218.20,13/07/2017
Commercial,Regional Enterprise,Advertising,0060083123,TMP (UK) LTD,367.72,13/07/2017
Commercial,Regional Enterprise,Other Services,0060083141,CONWAY AECOM LTD,15.66,14/07/2017
Commercial,Regional Enterprise,Other Services,0060083155,CONWAY AECOM LTD,14.85,14/07/2017
Commercial,Regional Enterprise,Other Services,0060083165,CONWAY AECOM LTD,29.95,14/07/2017
Commercial,Regional Enterprise,Other Services,0060083169,CONWAY AECOM LTD,14.08,14/07/2017
Commercial,Regional Enterprise,Other Services,0060083224,CONWAY AECOM LTD,12.03,14/07/2017
Commercial,Regional Enterprise,Other Services,0060083256,CONWAY AECOM LTD,17.75,14/07/2017
Commercial,Regional Enterprise,Other Services,0060083259,CONWAY AECOM LTD,19.84,14/07/2017
Commercial,Regional Enterprise,Advertising,0060083530,TMP (UK) LTD,212.77,19/07/2017
Commercial,Regional Enterprise,Other Services,0060083545,TMP (UK) LTD,364.15,19/07/2017
Commercial,Regional Enterprise,Other Services,0060083568,CONWAY AECOM LTD,22.19,20/07/2017
Commercial,Regional Enterprise,Other Services,0060083590,CONWAY AECOM LTD,33.93,20/07/2017
Commercial,Regional Enterprise,Other Services,0060084189,CONWAY AECOM LTD,406.17,27/07/2017
Commercial,Regional Enterprise,Postage,0060084356,ROYAL MAIL GROUP LIMITED,50.00,31/07/2017
Commercial,Regional Enterprise,Postage,0060084360,ROYAL MAIL GROUP LIMITED,11.16,31/07/2017
Commercial,Regional Enterprise,Other Services,0060082604,CONWAY AECOM LTD,"1,380.24",06/07/2017
Commercial,Regional Enterprise,Other Services,0060082679,CONWAY AECOM LTD,623.34,06/07/2017
Commercial,Regional Enterprise,Other Services,0060082687,CONWAY AECOM LTD,"6,230.50",06/07/2017
Commercial,Regional Enterprise,Other Services,0060083766,CONWAY AECOM LTD,"1,311.45",24/07/2017
Commercial,Regional Enterprise,Other Services,0060083842,CONWAY AECOM LTD,"1,720.60",24/07/2017
Commercial,Regional Enterprise,Other Services,0060084014,CONWAY AECOM LTD,"147,380.39",26/07/2017
Commercial,Regional Enterprise,Other Services,0060084059,CONWAY AECOM LTD,"154,223.78",26/07/2017
Commercial,Regional Enterprise,Printing-Contract,0060083700,LONDON LETTERBOX MARKETING,"1,865.80",21/07/2017
Commercial,Regional Enterprise,Printing-Contract,0060083878,LONDON LETTERBOX MARKETING,606.81,25/07/2017
Commercial,Regional Enterprise,Other Services,0010013823,CONWAY AECOM LTD,"1,740.75",18/07/2017
Commercial,Regional Enterprise,Other Services,0010013824,CONWAY AECOM LTD,797.58,18/07/2017
Commercial,Regional Enterprise,Other Services,0010013828,CONWAY AECOM LTD,633.00,18/07/2017
Commercial,Regional Enterprise,Other Services,0010013832,CONWAY AECOM LTD,"1,025.46",18/07/2017
Commercial,Regional Enterprise,Other Services,0010013833,CONWAY AECOM LTD,584.89,18/07/2017
Commercial,Regional Enterprise,Other Services,0010013834,CONWAY AECOM LTD,"1,255.87",18/07/2017
Commercial,Regional Enterprise,Other Services,0060083037,CONWAY AECOM LTD,"1,376.78",26/07/2017
Commercial,Regional Enterprise,Other Services,0060083061,CONWAY AECOM LTD,343.20,27/07/2017
Commercial,Regional Enterprise,Other Services,0060083065,CONWAY AECOM LTD,708.96,26/07/2017
Commercial,Regional Enterprise,Other Services,0060083066,CONWAY AECOM LTD,"1,086.80",27/07/2017
Commercial,Regional Enterprise,Other Services,0060083083,CONWAY AECOM LTD,569.70,26/07/2017
Commercial,Regional Enterprise,Other Services,0060083088,CONWAY AECOM LTD,"1,392.60",26/07/2017
Commercial,Regional Enterprise,Other Services,0060083210,CONWAY AECOM LTD,791.25,26/07/2017
Commercial,Regional Enterprise,Other Services,0060083558,CONWAY AECOM LTD,721.62,20/07/2017
Commercial,Regional Enterprise,Other Services,0060083562,CONWAY AECOM LTD,873.54,20/07/2017
Commercial,Regional Enterprise,Other Services,0060083618,CONWAY AECOM LTD,759.60,20/07/2017
Commercial,Regional Enterprise,Other Services,0060083632,CONWAY AECOM LTD,398.79,20/07/2017
Commercial,Regional Enterprise,Other Services,0060083633,CONWAY AECOM LTD,759.60,20/07/2017
Commercial,Regional Enterprise,Other Services,0060083639,CONWAY AECOM LTD,949.50,20/07/2017
Commercial,Regional Enterprise,Other Services,0060083643,CONWAY AECOM LTD,109.88,20/07/2017
Commercial,Regional Enterprise,Other Services,0060083655,CONWAY AECOM LTD,"1,012.80",20/07/2017
Commercial,Regional Enterprise,Other Services,0060083659,CONWAY AECOM LTD,759.60,20/07/2017
Commercial,Regional Enterprise,Other Services,0060083663,CONWAY AECOM LTD,463.36,26/07/2017
Commercial,Regional Enterprise,Other Services,0060083687,CONWAY AECOM LTD,493.74,26/07/2017
Commercial,Regional Enterprise,Other Services,0060083690,CONWAY AECOM LTD,"1,367.28",21/07/2017
Commercial,Regional Enterprise,Other Services,0060083695,CONWAY AECOM LTD,702.63,26/07/2017
Commercial,Regional Enterprise,Other Services,0060083708,CONWAY AECOM LTD,633.00,26/07/2017
Commercial,Regional Enterprise,Other Services,0060083711,CONWAY AECOM LTD,987.48,26/07/2017
Commercial,Regional Enterprise,Other Services,0060083717,CONWAY AECOM LTD,569.70,26/07/2017
Commercial,Regional Enterprise,Other Services,0060083729,CONWAY AECOM LTD,"1,266.00",26/07/2017
Commercial,Regional Enterprise,Other Services,0060083744,CONWAY AECOM LTD,578.61,26/07/2017
Commercial,Regional Enterprise,Other Services,0060083751,CONWAY AECOM LTD,607.68,26/07/2017
Commercial,Regional Enterprise,Other Services,0060083933,CONWAY AECOM LTD,951.90,25/07/2017
Commercial,Regional Enterprise,Other Services,0060084057,CONWAY AECOM LTD,"1,296.00",26/07/2017
Commercial,Regional Enterprise,Grant Payments,0080011600,DP BUILDERS DISABLED ADAPTATIONS,"8,472.00",27/07/2017
Commercial,Regional Enterprise,Grant Payments,0080011605,WSW PROJECTS LTD,"7,745.42",24/07/2017
Commercial,Regional Enterprise,Grant Payments,0080011614,GDC PLUMBING & HEATING,"2,782.50",24/07/2017
Commercial,Regional Enterprise,Grant Payments,0080011616,ECOLOGIC ENERGY,406.88,24/07/2017
Commercial,Regional Enterprise,Consultants Fees,0060084091,GOWLING WLG,"4,436.00",31/07/2017
Commercial,Regional Enterprise,Consultants Fees,0060084126,GOWLING WLG,"5,706.60",31/07/2017
Commercial,Regional Enterprise,Consultants Fees,0060082915,EVERSHEDS LLP,"2,310.74",27/07/2017
Commercial,Regional Enterprise,Consultants Fees,0060082733,GOWLING WLG,"3,688.46",21/07/2017
Commercial,Regional Enterprise,Consultants Fees,0060082744,GOWLING WLG,"3,793.71",21/07/2017
Commercial,Regional Enterprise,Consultants Fees,0060082751,GOWLING WLG,317.20,21/07/2017
Commercial,Regional Enterprise,Consultants Fees,0060082759,GOWLING WLG,493.86,21/07/2017
Commercial,Regional Enterprise,Consultants Fees,0060082782,GOWLING WLG,"1,115.38",21/07/2017
Commercial,Regional Enterprise,Consultants Fees,0060084064,GOWLING WLG,853.02,26/07/2017
Commercial,Regional Enterprise,Consultants Fees,0060084071,GOWLING WLG,557.61,26/07/2017
Commercial,Regional Enterprise,Consultants Fees,0060084148,GOWLING WLG,"2,158.99",31/07/2017
Commercial,Regional Enterprise,Consultants Fees,0080011720,GOWLING WLG,"3,539.15",28/07/2017
Commercial,Regional Enterprise,RE Services Contract Payment,0060082088,RE (REGIONAL ENTERPRISE) LIMITED,"825,630.91",21/07/2017
Commercial,Regional Enterprise,RE Services Contract Payment,0060082095,RE (REGIONAL ENTERPRISE) LIMITED,"727,795.76",21/07/2017
Commercial,Regional Enterprise,RE Services Contract Payment,0060083207,RE (REGIONAL ENTERPRISE) LIMITED,"25,000.00",31/07/2017
Commercial,Regional Enterprise,RE Services Contract Payment,0060083556,RE (REGIONAL ENTERPRISE) LIMITED,"182,332.00",31/07/2017
Commercial,Regional Enterprise,Building Repairs & Maintenance,0060083800,OAKRAY LIMITED,128.00,27/07/2017
Commercial,Regional Enterprise,Building Repairs & Maintenance,0060083813,OAKRAY LIMITED,72.00,27/07/2017
Commercial,Regional Enterprise,Consultants Fees,0060080737,CONWAY AECOM LTD,"31,217.60",04/07/2017
Commercial,Regional Enterprise,Consultants Fees,0060082268,CONWAY AECOM LTD,"31,217.60",20/07/2017
Commercial,Regional Enterprise,Consultants Fees,0060080719,SAPIENS CONSULTANCY,955.00,04/07/2017
Commercial,Regional Enterprise,Consultants Fees,0060080743,NATIONWIDE DATA COLLECTION,"2,350.00",21/07/2017
Commercial,Regional Enterprise,Consultants Fees,0060081585,NETWORK RAIL INFRASTRUCTURE LTD,"542,377.64",12/07/2017
Commercial,Regional Enterprise,Consultants Fees,0060081691,NETWORK RAIL INFRASTRUCTURE LTD,"2,994.07",12/07/2017
Commercial,Regional Enterprise,Consultants Fees,0060082046,TMP (UK) LTD,600.18,27/07/2017
Commercial,Regional Enterprise,Consultants Fees,0060082740,GOWLING WLG,898.70,21/07/2017
Commercial,Regional Enterprise,Consultants Fees,0060082746,GOWLING WLG,"1,571.36",21/07/2017
Commercial,Regional Enterprise,Consultants Fees,0060082773,GOWLING WLG,"8,907.95",21/07/2017
Commercial,Regional Enterprise,Consultants Fees,0060082774,GOWLING WLG,"8,319.24",27/07/2017
Commercial,Regional Enterprise,Consultants Fees,0060082794,GOWLING WLG,"6,979.36",21/07/2017
Commercial,Regional Enterprise,Consultants Fees,0060082796,GOWLING WLG,"11,557.50",21/07/2017
Commercial,Regional Enterprise,Consultants Fees,0060082926,RAILFREIGHT CONSULTING LTD,"6,930.00",27/07/2017
Commercial,Regional Enterprise,Consultants Fees,0060082996,RAILFREIGHT CONSULTING LTD,"5,115.00",13/07/2017
Commercial,Regional Enterprise,Consultants Fees,0060084114,GOWLING WLG,"1,762.66",31/07/2017
Commercial,Regional Enterprise,Consultants Fees,0060084130,GOWLING WLG,"5,178.74",31/07/2017
Commercial,Regional Enterprise,Consultants Fees,0060084134,GOWLING WLG,"2,795.60",31/07/2017
Commercial,Regional Enterprise,Consultants Fees,0060084139,GOWLING WLG,"7,959.17",31/07/2017
Commercial,Regional Enterprise,Consultants Fees,0060084157,GOWLING WLG,"3,409.17",31/07/2017
Commercial,Regional Enterprise,Consultants Fees,0060084166,GOWLING WLG,"12,468.60",31/07/2017
Commercial,Regional Enterprise,Consultants Fees,0060084176,GOWLING WLG,"4,510.87",31/07/2017
Commercial,Regional Enterprise,Consultants Fees,0060084188,GOWLING WLG,"7,740.81",31/07/2017
Commercial,Regional Enterprise,Consultants Fees,0060084202,GOWLING WLG,760.00,31/07/2017
Commercial,Regional Enterprise,Consultants Fees,0060084210,GOWLING WLG,"5,826.40",31/07/2017
Commercial,Regional Enterprise,Consultants Fees,0060084221,GOWLING WLG,"18,862.91",31/07/2017
Commercial,Regional Enterprise,Consultants Fees,0080010971,MCFARLAND ASSOCIATES LTD,"33,645.00",18/07/2017
Commercial,Regional Enterprise,Consultants Fees,0080011724,GOWLING WLG,"3,445.40",28/07/2017
Commercial,Regional Enterprise,Venue Hire,0080011126,WHITEFIELD SCHOOL ACADEMY TRUST CO.,268.00,06/07/2017
Commercial,Regional Enterprise,Venue Hire,0080011128,WHITEFIELD SCHOOL ACADEMY TRUST CO.,200.00,06/07/2017
Commercial,Regional Enterprise,Venue Hire,0080011129,WHITEFIELD SCHOOL ACADEMY TRUST CO.,198.00,05/07/2017
Commercial,Regional Enterprise,Consultants Fees,0060081673,EVERSHEDS LLP,"34,209.80",27/07/2017
Commercial,Regional Enterprise,Consultants Fees,0060083040,CONWAY AECOM LTD,"8,644.54",13/07/2017
Commercial,Regional Enterprise,Other Services,0060083057,CONWAY AECOM LTD,"23,637.60",27/07/2017
Commercial,Regional Enterprise,Consultants Fees,0060083104,CONWAY AECOM LTD,"3,500.00",27/07/2017
Commercial,Regional Enterprise,Advertising,0060083512,TMP (UK) LTD,216.33,19/07/2017
Commissioning,Commissioning,Building Repairs & Maintenance,0060081364,CONWAY AECOM LTD,"1,441.09",13/07/2017
Commissioning,Commissioning,Capital Construction and Works,0060082018,S W BRUCE & CO LTD,"1,929.88",20/07/2017
Commissioning,Commissioning,Capital Construction and Works,0060082393,MURPHY SURVEYS LIMITED,"3,355.00",27/07/2017
Commissioning,Commissioning,Building Repairs & Maintenance,0060083588,S W BRUCE & CO LTD,"6,692.40",21/07/2017
Commissioning,Commissioning,Rubbish Collection,0060083860,CHURCHILL CONTRACT SERVICES,38.71,28/07/2017
Commissioning,Commissioning,Rubbish Collection,0060083888,CHURCHILL CONTRACT SERVICES,38.71,28/07/2017
Commissioning,Commissioning,Rubbish Collection,0060083899,CHURCHILL CONTRACT SERVICES,38.71,28/07/2017
Commissioning,Commissioning,Rubbish Collection,0060083932,CHURCHILL CONTRACT SERVICES,38.71,28/07/2017
Commissioning,Commissioning,Rubbish Collection,0060083940,CHURCHILL CONTRACT SERVICES,200.00,28/07/2017
Commissioning,Commissioning,Rubbish Collection,0060083971,CHURCHILL CONTRACT SERVICES,38.71,28/07/2017
Commissioning,Commissioning,Other Services,0060083463,CASTLE WATER LTD,214.84,19/07/2017
Commissioning,Commissioning,Other Services,0060082350,CONWAY AECOM LTD,"3,342.34",25/07/2017
Commissioning,Commissioning,Equipment and Materials Purcha,0060083127,BARNET LIGHTING SERVICES LTD,500.00,13/07/2017
Commissioning,Commissioning,Consultants Fees,0060083503,ROSENBLATT SOLICITORS,"3,250.00",21/07/2017
Commissioning,Commissioning,Professional Services,0010013774,GENERAL DYNAMICS INFORMATION TECHNOLOGY,"5,395.48",04/07/2017
Commissioning,Commissioning,Consultants Fees,0060083114,IMPOWER CONSULTING LIMITED,"24,880.00",27/07/2017
Commissioning,Commissioning,Training,0010013811,REDACTIVE EVENTS LTD,795.00,07/07/2017
Commissioning,Commissioning,Professional Services,0060081529,P A CONSULTING SERVICES LTD,"55,450.00",07/07/2017
Commissioning,Commissioning,Training,0060083780,CIPFA BUSINESS LIMITED,"2,390.00",24/07/2017
Commissioning,Commissioning,Software Licences & Support,0060081997,DOTTED EYES LTD,759.00,13/07/2017
Commissioning,Commissioning,Grant Payments,0080011372,LOVE WHETSTONE,367.00,12/07/2017
Commissioning,Commissioning,Equipment and Materials Purcha,0060082524,NISBETS PLC,29.27,12/07/2017
Commissioning,Commissioning,Equipment and Materials Purcha,0060082863,OCS GROUP UK LIMITED,"47,050.00",12/07/2017
Commissioning,Commissioning,Equipment and Materials Purcha,0060082894,OCS GROUP UK LIMITED,"47,050.00",28/07/2017
Commissioning,Commissioning,Other Services,0060081324,OLD FINCUNIANS NETBALL CLUB (OFNC),"1,000.00",10/07/2017
Commissioning,Commissioning,Other Transfer Payments to Soc,0060082320,FAITH ASSOCIATES,"20,000.00",21/07/2017
Commissioning,Commissioning,Other Transfer Payments to Soc,0060082338,FAITH ASSOCIATES,"20,000.00",03/07/2017
Commissioning,Commissioning,Other Transfer Payments to Soc,0060083214,BRITISH TELECOMMUNICATIONS PLC,816.00,17/07/2017
Commissioning,Commissioning,Other Transfer Payments to Soc,0060082522,VICTIM SUPPORT SERVICES,"5,587.50",05/07/2017
Commissioning,Commissioning,Miscellaneous Expenses,0060082539,VICTIM SUPPORT SERVICES,"5,587.50",05/07/2017
Commissioning,Commissioning,Miscellaneous Expenses,0060082562,VICTIM SUPPORT SERVICES,"5,587.50",05/07/2017
Commissioning,Commissioning,Private Contractors - Third Pa,0060083763,GREENWICH LEISURE LTD,"260,842.63",28/07/2017
Commissioning,Commissioning,Other Transfer Payments to Soc,0060082445,SOLACE WOMEN'S AID,"74,552.50",04/07/2017
Commissioning,Commissioning,Other Transfer Payments to Soc,0060082476,SOLACE WOMEN'S AID,"52,461.75",04/07/2017
Commissioning,Commissioning,Travelling Expenses,0080011429,TELEGRAPH EVENTS LIMITED,495.00,12/07/2017
Commissioning,Commissioning,Consultants Fees,0080011342,BUFFALO 7 LTD,"1,125.00",11/07/2017
Commissioning,Commissioning,Consultants Fees,0010013807,DELIB LIMITED,650.00,03/07/2017
Commissioning,Commissioning,Training,0060083452,PRCA,305.00,19/07/2017
Commissioning,Commissioning,General Sales,0060082305,PAPER DOG LTD,"2,575.00",03/07/2017
Commissioning,Commissioning,Professional Services,0080011725,EXTERION MEDIA (UK) LIMITED,395.00,31/07/2017
Commissioning,Commissioning,Other Transfer Payments to Soc,0060067787,LIQUID PERSONNEL LTD,"37,184.00",03/07/2017
Commissioning,Commissioning,Other Transfer Payments to Soc,0060072411,LIQUID PERSONNEL LTD,(365.00),03/07/2017
Commissioning,Commissioning,Other Transfer Payments to Soc,0060082253,LIQUID PERSONNEL LTD,"6,850.00",03/07/2017
Commissioning,Commissioning,Other Transfer Payments to Soc,0060082255,LIQUID PERSONNEL LTD,"12,641.00",03/07/2017
Commissioning,Commissioning,Other Transfer Payments to Soc,0060082266,LIQUID PERSONNEL LTD,"36,322.00",03/07/2017
Commissioning,Commissioning,Agency/Interim Hays,0060081114,SUE HILL RECRUITMENT & SERVICES LTD,755.74,06/07/2017
Commissioning,Commissioning,Agency/Interim Hays,0060081536,SUE HILL RECRUITMENT & SERVICES LTD,801.35,13/07/2017
Commissioning,Commissioning,Agency/Interim Hays,0060082070,SUE HILL RECRUITMENT & SERVICES LTD,749.23,20/07/2017
Commissioning,Commissioning,Agency/Interim Hays,0060082520,SUE HILL RECRUITMENT & SERVICES LTD,560.29,27/07/2017
Commissioning,Commissioning,Other Services,0060082924,BLUE 9 SECURITY LIMITED,"1,580.36",13/07/2017
Commissioning,Commissioning,Other Services,0060082930,BLUE 9 SECURITY LIMITED,"2,101.95",13/07/2017
Commissioning,Commissioning,Other Services,0060082962,BLUE 9 SECURITY LIMITED,"2,327.72",13/07/2017
Commissioning,Commissioning,Other Services,0060082965,BLUE 9 SECURITY LIMITED,264.69,13/07/2017
Commissioning,Commissioning,Other Services,0060082986,BLUE 9 SECURITY LIMITED,513.82,13/07/2017
Commissioning,Commissioning,Other Services,0060083285,SERVELEC SYNERGY LTD,"2,625.00",19/07/2017
Commissioning,Commissioning,Other Services,0060083329,SERVELEC SYNERGY LTD,"1,050.00",18/07/2017
Commissioning,Commissioning,Other Services,0060083338,SERVELEC SYNERGY LTD,"12,000.00",18/07/2017
Commissioning,Commissioning,Other Services,0060083359,SERVELEC SYNERGY LTD,"3,000.00",18/07/2017
Commissioning,Commissioning,Other Services,0060083393,SERVELEC SYNERGY LTD,"1,050.00",18/07/2017
Commissioning,Commissioning,Professional Services,0060081678,EJH TRAINING SERVICES LTD,"2,457.48",13/07/2017
Commissioning,Commissioning,Professional Services,0060083156,MIDDLESEX UNIVERSITY,"16,222.00",24/07/2017
Corporate Accounting,Corporate Accounting,Grant Payments,0080011321,THE AXIS EDUCATIONAL TRUST,"2,500.00",11/07/2017
Corporate Accounting,Corporate Accounting,Other Transfer Payments to Soc,0060074385,CITIBANK NA LONDON,390.00,06/07/2017
Corporate Accounting,Corporate Accounting,Other Transfer Payments to Soc,0060079759,CITIBANK NA LONDON,828.60,06/07/2017
Corporate Accounting,Corporate Accounting,Other Transfer Payments to Soc,0060080532,CITIBANK NA LONDON,157.90,06/07/2017
Corporate Accounting,Corporate Accounting,Other Transfer Payments to Soc,0060080585,CITIBANK NA LONDON,201.36,06/07/2017
Corporate Accounting,Corporate Accounting,Other Transfer Payments to Soc,0060080591,CITIBANK NA LONDON,"1,407.90",06/07/2017
Corporate Accounting,Corporate Accounting,Other Transfer Payments to Soc,0060080626,CITIBANK NA LONDON,185.20,06/07/2017
Corporate Accounting,Corporate Accounting,Other Transfer Payments to Soc,0060080658,CITIBANK NA LONDON,30.10,06/07/2017
Corporate Accounting,Corporate Accounting,Other Transfer Payments to Soc,0060081103,CITIBANK NA LONDON,"4,364.04",06/07/2017
Corporate Accounting,Corporate Accounting,Other Transfer Payments to Soc,0060081120,CITIBANK NA LONDON,347.40,06/07/2017
Corporate Accounting,Corporate Accounting,Other Transfer Payments to Soc,0060081349,CITIBANK NA LONDON,300.00,06/07/2017
Corporate Accounting,Corporate Accounting,Other Transfer Payments to Soc,0060081358,CITIBANK NA LONDON,744.90,06/07/2017
Corporate Accounting,Corporate Accounting,Other Transfer Payments to Soc,0060081365,CITIBANK NA LONDON,537.90,06/07/2017
Corporate Accounting,Corporate Accounting,Other Transfer Payments to Soc,0060081371,CITIBANK NA LONDON,755.30,06/07/2017
Corporate Accounting,Corporate Accounting,Other Transfer Payments to Soc,0060081378,CITIBANK NA LONDON,535.00,06/07/2017
Corporate Accounting,Corporate Accounting,Other Transfer Payments to Soc,0060081380,CITIBANK NA LONDON,643.60,06/07/2017
Corporate Accounting,Corporate Accounting,Other Transfer Payments to Soc,0060081392,CITIBANK NA LONDON,70.00,06/07/2017
Corporate Accounting,Corporate Accounting,Other Transfer Payments to Soc,0060081404,CITIBANK NA LONDON,246.00,06/07/2017
Corporate Accounting,Corporate Accounting,Other Transfer Payments to Soc,0060081416,CITIBANK NA LONDON,"1,075.40",06/07/2017
Corporate Accounting,Corporate Accounting,Other Transfer Payments to Soc,0060081428,CITIBANK NA LONDON,139.80,06/07/2017
Corporate Accounting,Corporate Accounting,Other Transfer Payments to Soc,0060081452,CITIBANK NA LONDON,100.00,06/07/2017
Corporate Accounting,Corporate Accounting,Other Transfer Payments to Soc,0060081457,CITIBANK NA LONDON,827.10,06/07/2017
Corporate Accounting,Corporate Accounting,Other Transfer Payments to Soc,0060081469,CITIBANK NA LONDON,"6,372.84",06/07/2017
Corporate Accounting,Corporate Accounting,Other Transfer Payments to Soc,0060081473,CITIBANK NA LONDON,357.90,06/07/2017
Corporate Accounting,Corporate Accounting,Other Transfer Payments to Soc,0060081515,CITIBANK NA LONDON,374.00,06/07/2017
Corporate Accounting,Corporate Accounting,Other Transfer Payments to Soc,0060081517,CITIBANK NA LONDON,150.00,03/07/2017
Corporate Accounting,Corporate Accounting,Other Transfer Payments to Soc,0060081527,CITIBANK NA LONDON,173.70,03/07/2017
Corporate Accounting,Corporate Accounting,Other Transfer Payments to Soc,0060081531,CITIBANK NA LONDON,500.00,03/07/2017
Corporate Accounting,Corporate Accounting,Other Transfer Payments to Soc,0060081547,CITIBANK NA LONDON,256.55,06/07/2017
Corporate Accounting,Corporate Accounting,Other Transfer Payments to Soc,0060081549,CITIBANK NA LONDON,148.50,06/07/2017
Corporate Accounting,Corporate Accounting,Other Transfer Payments to Soc,0060081591,CITIBANK NA LONDON,445.30,06/07/2017
Corporate Accounting,Corporate Accounting,Other Transfer Payments to Soc,0060081594,CITIBANK NA LONDON,20.00,03/07/2017
Corporate Accounting,Corporate Accounting,Other Transfer Payments to Soc,0060081625,CITIBANK NA LONDON,297.30,06/07/2017
Corporate Accounting,Corporate Accounting,Other Transfer Payments to Soc,0060081631,CITIBANK NA LONDON,413.50,06/07/2017
Corporate Accounting,Corporate Accounting,Other Transfer Payments to Soc,0060081648,CITIBANK NA LONDON,749.34,06/07/2017
Corporate Accounting,Corporate Accounting,Other Transfer Payments to Soc,0060081668,CITIBANK NA LONDON,215.80,06/07/2017
Corporate Accounting,Corporate Accounting,Other Transfer Payments to Soc,0060082395,CITIBANK NA LONDON,459.00,06/07/2017
Corporate Accounting,Corporate Accounting,Other Transfer Payments to Soc,0060082396,CITIBANK NA LONDON,281.53,06/07/2017
Corporate Accounting,Corporate Accounting,Other Transfer Payments to Soc,0060082401,CITIBANK NA LONDON,191.40,06/07/2017
Corporate Accounting,Corporate Accounting,Other Transfer Payments to Soc,0060082411,CITIBANK NA LONDON,262.90,06/07/2017
Corporate Accounting,Corporate Accounting,Other Transfer Payments to Soc,0060082415,CITIBANK NA LONDON,620.00,06/07/2017
Corporate Accounting,Corporate Accounting,Other Transfer Payments to Soc,0060082449,CITIBANK NA LONDON,226.50,06/07/2017
Corporate Accounting,Corporate Accounting,Other Transfer Payments to Soc,0060082475,CITIBANK NA LONDON,956.41,06/07/2017
Corporate Accounting,Corporate Accounting,Other Transfer Payments to Soc,0060082480,CITIBANK NA LONDON,739.90,06/07/2017
Corporate Accounting,Corporate Accounting,Other Transfer Payments to Soc,0060082487,CITIBANK NA LONDON,57.90,06/07/2017
Corporate Accounting,Corporate Accounting,Other Transfer Payments to Soc,0060082497,CITIBANK NA LONDON,173.70,06/07/2017
Corporate Accounting,Corporate Accounting,Other Transfer Payments to Soc,0060082504,CITIBANK NA LONDON,11.09,06/07/2017
Corporate Accounting,Corporate Accounting,Other Transfer Payments to Soc,0060082523,CITIBANK NA LONDON,150.00,06/07/2017
Corporate Accounting,Corporate Accounting,Other Transfer Payments to Soc,0060082541,CITIBANK NA LONDON,"4,417.00",06/07/2017
Corporate Accounting,Corporate Accounting,Other Transfer Payments to Soc,0060082549,CITIBANK NA LONDON,500.00,06/07/2017
Corporate Accounting,Corporate Accounting,Other Transfer Payments to Soc,0060082552,CITIBANK NA LONDON,250.00,06/07/2017
Corporate Accounting,Corporate Accounting,Other Transfer Payments to Soc,0060082557,CITIBANK NA LONDON,50.00,06/07/2017
Corporate Accounting,Corporate Accounting,Other Transfer Payments to Soc,0060082570,CITIBANK NA LONDON,11.09,06/07/2017
Corporate Accounting,Corporate Accounting,Other Transfer Payments to Soc,0060082582,CITIBANK NA LONDON,11.09,06/07/2017
Corporate Accounting,Corporate Accounting,Other Transfer Payments to Soc,0060083142,CITIBANK NA LONDON,800.00,20/07/2017
Corporate Accounting,Corporate Accounting,Other Transfer Payments to Soc,0060083148,CITIBANK NA LONDON,57.90,20/07/2017
Corporate Accounting,Corporate Accounting,Other Transfer Payments to Soc,0060083159,CITIBANK NA LONDON,"1,520.00",20/07/2017
Corporate Accounting,Corporate Accounting,Other Transfer Payments to Soc,0060083162,CITIBANK NA LONDON,168.00,28/07/2017
Corporate Accounting,Corporate Accounting,Other Transfer Payments to Soc,0060083194,CITIBANK NA LONDON,409.75,20/07/2017
Corporate Accounting,Corporate Accounting,Other Transfer Payments to Soc,0060083196,CITIBANK NA LONDON,409.50,20/07/2017
Corporate Accounting,Corporate Accounting,Other Transfer Payments to Soc,0060083198,CITIBANK NA LONDON,"5,031.30",20/07/2017
Corporate Accounting,Corporate Accounting,Other Transfer Payments to Soc,0060083223,CITIBANK NA LONDON,"2,226.20",20/07/2017
Corporate Accounting,Corporate Accounting,Other Transfer Payments to Soc,0060083255,CITIBANK NA LONDON,140.00,20/07/2017
Corporate Accounting,Corporate Accounting,Other Transfer Payments to Soc,0060083262,CITIBANK NA LONDON,22.18,20/07/2017
Corporate Accounting,Corporate Accounting,Other Transfer Payments to Soc,0060083268,CITIBANK NA LONDON,96.72,20/07/2017
Corporate Accounting,Corporate Accounting,Other Transfer Payments to Soc,0060083288,CITIBANK NA LONDON,231.60,20/07/2017
Corporate Accounting,Corporate Accounting,Other Transfer Payments to Soc,0060083328,CITIBANK NA LONDON,35.95,20/07/2017
Corporate Accounting,Corporate Accounting,Other Transfer Payments to Soc,0060083330,CITIBANK NA LONDON,672.50,20/07/2017
Corporate Accounting,Corporate Accounting,Other Transfer Payments to Soc,0060083365,CITIBANK NA LONDON,200.00,20/07/2017
Corporate Accounting,Corporate Accounting,Other Transfer Payments to Soc,0060083374,CITIBANK NA LONDON,765.50,20/07/2017
Corporate Accounting,Corporate Accounting,Other Transfer Payments to Soc,0060083399,CITIBANK NA LONDON,96.00,20/07/2017
Corporate Accounting,Corporate Accounting,Other Transfer Payments to Soc,0060083864,CITIBANK NA LONDON,220.80,28/07/2017
Corporate Accounting,Corporate Accounting,Other Transfer Payments to Soc,0060083901,CITIBANK NA LONDON,275.00,28/07/2017
Corporate Accounting,Corporate Accounting,Other Transfer Payments to Soc,0060083907,CITIBANK NA LONDON,456.60,28/07/2017
Corporate Accounting,Corporate Accounting,Other Transfer Payments to Soc,0060083946,CITIBANK NA LONDON,287.00,28/07/2017
Corporate Accounting,Corporate Accounting,Other Transfer Payments to Soc,0060083951,CITIBANK NA LONDON,657.90,28/07/2017
Corporate Accounting,Corporate Accounting,Other Transfer Payments to Soc,0060083955,CITIBANK NA LONDON,533.00,28/07/2017
Corporate Accounting,Corporate Accounting,Other Transfer Payments to Soc,0060084054,CITIBANK NA LONDON,"1,933.00",28/07/2017
Corporate Accounting,Corporate Accounting,Other Transfer Payments to Soc,0060084061,CITIBANK NA LONDON,"2,626.19",28/07/2017
Corporate Accounting,Corporate Accounting,Other Transfer Payments to Soc,0060084082,CITIBANK NA LONDON,250.00,28/07/2017
Corporate Accounting,Corporate Accounting,Other Transfer Payments to Soc,0060084087,CITIBANK NA LONDON,117.90,28/07/2017
Corporate Accounting,Corporate Accounting,Other Transfer Payments to Soc,0060084174,CITIBANK NA LONDON,140.00,27/07/2017
Corporate Accounting,Corporate Accounting,Other Transfer Payments to Soc,0060084268,CITIBANK NA LONDON,"6,059.69",31/07/2017
Delivery Units,Streetscene,Other Energy,0010013840,HARVEST ENERGY LTD,"15,128.38",28/07/2017
Delivery Units,Streetscene,Other Energy,0010013841,HARVEST ENERGY LTD,"15,150.48",28/07/2017
Delivery Units,Streetscene,Other Energy,0010013844,HARVEST ENERGY LTD,"17,746.89",31/07/2017
Delivery Units,Streetscene,Training,0060082573,PREMIER PEOPLE SOLUTIONS LTD,"1,050.00",27/07/2017
Delivery Units,Streetscene,Water Services,0060083154,ANGEL SPRINGS LTD,22.94,27/07/2017
Delivery Units,Streetscene,Agency/Interim Non Hays,0060083782,FLEET DEVELOPMENT T/A HELP WITH FORS,"6,525.00",28/07/2017
Delivery Units,Streetscene,Operating Leases - Transport,0010013668,HARRIS COMMERCIAL LEA VALLEY LTD,652.82,21/07/2017
Delivery Units,Streetscene,Operating Leases - Transport,0060066736,ALFA TAIL LIFTS LTD,(381.51),28/07/2017
Delivery Units,Streetscene,Operating Leases - Transport,0060074908,HARRIS COMMERCIAL LEA VALLEY LTD,225.12,21/07/2017
Delivery Units,Streetscene,Equipment and Materials Purcha,0060076055,FLEET FACTORS LTD,"9,436.15",03/07/2017
Delivery Units,Streetscene,Operating Leases - Transport,0060079506,S & B COMMERCIALS PLC,57.90,31/07/2017
Delivery Units,Streetscene,Operating Leases - Transport,0060080530,SENTINEL SYSTEMS LTD,374.10,11/07/2017
Delivery Units,Streetscene,Operating Leases - Transport,0060080534,DAWSON RENTALS BUS & COACH LTD,552.43,20/07/2017
Delivery Units,Streetscene,Operating Leases - Transport,0060080647,FOSTERS AUTO CENTRES LTD,240.00,31/07/2017
Delivery Units,Streetscene,Operating Leases - Transport,0060080708,BURWELL MOTOR GROUP LTD,993.07,12/07/2017
Delivery Units,Streetscene,Operating Leases - Transport,0060080764,BURWELL MOTOR GROUP LTD,710.18,12/07/2017
Delivery Units,Streetscene,Operating Leases - Transport,0060081167,LANTERN RECOVERY SPECIALISTS PLC,99.50,06/07/2017
Delivery Units,Streetscene,Operating Leases - Transport,0060081254,FOSTERS AUTO CENTRES LTD,120.00,20/07/2017
Delivery Units,Streetscene,Operating Leases - Transport,0060081480,MATTEI COMPRESSORS LTD,511.38,12/07/2017
Delivery Units,Streetscene,Equipment and Materials Purcha,0060081630,FLEET FACTORS LTD,"11,619.73",06/07/2017
Delivery Units,Streetscene,Operating Leases - Transport,0060081752,FOSTERS AUTO CENTRES LTD,100.00,20/07/2017
Delivery Units,Streetscene,Operating Leases - Transport,0060082039,LANTERN RECOVERY SPECIALISTS PLC,275.00,17/07/2017
Delivery Units,Streetscene,Operating Leases - Transport,0060083018,ALFA TAIL LIFTS LTD,468.02,28/07/2017
Delivery Units,Streetscene,Operating Leases - Transport,0060083144,APS LTD,30.00,14/07/2017
Delivery Units,Streetscene,Operating Leases - Transport,0060083145,VEHICLE WEIGHING SOLUTIONS,192.00,27/07/2017
Delivery Units,Streetscene,Operating Leases - Transport,0060083146,APS LTD,30.00,14/07/2017
Delivery Units,Streetscene,Operating Leases - Transport,0060083149,APS LTD,30.00,14/07/2017
Delivery Units,Streetscene,Operating Leases - Transport,0060083151,APS LTD,30.00,14/07/2017
Delivery Units,Streetscene,Operating Leases - Transport,0060083153,APS LTD,30.00,14/07/2017
Delivery Units,Streetscene,Operating Leases - Transport,0060083157,APS LTD,30.00,14/07/2017
Delivery Units,Streetscene,Operating Leases - Transport,0060083164,APS LTD,30.00,14/07/2017
Delivery Units,Streetscene,Operating Leases - Transport,0060083167,APS LTD,30.00,14/07/2017
Delivery Units,Streetscene,Operating Leases - Transport,0060083173,APS LTD,30.00,14/07/2017
Delivery Units,Streetscene,Operating Leases - Transport,0060083176,APS LTD,30.00,14/07/2017
Delivery Units,Streetscene,Operating Leases - Transport,0060083191,APS LTD,30.00,19/07/2017
Delivery Units,Streetscene,Operating Leases - Transport,0060083192,VEHICLE WEIGHING SOLUTIONS,88.33,27/07/2017
Delivery Units,Streetscene,Operating Leases - Transport,0060083195,APS LTD,30.00,14/07/2017
Delivery Units,Streetscene,Operating Leases - Transport,0060083197,APS LTD,30.00,17/07/2017
Delivery Units,Streetscene,Operating Leases - Transport,0060083202,APS LTD,30.00,14/07/2017
Delivery Units,Streetscene,Operating Leases - Transport,0060083212,APS LTD,30.00,17/07/2017
Delivery Units,Streetscene,Operating Leases - Transport,0060083219,APS LTD,30.00,17/07/2017
Delivery Units,Streetscene,Operating Leases - Transport,0060083222,APS LTD,30.00,17/07/2017
Delivery Units,Streetscene,Operating Leases - Transport,0060083225,APS LTD,30.00,17/07/2017
Delivery Units,Streetscene,Operating Leases - Transport,0060083228,APS LTD,30.00,17/07/2017
Delivery Units,Streetscene,Operating Leases - Transport,0060083232,VEHICLE WEIGHING SOLUTIONS,224.00,27/07/2017
Delivery Units,Streetscene,Operating Leases - Transport,0060083234,APS LTD,30.00,17/07/2017
Delivery Units,Streetscene,Operating Leases - Transport,0060083238,APS LTD,30.00,14/07/2017
Delivery Units,Streetscene,Operating Leases - Transport,0060083245,APS LTD,30.00,14/07/2017
Delivery Units,Streetscene,Operating Leases - Transport,0060083247,APS LTD,30.00,14/07/2017
Delivery Units,Streetscene,Operating Leases - Transport,0060083264,APS LTD,30.00,19/07/2017
Delivery Units,Streetscene,Operating Leases - Transport,0060083265,APS LTD,30.00,17/07/2017
Delivery Units,Streetscene,Operating Leases - Transport,0060083276,APS LTD,243.37,19/07/2017
Delivery Units,Streetscene,Operating Leases - Transport,0060083324,APS LTD,130.00,18/07/2017
Delivery Units,Streetscene,Operating Leases - Transport,0060083348,APS LTD,132.62,18/07/2017
Delivery Units,Streetscene,Operating Leases - Transport,0060083375,APS LTD,90.02,18/07/2017
Delivery Units,Streetscene,Operating Leases - Transport,0060083395,APS LTD,38.50,18/07/2017
Delivery Units,Streetscene,Operating Leases - Transport,0060083759,TERBERG MATEC UK LTD,"2,121.79",24/07/2017
Delivery Units,Streetscene,Operating Leases - Transport,0060077964,DAWSON RENTALS BUS & COACH LTD,499.71,24/07/2017
Delivery Units,Streetscene,Operating Leases - Transport,0060080459,SHB HIRE LTD,"3,152.73",21/07/2017
Delivery Units,Streetscene,Operating Leases - Transport,0060080654,SPECIALIST FLEET SERVICES T/A CTS,590.00,25/07/2017
Delivery Units,Streetscene,Operating Leases - Transport,0060080695,DAWSON RENTALS BUS & COACH LTD,153.00,04/07/2017
Delivery Units,Streetscene,Operating Leases - Transport,0060080703,SPECIALIST FLEET SERVICES T/A CTS,"2,950.00",10/07/2017
Delivery Units,Streetscene,Operating Leases - Transport,0060080841,SPECIALIST FLEET SERVICES T/A CTS,236.00,10/07/2017
Delivery Units,Streetscene,Operating Leases - Transport,0060080976,LONDON HIRE LTD,505.00,20/07/2017
Delivery Units,Streetscene,Operating Leases - Transport,0060081209,MUNIHIRE LTD,"1,425.00",13/07/2017
Delivery Units,Streetscene,Operating Leases - Transport,0060081311,MUNIHIRE LTD,"1,425.00",13/07/2017
Delivery Units,Streetscene,Operating Leases - Transport,0060081319,MUNIHIRE LTD,"1,625.00",13/07/2017
Delivery Units,Streetscene,Operating Leases - Transport,0060081328,MUNIHIRE LTD,865.00,13/07/2017
Delivery Units,Streetscene,Operating Leases - Transport,0060081713,CAR HIRE (DAY OF SWANSEA) LTD T/A DAYS R,980.00,11/07/2017
Delivery Units,Streetscene,Operating Leases - Transport,0060081724,SHB HIRE LTD,201.00,21/07/2017
Delivery Units,Streetscene,Operating Leases - Transport,0060081733,SHB HIRE LTD,445.00,21/07/2017
Delivery Units,Streetscene,Operating Leases - Transport,0060081759,SHB HIRE LTD,201.00,21/07/2017
Delivery Units,Streetscene,Operating Leases - Transport,0060082003,DAWSON RENTALS BUS & COACH LTD,499.71,28/07/2017
Delivery Units,Streetscene,Operating Leases - Transport,0060082009,DAWSON RENTALS BUS & COACH LTD,499.71,28/07/2017
Delivery Units,Streetscene,Operating Leases - Transport,0060082025,DAWSON RENTALS BUS & COACH LTD,499.71,28/07/2017
Delivery Units,Streetscene,Operating Leases - Transport,0060082059,DAWSON RENTALS BUS & COACH LTD,499.71,28/07/2017
Delivery Units,Streetscene,Operating Leases - Transport,0060082152,ND BROWN LTD,560.00,24/07/2017
Delivery Units,Streetscene,Operating Leases - Transport,0060082160,ND BROWN LTD,"1,060.00",24/07/2017
Delivery Units,Streetscene,Operating Leases - Transport,0060082193,ND BROWN LTD,580.00,24/07/2017
Delivery Units,Streetscene,Operating Leases - Transport,0060082196,T.O.M VEHICLE RENTAL,380.00,03/07/2017
Delivery Units,Streetscene,Operating Leases - Transport,0060082201,ND BROWN LTD,272.00,31/07/2017
Delivery Units,Streetscene,Operating Leases - Transport,0060082202,ND BROWN LTD,"1,060.00",24/07/2017
Delivery Units,Streetscene,Operating Leases - Transport,0060082225,ND BROWN LTD,580.00,24/07/2017
Delivery Units,Streetscene,Operating Leases - Transport,0060082235,ND BROWN LTD,580.00,24/07/2017
Delivery Units,Streetscene,Operating Leases - Transport,0060082239,ND BROWN LTD,922.00,31/07/2017
Delivery Units,Streetscene,Operating Leases - Transport,0060082318,DAWSON RENTALS BUS & COACH LTD,499.71,28/07/2017
Delivery Units,Streetscene,Operating Leases - Transport,0060082723,ENTERPRISE RENT-A-CAR T/A ENTERPRISE FLE,589.60,31/07/2017
Delivery Units,Streetscene,Operating Leases - Transport,0060082726,ENTERPRISE RENT-A-CAR T/A ENTERPRISE FLE,567.60,31/07/2017
Delivery Units,Streetscene,Operating Leases - Transport,0060082737,ENTERPRISE RENT-A-CAR T/A ENTERPRISE FLE,545.60,31/07/2017
Delivery Units,Streetscene,Operating Leases - Transport,0060082738,ENTERPRISE RENT-A-CAR T/A ENTERPRISE FLE,96.60,27/07/2017
Delivery Units,Streetscene,Operating Leases - Transport,0060082742,ENTERPRISE RENT-A-CAR T/A ENTERPRISE FLE,237.60,31/07/2017
Delivery Units,Streetscene,Operating Leases - Transport,0060082756,ENTERPRISE RENT-A-CAR T/A ENTERPRISE FLE,237.60,31/07/2017
Delivery Units,Streetscene,Operating Leases - Transport,0060082763,ENTERPRISE RENT-A-CAR T/A ENTERPRISE FLE,237.60,31/07/2017
Delivery Units,Streetscene,Operating Leases - Transport,0060082766,ENTERPRISE RENT-A-CAR T/A ENTERPRISE FLE,237.60,31/07/2017
Delivery Units,Streetscene,Operating Leases - Transport,0060082770,ENTERPRISE RENT-A-CAR T/A ENTERPRISE FLE,435.60,31/07/2017
Delivery Units,Streetscene,Operating Leases - Transport,0060082772,ENTERPRISE RENT-A-CAR T/A ENTERPRISE FLE,567.60,31/07/2017
Delivery Units,Streetscene,Operating Leases - Transport,0060082777,ENTERPRISE RENT-A-CAR T/A ENTERPRISE FLE,237.60,31/07/2017
Delivery Units,Streetscene,Operating Leases - Transport,0060082778,ENTERPRISE RENT-A-CAR T/A ENTERPRISE FLE,237.60,31/07/2017
Delivery Units,Streetscene,Operating Leases - Transport,0060082781,ENTERPRISE RENT-A-CAR T/A ENTERPRISE FLE,237.60,31/07/2017
Delivery Units,Streetscene,Operating Leases - Transport,0060082784,ENTERPRISE RENT-A-CAR T/A ENTERPRISE FLE,545.60,31/07/2017
Delivery Units,Streetscene,Operating Leases - Transport,0060082788,ENTERPRISE RENT-A-CAR T/A ENTERPRISE FLE,237.60,31/07/2017
Delivery Units,Streetscene,Operating Leases - Transport,0060082789,ENTERPRISE RENT-A-CAR T/A ENTERPRISE FLE,237.60,31/07/2017
Delivery Units,Streetscene,Operating Leases - Transport,0060082793,ENTERPRISE RENT-A-CAR T/A ENTERPRISE FLE,237.60,31/07/2017
Delivery Units,Streetscene,Operating Leases - Transport,0060082797,ENTERPRISE RENT-A-CAR T/A ENTERPRISE FLE,237.60,31/07/2017
Delivery Units,Streetscene,Operating Leases - Transport,0060082799,ENTERPRISE RENT-A-CAR T/A ENTERPRISE FLE,435.60,31/07/2017
Delivery Units,Streetscene,Operating Leases - Transport,0060082807,ENTERPRISE RENT-A-CAR T/A ENTERPRISE FLE,237.60,31/07/2017
Delivery Units,Streetscene,Vehicles and Plant Purchase,0060082914,JEAKINS BROS T/A H W PICKRELL,"26,200.00",27/07/2017
Delivery Units,Streetscene,Operating Leases - Transport,0060083039,DAWSON RENTALS BUS & COACH LTD,"1,281.85",21/07/2017
Delivery Units,Streetscene,Operating Leases - Transport,0060083045,DAWSON RENTALS BUS & COACH LTD,"1,281.85",21/07/2017
Delivery Units,Streetscene,Operating Leases - Transport,0060083047,DAWSON RENTALS BUS & COACH LTD,"1,281.85",21/07/2017
Delivery Units,Streetscene,Operating Leases - Transport,0060083056,DAWSON RENTALS BUS & COACH LTD,499.71,20/07/2017
Delivery Units,Streetscene,Operating Leases - Transport,0060083059,DAWSON RENTALS BUS & COACH LTD,499.71,20/07/2017
Delivery Units,Streetscene,Operating Leases - Transport,0060083060,DAWSON RENTALS BUS & COACH LTD,"1,281.85",20/07/2017
Delivery Units,Streetscene,Operating Leases - Transport,0060083069,DAWSON RENTALS BUS & COACH LTD,"1,281.85",20/07/2017
Delivery Units,Streetscene,Operating Leases - Transport,0060083076,DAWSON RENTALS BUS & COACH LTD,"1,281.85",20/07/2017
Delivery Units,Streetscene,Operating Leases - Transport,0060083084,DAWSON RENTALS BUS & COACH LTD,499.71,20/07/2017
Delivery Units,Streetscene,Operating Leases - Transport,0060083086,DAWSON RENTALS BUS & COACH LTD,"1,281.85",20/07/2017
Delivery Units,Streetscene,Operating Leases - Transport,0060083087,DAWSON RENTALS BUS & COACH LTD,499.71,20/07/2017
Delivery Units,Streetscene,Operating Leases - Transport,0060083095,DAWSON RENTALS BUS & COACH LTD,"1,281.85",20/07/2017
Delivery Units,Streetscene,Operating Leases - Transport,0060083107,DAWSON RENTALS BUS & COACH LTD,"1,281.85",20/07/2017
Delivery Units,Streetscene,Operating Leases - Transport,0060083109,DAWSON RENTALS BUS & COACH LTD,"1,281.85",20/07/2017
Delivery Units,Streetscene,Operating Leases - Transport,0060083110,DAWSON RENTALS BUS & COACH LTD,499.71,20/07/2017
Delivery Units,Streetscene,Operating Leases - Transport,0060083131,DAWSON RENTALS BUS & COACH LTD,"1,281.85",20/07/2017
Delivery Units,Streetscene,Operating Leases - Transport,0060083201,MUNIHIRE LTD,406.97,14/07/2017
Delivery Units,Streetscene,Operating Leases - Transport,0060083227,SPECIALIST FLEET SERVICES T/A CTS,97.10,26/07/2017
Delivery Units,Streetscene,Operating Leases - Transport,0060083233,MUNIHIRE LTD,286.00,19/07/2017
Delivery Units,Streetscene,Operating Leases - Transport,0060083235,MUNIHIRE LTD,445.61,14/07/2017
Delivery Units,Streetscene,Operating Leases - Transport,0060083401,DAWSON RENTALS BUS & COACH LTD,499.71,20/07/2017
Delivery Units,Streetscene,Operating Leases - Transport,0060083778,CAR HIRE (DAY OF SWANSEA) LTD T/A DAYS R,524.60,25/07/2017
Delivery Units,Streetscene,Operating Leases - Transport,0060083827,C P DAVIDSON & SONS,"3,335.00",26/07/2017
Delivery Units,Streetscene,Operating Leases - Transport,0060083836,C P DAVIDSON & SONS,"3,190.00",27/07/2017
Delivery Units,Streetscene,Operating Leases - Transport,0060083856,ND BROWN LTD,900.00,28/07/2017
Delivery Units,Streetscene,Operating Leases - Transport,0060083891,ND BROWN LTD,580.00,31/07/2017
Delivery Units,Streetscene,Operating Leases - Transport,0060083919,ND BROWN LTD,"1,060.00",31/07/2017
Delivery Units,Streetscene,Operating Leases - Transport,0060083920,ND BROWN LTD,580.00,28/07/2017
Delivery Units,Streetscene,Operating Leases - Transport,0060083929,ND BROWN LTD,580.00,28/07/2017
Delivery Units,Streetscene,Operating Leases - Transport,0060083947,ND BROWN LTD,560.00,28/07/2017
Delivery Units,Streetscene,Operating Leases - Transport,0060083970,ND BROWN LTD,"1,060.00",31/07/2017
Delivery Units,Streetscene,Vehicle Running Costs,0080011298,DVLA,32.00,07/07/2017
Delivery Units,Streetscene,Water Services,0060083244,ANGEL SPRINGS LTD,36.97,27/07/2017
Delivery Units,Streetscene,Grounds maintenance,0060080439,BUSH WHEELER SERVICES LIMITED,"1,722.00",07/07/2017
Delivery Units,Streetscene,Equipment and Materials Purcha,0060080817,HAGS PLAY LTD,"6,100.80",05/07/2017
Delivery Units,Streetscene,Equipment and Materials Purcha,0060081237,RIGBY TAYLOR LTD,465.00,12/07/2017
Delivery Units,Streetscene,Other Services,0060081399,RM COUNTRYSIDE SERVICES LTD,"10,657.41",05/07/2017
Delivery Units,Streetscene,Other Services,0060081577,RM COUNTRYSIDE SERVICES LTD,280.00,05/07/2017
Delivery Units,Streetscene,Other Services,0060081675,RM COUNTRYSIDE SERVICES LTD,229.00,05/07/2017
Delivery Units,Streetscene,Building Repairs & Maintenance,0060081823,RGE SERVICES,52.50,12/07/2017
Delivery Units,Streetscene,Building Repairs & Maintenance,0060081875,HERTEL (UK) LTD,34.91,28/07/2017
Delivery Units,Streetscene,Building Repairs & Maintenance,0060081877,HERTEL (UK) LTD,34.91,06/07/2017
Delivery Units,Streetscene,Equipment and Materials Purcha,0060081897,SHRED-ON-SITE LTD,90.00,13/07/2017
Delivery Units,Streetscene,Building Repairs & Maintenance,0060081956,HERTEL (UK) LTD,34.91,06/07/2017
Delivery Units,Streetscene,Building Repairs & Maintenance,0060081996,HERTEL (UK) LTD,34.91,06/07/2017
Delivery Units,Streetscene,Building Repairs & Maintenance,0060082057,HERTEL (UK) LTD,34.91,19/07/2017
Delivery Units,Streetscene,Other Services,0060082247,RM COUNTRYSIDE SERVICES LTD,"3,648.00",05/07/2017
Delivery Units,Streetscene,Other Services,0060082278,BUSH WHEELER SERVICES LIMITED,"3,748.00",20/07/2017
Delivery Units,Streetscene,Other Services,0060082280,RM COUNTRYSIDE SERVICES LTD,80.00,05/07/2017
Delivery Units,Streetscene,Other Services,0060082458,RM COUNTRYSIDE SERVICES LTD,591.00,06/07/2017
Delivery Units,Streetscene,Other Services,0060082708,RM COUNTRYSIDE SERVICES LTD,681.75,13/07/2017
Delivery Units,Streetscene,Grounds maintenance,0060082830,BUSH WHEELER SERVICES LIMITED,205.00,10/07/2017
Delivery Units,Streetscene,Grounds maintenance,0060082837,COUNTRYSIDE CONTRACTS,"5,846.43",10/07/2017
Delivery Units,Streetscene,Grounds maintenance,0060082963,COUNTRYSIDE CONTRACTS,"1,025.00",12/07/2017
Delivery Units,Streetscene,Building Repairs & Maintenance,0060083023,HERTEL (UK) LTD,34.91,13/07/2017
Delivery Units,Streetscene,Other Services,0060083070,RM COUNTRYSIDE SERVICES LTD,323.50,19/07/2017
Delivery Units,Streetscene,Other Services,0060083097,RM COUNTRYSIDE SERVICES LTD,283.50,19/07/2017
Delivery Units,Streetscene,Building Repairs & Maintenance,0060083271,HERTEL (UK) LTD,34.91,19/07/2017
Delivery Units,Streetscene,Building Repairs & Maintenance,0060083275,HERTEL (UK) LTD,34.91,19/07/2017
Delivery Units,Streetscene,Grounds maintenance,0060083289,IRIS GARDENING SERVICES LTD,"4,235.60",20/07/2017
Delivery Units,Streetscene,Building Repairs & Maintenance,0060083290,HERTEL (UK) LTD,34.91,25/07/2017
Delivery Units,Streetscene,Building Repairs & Maintenance,0060083296,HERTEL (UK) LTD,34.91,19/07/2017
Delivery Units,Streetscene,Building Repairs & Maintenance,0060083297,HERTEL (UK) LTD,34.91,19/07/2017
Delivery Units,Streetscene,Building Repairs & Maintenance,0060083309,HERTEL (UK) LTD,34.91,19/07/2017
Delivery Units,Streetscene,Building Repairs & Maintenance,0060083313,HERTEL (UK) LTD,34.91,18/07/2017
Delivery Units,Streetscene,Building Repairs & Maintenance,0060083315,HERTEL (UK) LTD,34.91,18/07/2017
Delivery Units,Streetscene,Building Repairs & Maintenance,0060083339,HERTEL (UK) LTD,34.91,18/07/2017
Delivery Units,Streetscene,Building Repairs & Maintenance,0060083356,HERTEL (UK) LTD,34.91,18/07/2017
Delivery Units,Streetscene,Grounds maintenance,0060083360,IRIS GARDENING SERVICES LTD,"2,555.00",20/07/2017
Delivery Units,Streetscene,Building Repairs & Maintenance,0060083362,HERTEL (UK) LTD,34.91,18/07/2017
Delivery Units,Streetscene,Other Services,0060083364,RM COUNTRYSIDE SERVICES LTD,565.00,19/07/2017
Delivery Units,Streetscene,Building Repairs & Maintenance,0060083366,HERTEL (UK) LTD,34.91,18/07/2017
Delivery Units,Streetscene,Building Repairs & Maintenance,0060083368,HERTEL (UK) LTD,34.91,18/07/2017
Delivery Units,Streetscene,Grounds maintenance,0060083377,IRIS GARDENING SERVICES LTD,"1,941.85",20/07/2017
Delivery Units,Streetscene,Grounds maintenance,0060083382,IRIS GARDENING SERVICES LTD,"4,482.50",20/07/2017
Delivery Units,Streetscene,Building Repairs & Maintenance,0060083389,HERTEL (UK) LTD,34.91,18/07/2017
Delivery Units,Streetscene,Building Repairs & Maintenance,0060083390,HERTEL (UK) LTD,34.91,18/07/2017
Delivery Units,Streetscene,Building Repairs & Maintenance,0060083397,HERTEL (UK) LTD,34.91,18/07/2017
Delivery Units,Streetscene,Building Repairs & Maintenance,0060083625,S W BRUCE & CO LTD,144.28,24/07/2017
Delivery Units,Streetscene,Building Repairs & Maintenance,0060083641,S W BRUCE & CO LTD,76.36,24/07/2017
Delivery Units,Streetscene,Building Repairs & Maintenance,0060083767,OAKRAY LIMITED,80.00,27/07/2017
Delivery Units,Streetscene,Building Repairs & Maintenance,0060083770,OAKRAY LIMITED,112.00,27/07/2017
Delivery Units,Streetscene,Building Repairs & Maintenance,0060083789,OAKRAY LIMITED,135.00,27/07/2017
Delivery Units,Streetscene,Building Repairs & Maintenance,0060083795,OAKRAY LIMITED,80.00,27/07/2017
Delivery Units,Streetscene,Building Repairs & Maintenance,0060083799,OAKRAY LIMITED,96.00,27/07/2017
Delivery Units,Streetscene,Building Repairs & Maintenance,0060083808,OAKRAY LIMITED,80.00,27/07/2017
Delivery Units,Streetscene,Building Repairs & Maintenance,0060083810,OAKRAY LIMITED,162.00,27/07/2017
Delivery Units,Streetscene,Building Repairs & Maintenance,0060083821,OAKRAY LIMITED,162.00,27/07/2017
Delivery Units,Streetscene,Building Repairs & Maintenance,0060084013,RGE SERVICES,62.00,28/07/2017
Delivery Units,Streetscene,Building Repairs & Maintenance,0060084034,RGE SERVICES,275.28,28/07/2017
Delivery Units,Streetscene,Building Repairs & Maintenance,0060084037,RGE SERVICES,120.44,28/07/2017
Delivery Units,Streetscene,Building Repairs & Maintenance,0060084069,RGE SERVICES,124.00,28/07/2017
Delivery Units,Streetscene,Building Repairs & Maintenance,0060084074,RGE SERVICES,532.40,28/07/2017
Delivery Units,Streetscene,Building Repairs & Maintenance,0060084075,RGE SERVICES,93.00,28/07/2017
Delivery Units,Streetscene,Building Repairs & Maintenance,0060084098,HERTEL (UK) LTD,34.91,28/07/2017
Delivery Units,Streetscene,Building Repairs & Maintenance,0060084111,HERTEL (UK) LTD,34.91,28/07/2017
Delivery Units,Streetscene,Building Repairs & Maintenance,0060084135,HERTEL (UK) LTD,34.91,28/07/2017
Delivery Units,Streetscene,Building Repairs & Maintenance,0060084193,HERTEL (UK) LTD,34.91,27/07/2017
Delivery Units,Streetscene,Gas,0060083762,KENT COUNTY COUNCIL (KCS),174.84,25/07/2017
Delivery Units,Streetscene,Gas,0060083793,KENT COUNTY COUNCIL (KCS),234.22,25/07/2017
Delivery Units,Streetscene,Gas,0060083820,KENT COUNTY COUNCIL (KCS),219.24,25/07/2017
Delivery Units,Streetscene,Gas,0060083837,KENT COUNTY COUNCIL (KCS),292.28,25/07/2017
Delivery Units,Streetscene,Electricity,0060083898,KENT COUNTY COUNCIL (KCS),645.11,28/07/2017
Delivery Units,Streetscene,Electricity,0060083928,KENT COUNTY COUNCIL (KCS),368.96,25/07/2017
Delivery Units,Streetscene,Electricity,0060083937,KENT COUNTY COUNCIL (KCS),"1,347.73",25/07/2017
Delivery Units,Streetscene,Electricity,0060083942,KENT COUNTY COUNCIL (KCS),183.31,28/07/2017
Delivery Units,Streetscene,Water Services,0060083834,CASTLE WATER LTD,45.96,31/07/2017
Delivery Units,Streetscene,Water Services,0060083912,AFFINITY WATER LIMITED,77.75,28/07/2017
Delivery Units,Streetscene,Water Services,0060083923,AFFINITY WATER LIMITED,22.36,28/07/2017
Delivery Units,Streetscene,Building Repairs & Maintenance,0060082293,BARNET LOCK CENTRE LTD.,110.08,21/07/2017
Delivery Units,Streetscene,Building Repairs & Maintenance,0060082300,BARNET LOCK CENTRE LTD.,57.04,21/07/2017
Delivery Units,Streetscene,Building Repairs & Maintenance,0060082304,BARNET LOCK CENTRE LTD.,42.07,21/07/2017
Delivery Units,Streetscene,Building Repairs & Maintenance,0060082363,BARNET LOCK CENTRE LTD.,6.67,21/07/2017
Delivery Units,Streetscene,Building Repairs & Maintenance,0060082377,BARNET LOCK CENTRE LTD.,6.67,21/07/2017
Delivery Units,Streetscene,Grounds maintenance,0060082905,HAGS PLAY LTD,"2,808.00",27/07/2017
Delivery Units,Streetscene,Equipment and Materials Purcha,0060083036,ANGEL SPRINGS LTD,126.03,27/07/2017
Delivery Units,Streetscene,Rubbish Collection,0060083068,LONDON WASTE LTD,"2,003.01",27/07/2017
Delivery Units,Streetscene,Building Repairs & Maintenance,0060084000,BARNET LOCK CENTRE LTD.,6.48,28/07/2017
Delivery Units,Streetscene,Building Repairs & Maintenance,0060084051,BARNET LOCK CENTRE LTD.,9.92,28/07/2017
Delivery Units,Streetscene,Building Repairs & Maintenance,0060084053,BARNET LOCK CENTRE LTD.,14.88,28/07/2017
Delivery Units,Streetscene,Building Repairs & Maintenance,0060084065,BARNET LOCK CENTRE LTD.,111.85,28/07/2017
Delivery Units,Streetscene,Building Repairs & Maintenance,0060084076,BARNET LOCK CENTRE LTD.,28.22,28/07/2017
Delivery Units,Streetscene,Grounds maintenance,0060081725,CITY SUBURBAN TREE SURGEONS LTD,"1,177.80",06/07/2017
Delivery Units,Streetscene,Grounds maintenance,0060081834,CITY SUBURBAN TREE SURGEONS LTD,"3,168.05",06/07/2017
Delivery Units,Streetscene,Grounds maintenance,0060082500,GLENDALE COUNTRYSIDE LTD,"15,000.00",27/07/2017
Delivery Units,Streetscene,Grounds maintenance,0060082502,GLENDALE COUNTRYSIDE LTD,"1,540.72",26/07/2017
Delivery Units,Streetscene,Grounds maintenance,0060082540,CITY SUBURBAN TREE SURGEONS LTD,"3,310.25",18/07/2017
Delivery Units,Streetscene,Grounds maintenance,0060082548,GRISTWOOD & TOM LTD,"2,430.03",05/07/2017
Delivery Units,Streetscene,Training,0060082071,CAPEL MANOR COLLEGE,153.00,12/07/2017
Delivery Units,Streetscene,Training,0060082074,CAPEL MANOR COLLEGE,450.00,12/07/2017
Delivery Units,Streetscene,Equipment and Materials Purcha,0060083475,RM COUNTRYSIDE SERVICES LTD,"2,889.00",20/07/2017
Delivery Units,Streetscene,Equipment and Materials Purcha,0060083237,SPALDINGS (UK) LTD,279.36,24/07/2017
Delivery Units,Streetscene,Other Services,0060083308,BATTERSEA DOGS & CATS HOME,25.00,19/07/2017
Delivery Units,Streetscene,Clothing - Uniforms,0060080898,MAIN MAN SUPPLIES LIMITED,405.15,06/07/2017
Delivery Units,Streetscene,Rubbish Collection,0060081074,PREMIER PEOPLE SOLUTIONS LTD,"1,548.00",06/07/2017
Delivery Units,Streetscene,Clothing - Uniforms,0060081292,MAIN MAN SUPPLIES LIMITED,32.85,11/07/2017
Delivery Units,Streetscene,Clothing - Uniforms,0060082378,MAIN MAN SUPPLIES LIMITED,450.00,19/07/2017
Delivery Units,Streetscene,Rubbish Collection,0060082556,PREMIER PEOPLE SOLUTIONS LTD,486.00,27/07/2017
Delivery Units,Streetscene,Rubbish Collection,0060083257,ROSPA,40.00,14/07/2017
Delivery Units,Streetscene,Rubbish Collection,0010013812,RADIOCOMS SYSTEMS LTD,266.66,07/07/2017
Delivery Units,Streetscene,Rubbish Collection,0010013813,RADIOCOMS SYSTEMS LTD,266.66,07/07/2017
Delivery Units,Streetscene,Equipment and Materials Purcha,0060080601,EGBERT.H.TAYLOR & COMPANY,"7,261.80",04/07/2017
Delivery Units,Streetscene,Equipment and Materials Purcha,0060081561,BIN MASTERS (KENT) LTD,750.00,13/07/2017
Delivery Units,Streetscene,Clothing - Uniforms,0060082308,MAIN MAN SUPPLIES LIMITED,280.00,25/07/2017
Delivery Units,Streetscene,Rubbish Collection,0060082959,RADIOCOMS SYSTEMS LTD,266.66,11/07/2017
Delivery Units,Streetscene,Clothing - Uniforms,0060082966,MAIN MAN SUPPLIES LIMITED,34.75,27/07/2017
Delivery Units,Streetscene,Clothing - Uniforms,0060083240,MAIN MAN SUPPLIES LIMITED,78.50,27/07/2017
Delivery Units,Streetscene,Equipment and Materials Purcha,0060083274,STORM ENVIRONMENTAL LTD,562.00,17/07/2017
Delivery Units,Streetscene,Equipment and Materials Purcha,0060083336,STORM ENVIRONMENTAL LTD,"9,380.00",17/07/2017
Delivery Units,Streetscene,Equipment and Materials Purcha,0060083337,STORM ENVIRONMENTAL LTD,843.00,17/07/2017
Delivery Units,Streetscene,Equipment and Materials Purcha,0060083340,STORM ENVIRONMENTAL LTD,"9,380.00",17/07/2017
Delivery Units,Streetscene,Equipment and Materials Purcha,0060083378,STORM ENVIRONMENTAL LTD,"9,380.00",17/07/2017
Delivery Units,Streetscene,Equipment and Materials Purcha,0060083407,STORM ENVIRONMENTAL LTD,96.00,19/07/2017
Central Expenses,Central Expenses,Other Establishments - Third P,EBX0184300,LEE VALLEY REGIONAL PARK AUTH.,"30,430.52",17/07/2017
Corporate Accounting,Corporate Accounting,Other Local Authorities - Thir,EBX0178943,GREATER LONDON AUTHORITY,"3,856,742.82",11/07/2017
Corporate Accounting,Corporate Accounting,Other Local Authorities - Thir,EBX0181396,GREATER LONDON AUTHORITY,"234,605.00",21/07/2017
Various,Various,Various,0010013757,CAPITA EMPLOYEE BENEFITS,"246,445.20",03/07/2017
Various,Various,Various,0010013759,CAPITA EMPLOYEE BENEFITS,"243,792.92",07/07/2017
Various,Various,Various,0010013760,CAPITA EMPLOYEE BENEFITS,"243,976.81",07/07/2017
Various,Various,Various,0010013762,CAPITA EMPLOYEE BENEFITS,"243,036.21",07/07/2017
Various,Various,Various,0010013763,CAPITA EMPLOYEE BENEFITS,"243,371.78",07/07/2017
Various,Various,Various,0010013764,CAPITA EMPLOYEE BENEFITS,"244,447.56",07/07/2017
Various,Various,Various,0010013765,CAPITA EMPLOYEE BENEFITS,"243,166.00",07/07/2017
Various,Various,Various,0010013766,CAPITA EMPLOYEE BENEFITS,"242,740.11",07/07/2017
Various,Various,Various,0010013767,CAPITA EMPLOYEE BENEFITS,"240,808.64",07/07/2017
Various,Various,Various,0010013768,CAPITA EMPLOYEE BENEFITS,"242,494.22",07/07/2017
Various,Various,Various,0010013769,CAPITA EMPLOYEE BENEFITS,"241,839.68",07/07/2017
Various,Various,Various,0010013809,CROMWELL POLYTHENE LTD,"6,240.00",04/07/2017
Various,Various,Various,0020034218,UNUM,137.53,18/07/2017
Various,Various,Various,0020034219,UNUM,137.53,18/07/2017
Various,Various,Various,0020034262,DENPLAN LTD,469.75,28/07/2017
Various,Various,Various,0020034263,WESTFIELD CONTRIBUTORY HEALTH SCHEME LTD,61.98,28/07/2017
Various,Various,Various,0020034264,SVM GLOBAL LTD,"1,280.00",10/07/2017
Various,Various,Various,0020034376,FIDELITI LIMITED,"25,859.03",24/07/2017
Various,Various,Various,0030166933,COMENSURA LIMITED,"375,459.52",06/07/2017
Various,Various,Various,0030166981,COMENSURA LIMITED,"308,808.06",07/07/2017
Various,Various,Various,0030167019,THE BARNETGROUP LIMITED,332.00,12/07/2017
Various,Various,Various,0030167020,THE BARNETGROUP LIMITED,"2,800.00",12/07/2017
Various,Various,Various,0030167076,THE BARNETGROUP LIMITED,"3,164.00",13/07/2017
Various,Various,Various,0030167078,THE BARNETGROUP LIMITED,"2,752.00",13/07/2017
Various,Various,Various,0030167079,THE BARNETGROUP LIMITED,148.00,13/07/2017
Various,Various,Various,0030167080,THE BARNETGROUP LIMITED,"2,604.00",13/07/2017
Various,Various,Various,0030167081,THE BARNETGROUP LIMITED,396.00,13/07/2017
Various,Various,Various,0030167082,THE BARNETGROUP LIMITED,"2,768.00",13/07/2017
Various,Various,Various,0030167083,THE BARNETGROUP LIMITED,388.00,13/07/2017
Various,Various,Various,0030167084,THE BARNETGROUP LIMITED,"2,856.00",13/07/2017
Various,Various,Various,0030167085,THE BARNETGROUP LIMITED,556.00,13/07/2017
Various,Various,Various,0030167086,THE BARNETGROUP LIMITED,"2,764.00",13/07/2017
Various,Various,Various,0030167088,THE BARNETGROUP LIMITED,"3,248.00",13/07/2017
Various,Various,Various,0030167090,THE BARNETGROUP LIMITED,"4,672.00",13/07/2017
Various,Various,Various,0030167098,COMENSURA LIMITED,"255,274.92",13/07/2017
Various,Various,Various,0030167115,CENTURION HEALTH CARE LTD,"6,081.86",14/07/2017
Various,Various,Various,0030167720,COMENSURA LIMITED,"319,277.82",21/07/2017
Various,Various,Various,0030168254,REDFERN TRAVEL LTD,"14,242.75",28/07/2017
Various,Various,Various,0040001117,OFFICE DEPOT UK LTD,4.76,10/07/2017
Various,Various,Various,0040001591,OFFICE DEPOT UK LTD,23.42,07/07/2017
Various,Various,Various,0040001611,OFFICE DEPOT UK LTD,12.68,07/07/2017
Various,Various,Various,0040001666,OFFICE DEPOT UK LTD,38.37,07/07/2017
Various,Various,Various,0040001688,OFFICE DEPOT UK LTD,5.97,07/07/2017
Various,Various,Various,0040001721,OFFICE DEPOT UK LTD,19.68,07/07/2017
Various,Various,Various,0040001868,OFFICE DEPOT UK LTD,56.46,07/07/2017
Various,Various,Various,0040001871,OFFICE DEPOT UK LTD,85.76,07/07/2017
Various,Various,Various,0040001878,OFFICE DEPOT UK LTD,104.48,07/07/2017
Various,Various,Various,0040001879,OFFICE DEPOT UK LTD,401.40,07/07/2017
Various,Various,Various,0040001886,OFFICE DEPOT UK LTD,30.85,07/07/2017
Various,Various,Various,0040001891,OFFICE DEPOT UK LTD,100.41,07/07/2017
Various,Various,Various,0040001900,OFFICE DEPOT UK LTD,202.10,07/07/2017
Various,Various,Various,0040001903,OFFICE DEPOT UK LTD,38.30,07/07/2017
Various,Various,Various,0040001904,OFFICE DEPOT UK LTD,10.93,07/07/2017
Various,Various,Various,0040001913,OFFICE DEPOT UK LTD,8.15,07/07/2017
Various,Various,Various,0040001915,OFFICE DEPOT UK LTD,88.26,07/07/2017
Various,Various,Various,0040001916,OFFICE DEPOT UK LTD,187.69,07/07/2017
Various,Various,Various,0040001928,OFFICE DEPOT UK LTD,62.72,07/07/2017
Various,Various,Various,0040001930,OFFICE DEPOT UK LTD,57.91,07/07/2017
Various,Various,Various,0040001935,OFFICE DEPOT UK LTD,86.72,07/07/2017
Various,Various,Various,0040001947,OFFICE DEPOT UK LTD,133.89,07/07/2017
Various,Various,Various,0040001960,OFFICE DEPOT UK LTD,55.83,07/07/2017
Various,Various,Various,0040001972,OFFICE DEPOT UK LTD,41.71,07/07/2017
Various,Various,Various,0040001981,OFFICE DEPOT UK LTD,16.97,07/07/2017
Various,Various,Various,0040001985,OFFICE DEPOT UK LTD,45.86,07/07/2017
Various,Various,Various,0040001991,OFFICE DEPOT UK LTD,98.13,07/07/2017
Various,Various,Various,0040002027,OFFICE DEPOT UK LTD,98.24,07/07/2017
Various,Various,Various,0040002032,OFFICE DEPOT UK LTD,28.16,07/07/2017
Various,Various,Various,0040002033,OFFICE DEPOT UK LTD,38.62,07/07/2017
Various,Various,Various,0040002038,OFFICE DEPOT UK LTD,3.84,07/07/2017
Various,Various,Various,0040002039,OFFICE DEPOT UK LTD,15.52,07/07/2017
Various,Various,Various,0040002041,OFFICE DEPOT UK LTD,113.94,07/07/2017
Various,Various,Various,0040002042,OFFICE DEPOT UK LTD,43.62,07/07/2017
Various,Various,Various,0040002044,OFFICE DEPOT UK LTD,35.79,07/07/2017
Various,Various,Various,0040002047,OFFICE DEPOT UK LTD,30.57,07/07/2017
Various,Various,Various,0040002050,OFFICE DEPOT UK LTD,81.14,07/07/2017
Various,Various,Various,0040002052,OFFICE DEPOT UK LTD,13.16,07/07/2017
Various,Various,Various,0040002056,OFFICE DEPOT UK LTD,179.54,07/07/2017
Various,Various,Various,0040002060,OFFICE DEPOT UK LTD,6.63,07/07/2017
Various,Various,Various,0040002067,OFFICE DEPOT UK LTD,21.48,07/07/2017
Various,Various,Various,0040002104,OFFICE DEPOT UK LTD,154.66,07/07/2017
Various,Various,Various,0040002108,OFFICE DEPOT UK LTD,30.78,07/07/2017
Various,Various,Various,0040002123,OFFICE DEPOT UK LTD,16.48,07/07/2017
Various,Various,Various,0040002126,OFFICE DEPOT UK LTD,5.37,07/07/2017
Various,Various,Various,0040002155,OFFICE DEPOT UK LTD,980.25,07/07/2017
Various,Various,Various,0040002160,OFFICE DEPOT UK LTD,65.02,07/07/2017
Various,Various,Various,0040002163,OFFICE DEPOT UK LTD,63.25,07/07/2017
Various,Various,Various,0040002166,OFFICE DEPOT UK LTD,45.84,07/07/2017
Various,Various,Various,0040002169,OFFICE DEPOT UK LTD,182.36,07/07/2017
Various,Various,Various,0040002184,OFFICE DEPOT UK LTD,321.78,07/07/2017
Various,Various,Various,0040002190,OFFICE DEPOT UK LTD,25.93,07/07/2017
Various,Various,Various,0040002197,OFFICE DEPOT UK LTD,23.89,07/07/2017
Various,Various,Various,0040002229,OFFICE DEPOT UK LTD,59.54,07/07/2017
Various,Various,Various,0040002233,OFFICE DEPOT UK LTD,653.28,07/07/2017
Various,Various,Various,0040002237,OFFICE DEPOT UK LTD,3.85,07/07/2017
Various,Various,Various,0040002238,OFFICE DEPOT UK LTD,23.07,07/07/2017
Various,Various,Various,0040002247,OFFICE DEPOT UK LTD,284.56,07/07/2017
Various,Various,Various,0040002258,OFFICE DEPOT UK LTD,3.96,07/07/2017
Various,Various,Various,0040002262,OFFICE DEPOT UK LTD,50.76,07/07/2017
Various,Various,Various,0040002278,OFFICE DEPOT UK LTD,57.70,07/07/2017
Various,Various,Various,0040002280,OFFICE DEPOT UK LTD,653.28,07/07/2017
Various,Various,Various,0040002281,OFFICE DEPOT UK LTD,7.67,07/07/2017
Various,Various,Various,0040002282,OFFICE DEPOT UK LTD,248.52,07/07/2017
Various,Various,Various,0040002283,OFFICE DEPOT UK LTD,32.18,07/07/2017
Various,Various,Various,0040002284,OFFICE DEPOT UK LTD,42.18,07/07/2017
Various,Various,Various,0040002289,OFFICE DEPOT UK LTD,61.19,07/07/2017
Various,Various,Various,0040002300,OFFICE DEPOT UK LTD,39.52,07/07/2017
Various,Various,Various,0040002309,OFFICE DEPOT UK LTD,12.93,07/07/2017
Various,Various,Various,0040002312,OFFICE DEPOT UK LTD,233.30,07/07/2017
Various,Various,Various,0040002329,OFFICE DEPOT UK LTD,10.19,17/07/2017
Various,Various,Various,0040002331,OFFICE DEPOT UK LTD,97.14,17/07/2017
Various,Various,Various,0040002335,OFFICE DEPOT UK LTD,47.03,17/07/2017
Various,Various,Various,0040002336,OFFICE DEPOT UK LTD,37.98,17/07/2017
Various,Various,Various,0040002337,OFFICE DEPOT UK LTD,16.77,24/07/2017
Various,Various,Various,0040002338,OFFICE DEPOT UK LTD,43.60,17/07/2017
Various,Various,Various,0040002339,OFFICE DEPOT UK LTD,16.77,24/07/2017
Various,Various,Various,0040002340,OFFICE DEPOT UK LTD,3.43,17/07/2017
Various,Various,Various,0040002341,OFFICE DEPOT UK LTD,213.38,17/07/2017
Various,Various,Various,0040002342,OFFICE DEPOT UK LTD,32.03,24/07/2017
Various,Various,Various,0040002343,OFFICE DEPOT UK LTD,27.80,17/07/2017
Various,Various,Various,0040002347,OFFICE DEPOT UK LTD,1.90,17/07/2017
Various,Various,Various,0040002349,OFFICE DEPOT UK LTD,8.12,17/07/2017
Various,Various,Various,0040002350,OFFICE DEPOT UK LTD,155.79,17/07/2017
Various,Various,Various,0040002353,OFFICE DEPOT UK LTD,221.88,17/07/2017
Various,Various,Various,0040002356,OFFICE DEPOT UK LTD,213.38,17/07/2017
Various,Various,Various,0040002359,OFFICE DEPOT UK LTD,183.00,17/07/2017
Various,Various,Various,0040002363,OFFICE DEPOT UK LTD,14.83,17/07/2017
Various,Various,Various,0040002366,OFFICE DEPOT UK LTD,22.09,17/07/2017
Various,Various,Various,0040002369,OFFICE DEPOT UK LTD,18.81,17/07/2017
Various,Various,Various,0040002370,OFFICE DEPOT UK LTD,46.95,17/07/2017
Various,Various,Various,0060061006,GLS EDUCATIONAL SUPPLIES LTD,33.31,07/07/2017
Various,Various,Various,0060079393,EQUITA LTD HIGH COURT ENFORCEMENT,141.00,03/07/2017
Various,Various,Various,0060080861,MAIN MAN SUPPLIES LIMITED,61.00,05/07/2017
Various,Various,Various,0060081060,SSI SCHAEFER LTD,"13,820.60",06/07/2017
Various,Various,Various,0060081333,MAIN MAN SUPPLIES LIMITED,"1,219.00",06/07/2017
Various,Various,Various,0060081751,MAIN MAN SUPPLIES LIMITED,673.50,12/07/2017
Various,Various,Various,0060081951,PRIORITY ESTATES PROJECT LTD,"6,822.60",18/07/2017
Various,Various,Various,0060082501,EQUITA LTD HIGH COURT ENFORCEMENT,564.00,21/07/2017
Various,Various,Various,0060082579,EQUITA LTD HIGH COURT ENFORCEMENT,141.00,26/07/2017
Various,Various,Various,0060082732,GOWLING WLG,"9,995.70",27/07/2017
Various,Various,Various,0060082735,GOWLING WLG,"24,183.60",27/07/2017
Various,Various,Various,0060082736,GOWLING WLG,"2,656.52",27/07/2017
Various,Various,Various,0060082878,HAGS PLAY LTD,"9,078.50",20/07/2017
Various,Various,Various,0060082961,PRIORITY ESTATES PROJECT LTD,"7,776.78",18/07/2017
Various,Various,Various,0060083314,STORM ENVIRONMENTAL LTD,"1,678.00",17/07/2017
Various,Various,Various,0060083434,SUMMERCOURT HOLDINGS LTD,"5,000.00",19/07/2017
Various,Various,Various,0060083485,STORM ENVIRONMENTAL LTD,"1,592.00",19/07/2017
Various,Various,Various,0060083516,WILLMOTT DIXON CONSTRUCTION LTD,"439,919.00",21/07/2017
Various,Various,Various,0060083526,ACORN CARE & EDUCATION,"66,442.66",27/07/2017
Various,Various,Various,0060084244,HERTEL (UK) LTD,34.91,31/07/2017
Various,Various,Various,0070049113,24 SEVEN FOSTERING SERVICES,"18,369.43",13/07/2017
Various,Various,Various,0070049592,NORTH & EAST LONDON CARE LTD,491.06,25/07/2017
Various,Various,Various,0070049593,NORTH & EAST LONDON CARE LTD,430.11,25/07/2017
Various,Various,Various,0070049594,NORTH & EAST LONDON CARE LTD,861.00,25/07/2017
Various,Various,Various,0070049965,SPECIAL PEOPLE,"10,358.30",07/07/2017
Various,Various,Various,0070049972,LCS PARTNERSHIPS LTD,571.43,12/07/2017
Various,Various,Various,0070049984,ELIALI MPC LTD,"9,000.00",27/07/2017
Various,Various,Various,0070049985,MERRYVALE SEMI-INDEPENDENT LTD,"5,231.68",27/07/2017
Various,Various,Various,0070049991,ELLIOTT LEIGH PROPERTY MANAGEMENT LTD,"3,134.98",07/07/2017
Various,Various,Various,0070049994,ESLAND NORTH LTD,"19,425.00",12/07/2017
Various,Various,Various,0070049997,SUNBEAM FOSTERING AGENCY LTD,"1,566.20",12/07/2017
Various,Various,Various,0070050001,NEO PROPERTIES (UK) LTD,"5,592.84",17/07/2017
Various,Various,Various,0070050008,ELLIOTT LEIGH PROPERTY MANAGEMENT LTD,"3,033.85",25/07/2017
Various,Various,Various,0070050362,HOUSING PLUS LTD,"16,443.73",19/07/2017
Various,Various,Various,0070050363,SUNBEAM FOSTERING AGENCY LTD,"3,193.30",13/07/2017
Various,Various,Various,0070050364,SUNBEAM FOSTERING AGENCY LTD,"6,413.21",13/07/2017
Various,Various,Various,0070050365,SUNBEAM FOSTERING AGENCY LTD,"3,033.65",27/07/2017
Various,Various,Various,0070050366,SUNBEAM FOSTERING AGENCY LTD,"3,033.65",27/07/2017
Various,Various,Various,0070050373,NATIONAL FOSTERING AGENCY,"44,750.50",27/07/2017
Various,Various,Various,0070050378,TEEN SUPPORT SERVICES LTD,"4,213.58",13/07/2017
Various,Various,Various,0070050379,OPTIONS CENTRAL SERVICES LTD,"52,128.57",28/07/2017
Various,Various,Various,0070050386,NORTH & EAST LONDON CARE LTD,"3,824.08",13/07/2017
Various,Various,Various,0070050387,NORTH & EAST LONDON CARE LTD,"3,676.71",13/07/2017
Various,Various,Various,0070050388,NORTH & EAST LONDON CARE LTD,"4,728.87",13/07/2017
Various,Various,Various,0070050389,NORTH & EAST LONDON CARE LTD,"4,750.03",13/07/2017
Various,Various,Various,0070050391,NORTH & EAST LONDON CARE LTD,"3,662.86",13/07/2017
Various,Various,Various,0070050392,NORTH & EAST LONDON CARE LTD,"3,941.28",13/07/2017
Various,Various,Various,0070050393,NORTH & EAST LONDON CARE LTD,"3,676.71",13/07/2017
Various,Various,Various,0070050394,NORTH & EAST LONDON CARE LTD,"4,058.57",13/07/2017
Various,Various,Various,0070050924,LEXTOX,"1,154.25",26/07/2017
Various,Various,Various,0070050925,HEXAGON CARE SERVICES LTD,"4,077.14",26/07/2017
Various,Various,Various,0070050927,DORMWELL T/A STREET SUPPORT LTD,"5,000.00",26/07/2017
Various,Various,Various,0070050928,DORMWELL T/A STREET SUPPORT LTD,"6,000.00",26/07/2017
Various,Various,Various,0070051276,INTEGRATED SERVICES PROGRAMME,"11,209.29",28/07/2017
Various,Various,Various,0070051278,TIME FOR CHILDREN LTD,"3,003.90",27/07/2017
Various,Various,Various,0070051279,TIME FOR CHILDREN LTD,"3,003.90",27/07/2017
Various,Various,Various,0070051285,CHILDREN FIRST FOSTERING AGENCY LTD,"5,340.86",27/07/2017
Various,Various,Various,0070051289,BY THE BRIDGE LTD,"8,496.00",28/07/2017
Various,Various,Various,0070051314,DORMWELL T/A STREET SUPPORT LTD,"3,815.08",27/07/2017
Various,Various,Various,0070051330,AGAPE4ALL LTD,"18,509.71",27/07/2017
Various,Various,Various,0080009436,VODAFONE LTD (BILLS ONLY),"4,546.98",20/07/2017
Various,Various,Various,0080011723,GOWLING WLG,"1,075.92",28/07/2017
Various,Various,Various,0080011726,GOWLING WLG,234.83,28/07/2017
Various,Various,Various,0090007258,THORNDENE LTD,"3,163.89",11/07/2017
Various,Various,Various,0090008441,CITIBANK NA LONDON,492.40,14/07/2017
Various,Various,Various,0090008484,CITIBANK NA LONDON,98.20,14/07/2017
Various,Various,Various,0090009185,THORNDENE LTD,"3,269.35",18/07/2017
Various,Various,Various,0090010096,SENSE CAS FINANCE TEAM,"6,878.67",21/07/2017
Various,Various,Various,0090010097,SENSE CAS FINANCE TEAM,"7,611.52",21/07/2017
Various,Various,Various,0090010098,SENSE CAS FINANCE TEAM,"7,365.99",21/07/2017
Various,Various,Various,0090010610,CITIBANK NA LONDON,241.12,24/07/2017
Various,Various,Various,0090011131,SGSL LTD,"3,012.00",25/07/2017
Various,Various,Various,0060083670,MIXED FOUNDATIONS,"6,300.00",21/07/2017
Various,Various,Various,0060083699,MIXED FOUNDATIONS,"3,150.00",21/07/2017
Various,Various,Various,0060083750,MIXED FOUNDATIONS,"5,400.00",21/07/2017
Various,Various,Various,0030167021,HERTFORDSHIRE COUNTY COUNCIL,"25,344.13",12/07/2017
Various,Various,Various,0060081831,KENT COUNTY COUNCIL (KCS),593.85,13/07/2017
Various,Various,Various,0060082858,HERTFORDSHIRE SUPPLIES   COUNTY CO,129.55,19/07/2017
Various,Various,Various,0060082895,HERTFORDSHIRE SUPPLIES   COUNTY CO,86.31,11/07/2017
Various,Various,Various,0070050376,LONDON BOROUGH OF HACKNEY,"5,089.15",13/07/2017
Various,Various,Various,0080011301,LONDON BOROUGH OF BRENT,"304,994.93",17/07/2017
Various,Various,Various,0080011322,THE INFORMATION COMMISSIONER,70.00,07/07/2017
Various,Various,Various,0080011451,THE INFORMATION COMMISSIONER,245.00,14/07/2017
Various,Various,Various,0080011456,THE INFORMATION COMMISSIONER,595.00,14/07/2017
Various,Various,Various,0020034308,LBB WINGFIELD CHILDRENS CENTRE IMPR,28.91,17/07/2017
Various,Various,Various,0060077750,BRITISH TELECOMMUNICATIONS PLC,95.89,28/07/2017
Various,Various,Various,0060081556,BRITISH TELECOM PLC,95.89,12/07/2017
Various,Various,Various,0060082105,BRITISH TELECOM PLC,100.39,13/07/2017
Various,Various,Various,0060082250,BRITISH TELECOM PLC,95.89,13/07/2017
Various,Various,Various,0060082257,BRITISH TELECOM PLC,95.89,13/07/2017
Various,Various,Various,0020034324,MENORAH HIGH SCHOOL FOR GIRLS,"108,837.00",24/07/2017
Various,Various,Various,0030167139,KISHARON DAY SCHOOL,"2,476.32",17/07/2017
Various,Various,Various,0030167140,KISHARON DAY SCHOOL,"2,478.84",17/07/2017
Various,Various,Various,0030167141,KISHARON DAY SCHOOL,"4,234.16",17/07/2017
Various,Various,Various,0030167912,KISHARON DAY SCHOOL,160.00,26/07/2017
Various,Various,Various,0030167946,THE HARINGTON SCHEME,168.00,26/07/2017
Various,Various,Various,0060084048,YOUNG EPILEPSY,"17,793.82",26/07/2017
Various,Various,Various,0090008581,NORWOOD RAVENSWOOD SCHOOLS LTD,"6,125.40",14/07/2017
Various,Various,Various,0090008582,NORWOOD RAVENSWOOD SCHOOLS LTD,"4,253.40",14/07/2017
Various,Various,Various,0090008583,NORWOOD RAVENSWOOD SCHOOLS LTD,"5,401.40",14/07/2017
Various,Various,Various,0090008584,NORWOOD RAVENSWOOD SCHOOLS LTD,"7,250.20",14/07/2017
Various,Various,Various,0090008585,NORWOOD RAVENSWOOD SCHOOLS LTD,"4,801.40",14/07/2017
Various,Various,Various,0090008586,NORWOOD RAVENSWOOD SCHOOLS LTD,"4,386.20",14/07/2017
Various,Various,Various,0090008587,NORWOOD RAVENSWOOD SCHOOLS LTD,"6,745.40",14/07/2017
Various,Various,Various,0090008588,NORWOOD RAVENSWOOD SCHOOLS LTD,"7,875.40",14/07/2017
Various,Various,Various,0090008590,NORWOOD RAVENSWOOD SCHOOLS LTD,"7,213.40",14/07/2017
Various,Various,Various,0090008591,NORWOOD RAVENSWOOD SCHOOLS LTD,"6,525.40",14/07/2017
Various,Various,Various,0090008592,NORWOOD RAVENSWOOD SCHOOLS LTD,"3,974.20",14/07/2017
Various,Various,Various,0090008593,NORWOOD RAVENSWOOD SCHOOLS LTD,"4,170.20",14/07/2017
Various,Various,Various,0090008594,NORWOOD RAVENSWOOD SCHOOLS LTD,"3,786.20",14/07/2017
Various,Various,Various,0090008595,NORWOOD RAVENSWOOD SCHOOLS LTD,"3,694.20",14/07/2017
Various,Various,Various,0090008596,NORWOOD RAVENSWOOD SCHOOLS LTD,"3,829.40",14/07/2017
Various,Various,Various,0090008597,NORWOOD RAVENSWOOD SCHOOLS LTD,"12,433.40",14/07/2017
Various,Various,Various,0090008598,NORWOOD RAVENSWOOD SCHOOLS LTD,"5,329.40",14/07/2017
Various,Various,Various,0090008599,NORWOOD RAVENSWOOD SCHOOLS LTD,"6,930.20",14/07/2017
Various,Various,Various,0090008600,NORWOOD RAVENSWOOD SCHOOLS LTD,"3,557.40",14/07/2017
Various,Various,Various,0090008601,NORWOOD RAVENSWOOD SCHOOLS LTD,"4,825.40",14/07/2017
Various,Various,Various,0090008602,NORWOOD RAVENSWOOD SCHOOLS LTD,"8,111.40",14/07/2017
Various,Various,Various,0090008603,NORWOOD RAVENSWOOD SCHOOLS LTD,"6,151.40",14/07/2017
Various,Various,Various,0090008604,NORWOOD RAVENSWOOD SCHOOLS LTD,"5,653.40",14/07/2017
Various,Various,Various,0090008605,NORWOOD RAVENSWOOD SCHOOLS LTD,"8,077.40",14/07/2017
Various,Various,Various,0090008606,NORWOOD RAVENSWOOD SCHOOLS LTD,"6,041.40",14/07/2017
Various,Various,Various,0090008607,NORWOOD RAVENSWOOD SCHOOLS LTD,"7,517.40",14/07/2017
Various,Various,Various,0090009453,THE GRANGE,"1,383.12",18/07/2017
Various,Various,Various,0090009877,NORWOOD RAVENSWOOD SCHOOLS LTD,"4,953.60",20/07/2017
Various,Various,Various,0030166741,ACTION ON HEARING LOSS,"2,446.64",03/07/2017
Various,Various,Various,0030166742,ACTION ON HEARING LOSS,"2,446.64",03/07/2017
Various,Various,Various,0030166743,ACTION ON HEARING LOSS,873.80,03/07/2017
Various,Various,Various,0030167096,DIMENSIONS UK,"5,617.48",13/07/2017
Various,Various,Various,0030167798,AGE CONCERN,"61,666.66",24/07/2017
Various,Various,Various,0030167926,SCOPE,292.00,26/07/2017
Various,Various,Various,0070050380,BARNARDOS (WATER LANE),"6,428.54",13/07/2017
Various,Various,Various,0070050381,BARNARDOS (WATER LANE),"15,384.98",13/07/2017
Various,Various,Various,0070050382,BARNARDOS (WATER LANE),"14,747.40",20/07/2017
Various,Various,Various,0070050922,APPLE FOSTERING,"6,771.47",26/07/2017
Various,Various,Various,0070051277,SUPPORTED FOSTERING SERVICES,"10,319.94",27/07/2017
Various,Various,Various,0070051282,YOUTH JUSTICE BOARD,"10,266.00",27/07/2017
Various,Various,Various,0070051291,THE CALDECOTT FOUNDATION,"15,246.42",28/07/2017
Various,Various,Various,0090006961,ACTION ON HEARING LOSS,"2,431.64",04/07/2017
Various,Various,Various,0090007109,WALSINGHAM,"4,833.90",05/07/2017
Various,Various,Various,0090007110,SCOPE,"2,519.16",05/07/2017
Various,Various,Various,0090007479,DIMENSIONS UK,"5,602.48",12/07/2017
Various,Various,Various,0090007481,DIMENSIONS UK,"5,131.00",12/07/2017
Various,Various,Various,0090007483,DIMENSIONS UK,"5,131.00",12/07/2017
Various,Various,Various,0090007484,DIMENSIONS UK,"5,131.00",12/07/2017
Various,Various,Various,0090007486,DIMENSIONS UK,"3,021.62",12/07/2017
Various,Various,Various,0090007487,DIMENSIONS UK,"2,808.44",12/07/2017
Various,Various,Various,0090007506,DIMENSIONS UK,"2,901.22",12/07/2017
Various,Various,Various,0090009039,SCOPE,"2,772.64",18/07/2017
Various,Various,Various,0090009158,ST ELIZABETHS CENTRE,"10,099.49",18/07/2017
Various,Various,Various,0090009429,SCOPE,"2,683.20",18/07/2017
Various,Various,Various,0090009434,DIMENSIONS UK,"3,021.62",18/07/2017
Various,Various,Various,0090009435,DIMENSIONS UK,"2,808.44",18/07/2017
Various,Various,Various,0090009436,DIMENSIONS UK,"2,724.54",18/07/2017
Various,Various,Various,0090009438,DIMENSIONS UK,"2,901.22",18/07/2017
Various,Various,Various,0090009500,HOFFMAN FOUNDATION FOR AUTISM,"5,684.56",28/07/2017
Various,Various,Various,0090009501,HOFFMAN FOUNDATION FOR AUTISM,"4,745.24",28/07/2017
Various,Various,Various,0090009502,HOFFMAN FOUNDATION FOR AUTISM,"4,846.64",28/07/2017
Various,Various,Various,0090009503,HOFFMAN FOUNDATION FOR AUTISM,"4,846.64",28/07/2017
Various,Various,Various,0090009504,HOFFMAN FOUNDATION FOR AUTISM,"4,384.84",28/07/2017
Various,Various,Various,0090009522,SCOPE,"2,772.64",19/07/2017
Various,Various,Various,0090009541,HOFFMAN FOUNDATION FOR AUTISM,"5,684.56",28/07/2017
Various,Various,Various,0090009542,HOFFMAN FOUNDATION FOR AUTISM,"4,745.24",28/07/2017
Various,Various,Various,0090009543,HOFFMAN FOUNDATION FOR AUTISM,"4,846.64",28/07/2017
Various,Various,Various,0090009544,HOFFMAN FOUNDATION FOR AUTISM,"4,846.64",28/07/2017
Various,Various,Various,0090009545,HOFFMAN FOUNDATION FOR AUTISM,"4,384.84",28/07/2017
Various,Various,Various,0090009947,SELF UNLIMITED-LONDON REGION,"2,849.27",21/07/2017
Various,Various,Various,0090009948,SELF UNLIMITED-LONDON REGION,"1,641.04",21/07/2017
Various,Various,Various,0090010040,ELIZABETH FITZROY SUPPORT,"4,537.96",21/07/2017
Various,Various,Various,0090010890,HOFFMAN FOUNDATION FOR AUTISM,"6,464.16",25/07/2017
Various,Various,Various,0090010892,HOFFMAN FOUNDATION FOR AUTISM,"6,464.16",25/07/2017
Various,Various,Various,0090010894,HOFFMAN FOUNDATION FOR AUTISM,"6,464.16",25/07/2017
Various,Various,Various,0090010895,DIMENSIONS UK,912.00,25/07/2017
Various,Various,Various,0090010896,DIMENSIONS UK,912.00,25/07/2017
Various,Various,Various,0090010898,DIMENSIONS UK,912.00,25/07/2017
Various,Various,Various,0090011067,ELIZABETH FITZROY SUPPORT,"4,633.97",25/07/2017
Various,Various,Various,0090011068,ELIZABETH FITZROY SUPPORT,"4,484.49",25/07/2017
Various,Various,Various,0090011069,ELIZABETH FITZROY SUPPORT,"4,633.97",25/07/2017
Various,Various,Various,0090011070,ELIZABETH FITZROY SUPPORT,"4,860.82",25/07/2017
Various,Various,Various,0090011071,ELIZABETH FITZROY SUPPORT,"5,022.84",25/07/2017
Various,Various,Various,0090011260,HOFFMAN FOUNDATION FOR AUTISM,"6,464.16",28/07/2017
Various,Various,Various,0090011408,ROYAL MENCAP SOCIETY,"1,808.72",31/07/2017
Various,Various,Various,0090011432,ROYAL MENCAP SOCIETY,"1,808.72",31/07/2017
Various,Various,Various,0090011433,ROYAL MENCAP SOCIETY,"1,808.72",31/07/2017
Various,Various,Various,0070048283,EXCLUSIVE SECURE CARE SERVICES,"2,987.00",10/07/2017
Various,Various,Various,0030166750,MILBURY,"2,414.56",03/07/2017
Various,Various,Various,0090011461,MILBURY,"6,144.16",31/07/2017
Various,Various,Various,0030166744,TWO RIVERS,"13,100.00",03/07/2017
Various,Various,Various,0090008562,SUNRIDGE HOUSING ASSOCIATION LTD,"1,444.76",14/07/2017
Various,Various,Various,0090009971,AGUDAS ISRAEL HOUSING ASSCTN LTD,"2,638.08",21/07/2017
Various,Various,Various,0090011367,SOUTHDOWN HOUSING ASSOC. LIMITED,"3,837.00",28/07/2017
Various,Various,Various,0090011368,SOUTHDOWN HOUSING ASSOC. LIMITED,"3,837.00",28/07/2017
Various,Various,Various,0030165684,WESTMINSTER HOMECARE LTD,(19.75),27/07/2017
Various,Various,Various,0030166745,VOYAGE CARE,346.10,18/07/2017
Various,Various,Various,0030166746,VOYAGE CARE,459.30,18/07/2017
Various,Various,Various,0030166747,VOYAGE CARE,296.32,18/07/2017
Various,Various,Various,0030166749,VOYAGE CARE,"2,466.05",18/07/2017
Various,Various,Various,0030166751,VOYAGE CARE,"2,095.41",18/07/2017
Various,Various,Various,0030166761,FOCUS CARE LINK LTD,"1,106.82",03/07/2017
Various,Various,Various,0030166762,FOCUS CARE LINK LTD,"2,143.98",03/07/2017
Various,Various,Various,0030166763,FOCUS CARE LINK LTD,526.32,03/07/2017
Various,Various,Various,0030166764,FOCUS CARE LINK LTD,"2,840.58",03/07/2017
Various,Various,Various,0030166765,FOCUS CARE LINK LTD,297.99,03/07/2017
Various,Various,Various,0030166766,FOCUS CARE LINK LTD,"2,728.35",03/07/2017
Various,Various,Various,0030166767,FOCUS CARE LINK LTD,441.18,03/07/2017
Various,Various,Various,0030166768,FOCUS CARE LINK LTD,"2,546.46",03/07/2017
Various,Various,Various,0030166769,FOCUS CARE LINK LTD,541.80,03/07/2017
Various,Various,Various,0030166770,FOCUS CARE LINK LTD,"2,399.40",03/07/2017
Various,Various,Various,0030166771,FOCUS CARE LINK LTD,781.74,03/07/2017
Various,Various,Various,0030166772,FOCUS CARE LINK LTD,"1,807.29",03/07/2017
Various,Various,Various,0030166775,HILLVIEW COURT NURSING HOME,969.70,03/07/2017
Various,Various,Various,0030166892,WESTMINSTER HEALTH CARE LTD,993.56,04/07/2017
Various,Various,Various,0030166893,BRADBURY HOUSE ORGANISATION,200.28,04/07/2017
Various,Various,Various,0030166896,BARNET CARERS CENTRE,43.95,04/07/2017
Various,Various,Various,0030166988,FREMANTLE TRUST,"6,009.60",11/07/2017
Various,Various,Various,0030166990,HARTWIG CARE LIMITED,"12,922.98",11/07/2017
Various,Various,Various,0030166991,HARTWIG CARE LIMITED,"12,208.42",11/07/2017
Various,Various,Various,0030166992,HARTWIG CARE LIMITED,"15,704.08",11/07/2017
Various,Various,Various,0030166993,HARTWIG CARE LIMITED,"9,301.46",11/07/2017
Various,Various,Various,0030167114,THE EXTRA MILE CARE CO LTD,"7,117.76",14/07/2017
Various,Various,Various,0030167116,CARE UK COMMUNITY PARTNERSHIPS,221.07,14/07/2017
Various,Various,Various,0030167135,DANA CARE LIMITED,"7,063.04",17/07/2017
Various,Various,Various,0030167537,RESPECT CARE SERVICES LTD,"4,786.23",20/07/2017
Various,Various,Various,0030167538,RESPECT CARE SERVICES LTD,"9,140.90",20/07/2017
Various,Various,Various,0030167539,RESPECT CARE SERVICES LTD,"5,714.13",20/07/2017
Various,Various,Various,0030167540,RESPECT CARE SERVICES LTD,"5,305.50",20/07/2017
Various,Various,Various,0030167699,NAZARETH HOUSE,213.82,21/07/2017
Various,Various,Various,0030167920,WESTMINSTER HOMECARE LTD,"9,665.65",27/07/2017
Various,Various,Various,0030167921,WESTMINSTER HOMECARE LTD,"22,388.60",27/07/2017
Various,Various,Various,0030167922,WESTMINSTER HOMECARE LTD,"23,158.85",27/07/2017
Various,Various,Various,0030167923,WESTMINSTER HOMECARE LTD,"9,282.50",27/07/2017
Various,Various,Various,0030167924,WESTMINSTER HOMECARE LTD,"11,000.75",27/07/2017
Various,Various,Various,0030167925,WESTMINSTER HOMECARE LTD,"4,451.65",27/07/2017
Various,Various,Various,0030167930,ENARA COMMUNITY CARE,"15,314.47",26/07/2017
Various,Various,Various,0030167931,ENARA COMMUNITY CARE,"7,719.56",26/07/2017
Various,Various,Various,0030167932,ENARA COMMUNITY CARE,"4,568.16",26/07/2017
Various,Various,Various,0030167933,ENARA COMMUNITY CARE,"15,727.75",26/07/2017
Various,Various,Various,0030167934,ENARA COMMUNITY CARE,"15,241.33",26/07/2017
Various,Various,Various,0030167935,ENARA COMMUNITY CARE,"7,056.50",26/07/2017
Various,Various,Various,0030167936,ENARA COMMUNITY CARE,"15,172.46",26/07/2017
Various,Various,Various,0030167937,ENARA COMMUNITY CARE,"7,650.69",26/07/2017
Various,Various,Various,0030167947,NAZARETH HOUSE,"1,496.72",26/07/2017
Various,Various,Various,0030168183,HFH HEALTHCARE LTD,"4,402.74",28/07/2017
Various,Various,Various,0070049560,THEMI CARE LTD,"4,169.27",07/07/2017
Various,Various,Various,0070049969,THEMI CARE LTD,162.88,07/07/2017
Various,Various,Various,0070049970,THEMI CARE LTD,248.14,07/07/2017
Various,Various,Various,0070050374,BRIGHTER FUTURES FOSTERCARE,"3,113.28",13/07/2017
Various,Various,Various,0070050889,THEMI CARE LTD,"3,591.00",24/07/2017
Various,Various,Various,0070050890,THEMI CARE LTD,"3,591.00",24/07/2017
Various,Various,Various,0070050891,THEMI CARE LTD,"3,710.70",24/07/2017
Various,Various,Various,0070050892,THEMI CARE LTD,"3,675.57",24/07/2017
Various,Various,Various,0070050893,THEMI CARE LTD,"3,519.56",24/07/2017
Various,Various,Various,0070050901,THEMI CARE LTD,"3,513.57",24/07/2017
Various,Various,Various,0070050902,THEMI CARE LTD,"3,478.57",24/07/2017
Various,Various,Various,0070050903,THEMI CARE LTD,"3,976.71",24/07/2017
Various,Various,Various,0070051294,CAPITAL CARE & FOSTER LTD,"7,307.06",27/07/2017
Various,Various,Various,0090006377,VOYAGE CARE,"4,845.34",18/07/2017
Various,Various,Various,0090006378,VOYAGE CARE,"1,477.52",18/07/2017
Various,Various,Various,0090006381,VOYAGE CARE,"3,811.15",18/07/2017
Various,Various,Various,0090006383,VOYAGE CARE,"6,430.20",18/07/2017
Various,Various,Various,0090006384,VOYAGE CARE,"4,148.42",18/07/2017
Various,Various,Various,0090006956,PILLARCARE,"2,322.00",03/07/2017
Various,Various,Various,0090006962,RESIDENTIAL CARE PROVIDERS LTD,"7,477.30",04/07/2017
Various,Various,Various,0090007092,ST RAPHAELS HOME,"1,778.79",05/07/2017
Various,Various,Various,0090007112,GLOUCESTERSHIRE GROUP HOMES,"3,040.12",05/07/2017
Various,Various,Various,0090007150,GLOUCESTERSHIRE GROUP HOMES,"3,356.50",10/07/2017
Various,Various,Various,0090007151,GLOUCESTERSHIRE GROUP HOMES,"3,248.23",10/07/2017
Various,Various,Various,0090007250,ASHGALE HOUSE,"3,736.74",11/07/2017
Various,Various,Various,0090007251,ASHGALE HOUSE,"3,616.20",11/07/2017
Various,Various,Various,0090008539,WILLOW CARE HOMES,"4,581.00",14/07/2017
Various,Various,Various,0090008576,METHODIST HOMES FOR THE AGED,"1,816.72",14/07/2017
Various,Various,Various,0090008820,IVER HOUSE LTD,"2,251.06",17/07/2017
Various,Various,Various,0090009141,RESPECT CARE SERVICES LTD,189.76,18/07/2017
Various,Various,Various,0090009149,RESPECT CARE SERVICES LTD,575.34,18/07/2017
Various,Various,Various,0090009182,GLOUCESTERSHIRE GROUP HOMES,"3,356.50",18/07/2017
Various,Various,Various,0090009187,VOYAGE CARE,"5,312.53",28/07/2017
Various,Various,Various,0090009235,PARKCARE HOMES (NO2) LIMITED,"5,341.08",18/07/2017
Various,Various,Various,0090009236,PARKCARE HOMES (NO2) LIMITED,"4,623.96",18/07/2017
Various,Various,Various,0090009237,PARKCARE HOMES (NO2) LIMITED,"4,991.75",18/07/2017
Various,Various,Various,0090009238,PARKCARE HOMES (NO2) LIMITED,"4,903.62",18/07/2017
Various,Various,Various,0090009239,PARKCARE HOMES (NO2) LIMITED,"4,637.29",18/07/2017
Various,Various,Various,0090009262,BRADBURY HOUSE ORGANISATION,"3,103.10",18/07/2017
Various,Various,Various,0090009440,CRESWICK HOUSE,"3,285.36",18/07/2017
Various,Various,Various,0090009443,LILAS HOUSE,"2,251.32",24/07/2017
Various,Various,Various,0090009444,MANDELA HOUSE,"3,727.36",24/07/2017
Various,Various,Various,0090009445,TREEHAVEN,"6,582.32",24/07/2017
Various,Various,Various,0090009446,TREEHAVEN,"5,648.88",24/07/2017
Various,Various,Various,0090009448,WESTBROOK HOUSE,"3,763.56",24/07/2017
Various,Various,Various,0090009458,ELM PARK LODGE,"1,459.46",18/07/2017
Various,Various,Various,0090009513,CARETECH COMMUNITY SERVICES LTD,"5,567.82",28/07/2017
Various,Various,Various,0090009514,CARETECH COMMUNITY SERVICES LTD,"4,523.21",28/07/2017
Various,Various,Various,0090009519,CARETECH COMMUNITY SERVICES LTD,"4,613.64",28/07/2017
Various,Various,Various,0090009569,JEWISH CARE,"1,596.04",19/07/2017
Various,Various,Various,0090009570,JEWISH CARE,"2,957.40",19/07/2017
Various,Various,Various,0090010042,PARKCARE HOMES (NO2) LIMITED,"5,168.79",21/07/2017
Various,Various,Various,0090010043,PARKCARE HOMES (NO2) LIMITED,"4,474.80",21/07/2017
Various,Various,Various,0090010044,PARKCARE HOMES (NO2) LIMITED,"4,487.70",21/07/2017
Various,Various,Various,0090010045,PARKCARE HOMES (NO2) LIMITED,"4,745.44",21/07/2017
Various,Various,Various,0090010046,PARKCARE HOMES (NO2) LIMITED,"4,830.73",21/07/2017
Various,Various,Various,0090010120,HILTON LODGE LTD.,"1,414.16",21/07/2017
Various,Various,Various,0090010123,HILTON LODGE LTD.,"1,633.80",21/07/2017
Various,Various,Various,0090010781,ALLIED HEALTHCARE LTD,156.96,25/07/2017
Various,Various,Various,0090010824,ALLIED HEALTHCARE LTD,135.16,25/07/2017
Various,Various,Various,0090010857,ALLIED HEALTHCARE LTD,47.96,25/07/2017
Various,Various,Various,0090010956,WESTMINSTER HOMECARE LTD,221.20,27/07/2017
Various,Various,Various,0090010958,WESTMINSTER HOMECARE LTD,165.90,27/07/2017
Various,Various,Various,0090010976,ALLIED HEALTHCARE LTD,122.08,25/07/2017
Various,Various,Various,0090011035,MACINTYRE CARE,"3,736.48",25/07/2017
Various,Various,Various,0090011043,HILTON LODGE LTD.,"1,414.16",25/07/2017
Various,Various,Various,0090011044,HILTON LODGE LTD.,"1,633.80",25/07/2017
Various,Various,Various,0090011282,TREEHAVEN,"6,582.32",27/07/2017
Various,Various,Various,0090011283,TREEHAVEN,"6,112.45",27/07/2017
Various,Various,Various,0090011291,FRIERN RESIDENTIAL CARE HOME,"1,621.48",27/07/2017
Various,Various,Various,0090011292,FRIERN RESIDENTIAL CARE HOME,"1,745.70",27/07/2017
Various,Various,Various,0090011293,FRIERN RESIDENTIAL CARE HOME,664.95,27/07/2017
Various,Various,Various,0090011308,HILTON LODGE LTD.,758.18,27/07/2017
Various,Various,Various,0090011309,HILTON LODGE LTD.,664.04,27/07/2017
Various,Various,Various,0090011458,VOYAGE CARE,"6,262.20",31/07/2017
Various,Various,Various,0090011460,VOYAGE CARE,"5,500.32",31/07/2017
Corporate Accounting,Corporate Accounting,Refunds,0080010750,MOTT MACDONALD LTD/CAMBRIDGE EDUCATION,852.00,11/07/2017
Corporate Accounting,Corporate Accounting,Refunds,0080010752,MOTT MACDONALD LTD/CAMBRIDGE EDUCATION,450.00,11/07/2017
Corporate Accounting,Corporate Accounting,Refunds,0080010755,MOTT MACDONALD LTD/CAMBRIDGE EDUCATION,540.00,11/07/2017
Corporate Accounting,Corporate Accounting,Refunds,0080010936,MOTT MACDONALD LTD/CAMBRIDGE EDUCATION,378.00,14/07/2017
Corporate Accounting,Corporate Accounting,Refunds,0080011070,MOTT MACDONALD LTD/CAMBRIDGE EDUCATION,180.00,14/07/2017
Corporate Accounting,Corporate Accounting,Refunds,0080011079,MOTT MACDONALD LTD/CAMBRIDGE EDUCATION,144.00,14/07/2017
Corporate Accounting,Corporate Accounting,Refunds,0080011081,MOTT MACDONALD LTD/CAMBRIDGE EDUCATION,"2,535.00",14/07/2017
Corporate Accounting,Corporate Accounting,Refunds,0080011442,MOTT MACDONALD LTD/CAMBRIDGE EDUCATION,"2,200.00",20/07/2017
Corporate Accounting,Corporate Accounting,Refunds,0080011494,MOTT MACDONALD LTD/CAMBRIDGE EDUCATION,"3,770.00",21/07/2017
Corporate Accounting,Corporate Accounting,Refunds,0080011555,MOTT MACDONALD LTD/CAMBRIDGE EDUCATION,"1,809.99",27/07/2017
Corporate Accounting,Corporate Accounting,Refunds,0080011561,MOTT MACDONALD LTD/CAMBRIDGE EDUCATION,"8,407.00",27/07/2017
Corporate Accounting,Corporate Accounting,Refunds,0080011568,MOTT MACDONALD LTD/CAMBRIDGE EDUCATION,420.00,27/07/2017
Corporate Accounting,Corporate Accounting,Refunds,0080011569,MOTT MACDONALD LTD/CAMBRIDGE EDUCATION,216.00,27/07/2017
Corporate Accounting,Corporate Accounting,Refunds,0080011571,MOTT MACDONALD LTD/CAMBRIDGE EDUCATION,"2,997.72",27/07/2017
Corporate Accounting,Corporate Accounting,Refunds,0080011578,MOTT MACDONALD LTD/CAMBRIDGE EDUCATION,"1,440.00",27/07/2017
Corporate Accounting,Corporate Accounting,Refunds,0080011615,MOTT MACDONALD LTD/CAMBRIDGE EDUCATION,"2,521.87",27/07/2017
Delivery Units,Streetscene,Operating Leases - Transport,0060080301,DENNIS EAGLE,"7,297.22",20/07/2017
Delivery Units,Streetscene,Operating Leases - Transport,0060082188,DENNIS EAGLE,"3,099.50",03/07/2017
Delivery Units,Streetscene,Operating Leases - Transport,0060082248,DENNIS EAGLE,169.47,26/07/2017
Delivery Units,Streetscene,Operating Leases - Transport,0060082258,DENNIS EAGLE,85.50,26/07/2017
Delivery Units,Streetscene,Operating Leases - Transport,0060082274,DENNIS EAGLE,283.75,26/07/2017
Delivery Units,Streetscene,Operating Leases - Transport,0060082283,DENNIS EAGLE,324.00,26/07/2017
Delivery Units,Streetscene,Operating Leases - Transport,0060083774,DENNIS EAGLE,567.90,25/07/2017
Delivery Units,Streetscene,Operating Leases - Transport,0060083783,DENNIS EAGLE,65.38,25/07/2017
Delivery Units,Streetscene,Operating Leases - Transport,0060083974,DENNIS EAGLE,"4,701.76",28/07/2017
Delivery Units,Streetscene,Building Repairs & Maintenance,0060082388,ACTIVE ENVIRONMENTAL MANAGEMENT LTD,"9,239.00",19/07/2017
Assurance,Assurance,Other Services,0080011064,REDACTED - PERSONAL DATA,80.53,05/07/2017
Assurance,Assurance,Professional Services,0060078794,REDACTED - PERSONAL DATA,75.00,05/07/2017
Assurance,Assurance,Other Indirect Employee Expens,0080011215,REDACTED - PERSONAL DATA,200.00,04/07/2017
Assurance,Assurance,Professional Services,0060082087,REDACTED - PERSONAL DATA,300.00,04/07/2017
Assurance,Assurance,Professional Services,0060082353,REDACTED - PERSONAL DATA,300.00,11/07/2017
Commercial,Customer Support Group,Fees and Charges,0080011469,REDACTED - PERSONAL DATA,150.00,24/07/2017
Commercial,HRA,Private Contractors - Third Pa,0020034230,REDACTED - PERSONAL DATA,"1,280.04",04/07/2017
Commercial,HRA,Private Contractors - Third Pa,0020034297,REDACTED - PERSONAL DATA,"2,833.84",12/07/2017
Commercial,HRA,Private Contractors - Third Pa,0020034306,REDACTED - PERSONAL DATA,"1,360.12",17/07/2017
Commercial,HRA,Private Contractors - Third Pa,0020034325,REDACTED - PERSONAL DATA,"1,500.00",17/07/2017
Commercial,HRA,Private Contractors - Third Pa,0020034326,REDACTED - PERSONAL DATA,"1,500.00",17/07/2017
Commercial,Regional Enterprise,Grant Payments,0080011246,REDACTED - PERSONAL DATA,"3,978.00",05/07/2017
Commercial,Regional Enterprise,Grant Payments,0080011320,REDACTED - PERSONAL DATA,"15,000.00",11/07/2017
Commercial,Regional Enterprise,Grant Payments,0080011319,REDACTED - PERSONAL DATA,"6,091.27",11/07/2017
Commercial,Regional Enterprise,Grant Payments,0080011477,REDACTED - PERSONAL DATA,"5,865.00",19/07/2017
Commercial,Regional Enterprise,Grant Payments,0080011541,REDACTED - PERSONAL DATA,"4,936.00",19/07/2017
Commercial,Regional Enterprise,Grant Payments,0080011617,REDACTED - PERSONAL DATA,"4,987.50",24/07/2017
Commissioning,Commissioning,Other Services,0060082279,REDACTED - PERSONAL DATA,95.00,21/07/2017
Commissioning,Commissioning,Other Services,0060083642,REDACTED - PERSONAL DATA,300.00,21/07/2017
Commissioning,Commissioning,Health authorities - Third Par,0060076799,REDACTED - PERSONAL DATA,50.00,21/07/2017
Commissioning,Commissioning,Health authorities - Third Par,0060082494,REDACTED - PERSONAL DATA,25.00,27/07/2017
Commissioning,Commissioning,Consultants Fees,0080011341,REDACTED - PERSONAL DATA,450.00,11/07/2017
Delivery Units,Streetscene,Operating Leases - Transport,0060079785,REDACTED - PERSONAL DATA,149.52,13/07/2017
Delivery Units,Streetscene,Operating Leases - Transport,0060083049,REDACTED - PERSONAL DATA,66.08,27/07/2017
Various,Various,Various,0020034436,REDACTED - PERSONAL DATA,"1,671.39",14/07/2017
Various,Various,Various,0080011518,REDACTED - PERSONAL DATA,150.04,21/07/2017
Various,Various,Various,0080011684,REDACTED - PERSONAL DATA,822.54,27/07/2017
Various,Various,Various,0020034335,REDACTED - PERSONAL DATA,866.08,11/07/2017
Various,Various,Various,0020034336,REDACTED - PERSONAL DATA,"5,086.00",12/07/2017
Various,Various,Various,0020034337,REDACTED - PERSONAL DATA,"3,009.90",12/07/2017
Various,Various,Various,0020034338,REDACTED - PERSONAL DATA,"2,083.52",12/07/2017
Various,Various,Various,0020034339,REDACTED - PERSONAL DATA,"2,083.50",12/07/2017
Various,Various,Various,0020034435,REDACTED - PERSONAL DATA,"1,953.50",14/07/2017
Various,Various,Various,0070049612,REDACTED - PERSONAL DATA,"6,181.71",05/07/2017
Various,Various,Various,0070049614,REDACTED - PERSONAL DATA,"1,829.00",05/07/2017
Various,Various,Various,0070049615,REDACTED - PERSONAL DATA,"1,066.00",05/07/2017
Various,Various,Various,0070049617,REDACTED - PERSONAL DATA,533.00,05/07/2017
Various,Various,Various,0070049618,REDACTED - PERSONAL DATA,"1,066.00",05/07/2017
Various,Various,Various,0070049619,REDACTED - PERSONAL DATA,850.00,05/07/2017
Various,Various,Various,0070049622,REDACTED - PERSONAL DATA,474.00,05/07/2017
Various,Various,Various,0070049623,REDACTED - PERSONAL DATA,"1,198.00",05/07/2017
Various,Various,Various,0070049625,REDACTED - PERSONAL DATA,665.00,05/07/2017
Various,Various,Various,0070049627,REDACTED - PERSONAL DATA,808.14,05/07/2017
Various,Various,Various,0070049629,REDACTED - PERSONAL DATA,474.00,05/07/2017
Various,Various,Various,0070049631,REDACTED - PERSONAL DATA,636.86,05/07/2017
Various,Various,Various,0070049632,REDACTED - PERSONAL DATA,910.00,05/07/2017
Various,Various,Various,0070049633,REDACTED - PERSONAL DATA,149.83,05/07/2017
Various,Various,Various,0070049636,REDACTED - PERSONAL DATA,455.00,05/07/2017
Various,Various,Various,0070049637,REDACTED - PERSONAL DATA,304.85,05/07/2017
Various,Various,Various,0070049641,REDACTED - PERSONAL DATA,455.00,05/07/2017
Various,Various,Various,0070049642,REDACTED - PERSONAL DATA,"1,291.40",05/07/2017
Various,Various,Various,0070049643,REDACTED - PERSONAL DATA,851.00,05/07/2017
Various,Various,Various,0070049646,REDACTED - PERSONAL DATA,183.20,05/07/2017
Various,Various,Various,0070049649,REDACTED - PERSONAL DATA,910.00,05/07/2017
Various,Various,Various,0070049650,REDACTED - PERSONAL DATA,396.00,05/07/2017
Various,Various,Various,0070049651,REDACTED - PERSONAL DATA,665.00,05/07/2017
Various,Various,Various,0070049652,REDACTED - PERSONAL DATA,455.00,05/07/2017
Various,Various,Various,0070049656,REDACTED - PERSONAL DATA,433.00,05/07/2017
Various,Various,Various,0070049657,REDACTED - PERSONAL DATA,"2,023.44",05/07/2017
Various,Various,Various,0070049660,REDACTED - PERSONAL DATA,533.00,05/07/2017
Various,Various,Various,0070049661,REDACTED - PERSONAL DATA,"1,025.60",05/07/2017
Various,Various,Various,0070049662,REDACTED - PERSONAL DATA,199.47,05/07/2017
Various,Various,Various,0070049663,REDACTED - PERSONAL DATA,533.00,05/07/2017
Various,Various,Various,0070049668,REDACTED - PERSONAL DATA,420.00,05/07/2017
Various,Various,Various,0070049672,REDACTED - PERSONAL DATA,216.42,05/07/2017
Various,Various,Various,0070049674,REDACTED - PERSONAL DATA,320.00,05/07/2017
Various,Various,Various,0070049677,REDACTED - PERSONAL DATA,455.00,05/07/2017
Various,Various,Various,0070049684,REDACTED - PERSONAL DATA,245.60,05/07/2017
Various,Various,Various,0070049687,REDACTED - PERSONAL DATA,222.62,05/07/2017
Various,Various,Various,0070049690,REDACTED - PERSONAL DATA,676.00,05/07/2017
Various,Various,Various,0070049691,REDACTED - PERSONAL DATA,107.58,05/07/2017
Various,Various,Various,0070049693,REDACTED - PERSONAL DATA,533.00,05/07/2017
Various,Various,Various,0070049694,REDACTED - PERSONAL DATA,910.00,05/07/2017
Various,Various,Various,0070049696,REDACTED - PERSONAL DATA,"1,066.00",05/07/2017
Various,Various,Various,0070049698,REDACTED - PERSONAL DATA,425.00,05/07/2017
Various,Various,Various,0070049699,REDACTED - PERSONAL DATA,"1,595.57",05/07/2017
Various,Various,Various,0070049700,REDACTED - PERSONAL DATA,552.91,05/07/2017
Various,Various,Various,0070049702,REDACTED - PERSONAL DATA,"1,642.05",05/07/2017
Various,Various,Various,0070049703,REDACTED - PERSONAL DATA,218.00,05/07/2017
Various,Various,Various,0070049708,REDACTED - PERSONAL DATA,455.00,05/07/2017
Various,Various,Various,0070049710,REDACTED - PERSONAL DATA,396.00,05/07/2017
Various,Various,Various,0070049711,REDACTED - PERSONAL DATA,199.46,05/07/2017
Various,Various,Various,0070049714,REDACTED - PERSONAL DATA,64.56,05/07/2017
Various,Various,Various,0070049715,REDACTED - PERSONAL DATA,804.50,05/07/2017
Various,Various,Various,0070049716,REDACTED - PERSONAL DATA,948.00,05/07/2017
Various,Various,Various,0070049717,REDACTED - PERSONAL DATA,335.93,05/07/2017
Various,Various,Various,0070049719,REDACTED - PERSONAL DATA,488.00,05/07/2017
Various,Various,Various,0070049720,REDACTED - PERSONAL DATA,804.08,05/07/2017
Various,Various,Various,0070049721,REDACTED - PERSONAL DATA,455.00,05/07/2017
Various,Various,Various,0070049723,REDACTED - PERSONAL DATA,90.40,05/07/2017
Various,Various,Various,0070049724,REDACTED - PERSONAL DATA,469.54,05/07/2017
Various,Various,Various,0070049726,REDACTED - PERSONAL DATA,"1,007.00",05/07/2017
Various,Various,Various,0070049727,REDACTED - PERSONAL DATA,230.36,05/07/2017
Various,Various,Various,0070049728,REDACTED - PERSONAL DATA,455.00,05/07/2017
Various,Various,Various,0070049729,REDACTED - PERSONAL DATA,988.85,05/07/2017
Various,Various,Various,0070049732,REDACTED - PERSONAL DATA,300.00,05/07/2017
Various,Various,Various,0070049735,REDACTED - PERSONAL DATA,283.20,05/07/2017
Various,Various,Various,0070049737,REDACTED - PERSONAL DATA,425.00,05/07/2017
Various,Various,Various,0070049739,REDACTED - PERSONAL DATA,228.01,05/07/2017
Various,Various,Various,0070049740,REDACTED - PERSONAL DATA,240.00,05/07/2017
Various,Various,Various,0070049742,REDACTED - PERSONAL DATA,328.30,05/07/2017
Various,Various,Various,0070049744,REDACTED - PERSONAL DATA,341.81,05/07/2017
Various,Various,Various,0070049746,REDACTED - PERSONAL DATA,455.00,05/07/2017
Various,Various,Various,0070049749,REDACTED - PERSONAL DATA,396.00,05/07/2017
Various,Various,Various,0070049751,REDACTED - PERSONAL DATA,689.32,05/07/2017
Various,Various,Various,0070049752,REDACTED - PERSONAL DATA,366.00,05/07/2017
Various,Various,Various,0070049753,REDACTED - PERSONAL DATA,336.30,05/07/2017
Various,Various,Various,0070049758,REDACTED - PERSONAL DATA,200.00,05/07/2017
Various,Various,Various,0070049759,REDACTED - PERSONAL DATA,219.40,05/07/2017
Various,Various,Various,0070049760,REDACTED - PERSONAL DATA,434.94,05/07/2017
Various,Various,Various,0070049763,REDACTED - PERSONAL DATA,425.00,05/07/2017
Various,Various,Various,0070049764,REDACTED - PERSONAL DATA,335.60,05/07/2017
Various,Various,Various,0070049765,REDACTED - PERSONAL DATA,62.65,05/07/2017
Various,Various,Various,0070049766,REDACTED - PERSONAL DATA,910.00,05/07/2017
Various,Various,Various,0070049769,REDACTED - PERSONAL DATA,226.88,05/07/2017
Various,Various,Various,0070049770,REDACTED - PERSONAL DATA,396.00,05/07/2017
Various,Various,Various,0070049773,REDACTED - PERSONAL DATA,225.96,05/07/2017
Various,Various,Various,0070049776,REDACTED - PERSONAL DATA,"1,066.40",05/07/2017
Various,Various,Various,0070049781,REDACTED - PERSONAL DATA,366.00,05/07/2017
Various,Various,Various,0070049784,REDACTED - PERSONAL DATA,230.36,05/07/2017
Various,Various,Various,0070049786,REDACTED - PERSONAL DATA,243.20,05/07/2017
Various,Various,Various,0070049789,REDACTED - PERSONAL DATA,336.00,05/07/2017
Various,Various,Various,0070049791,REDACTED - PERSONAL DATA,251.60,05/07/2017
Various,Various,Various,0070049792,REDACTED - PERSONAL DATA,246.68,05/07/2017
Various,Various,Various,0070049793,REDACTED - PERSONAL DATA,791.00,05/07/2017
Various,Various,Various,0070049797,REDACTED - PERSONAL DATA,181.52,05/07/2017
Various,Various,Various,0070049799,REDACTED - PERSONAL DATA,972.36,05/07/2017
Various,Various,Various,0070049800,REDACTED - PERSONAL DATA,555.00,05/07/2017
Various,Various,Various,0070049802,REDACTED - PERSONAL DATA,220.34,05/07/2017
Various,Various,Various,0070049803,REDACTED - PERSONAL DATA,455.00,05/07/2017
Various,Various,Various,0070049813,REDACTED - PERSONAL DATA,425.00,05/07/2017
Various,Various,Various,0070049814,REDACTED - PERSONAL DATA,192.21,05/07/2017
Various,Various,Various,0070049815,REDACTED - PERSONAL DATA,220.36,05/07/2017
Various,Various,Various,0070049817,REDACTED - PERSONAL DATA,394.60,05/07/2017
Various,Various,Various,0070049820,REDACTED - PERSONAL DATA,366.00,05/07/2017
Various,Various,Various,0070049822,REDACTED - PERSONAL DATA,135.00,05/07/2017
Various,Various,Various,0070049825,REDACTED - PERSONAL DATA,732.00,05/07/2017
Various,Various,Various,0070049826,REDACTED - PERSONAL DATA,192.90,05/07/2017
Various,Various,Various,0070049833,REDACTED - PERSONAL DATA,732.00,05/07/2017
Various,Various,Various,0070049834,REDACTED - PERSONAL DATA,281.22,05/07/2017
Various,Various,Various,0070049835,REDACTED - PERSONAL DATA,366.00,05/07/2017
Various,Various,Various,0070049836,REDACTED - PERSONAL DATA,851.00,05/07/2017
Various,Various,Various,0070049837,REDACTED - PERSONAL DATA,244.00,05/07/2017
Various,Various,Various,0070049838,REDACTED - PERSONAL DATA,"2,307.68",05/07/2017
Various,Various,Various,0070049839,REDACTED - PERSONAL DATA,147.90,05/07/2017
Various,Various,Various,0070049840,REDACTED - PERSONAL DATA,403.27,05/07/2017
Various,Various,Various,0070049841,REDACTED - PERSONAL DATA,221.02,05/07/2017
Various,Various,Various,0070049843,REDACTED - PERSONAL DATA,366.00,05/07/2017
Various,Various,Various,0070049851,REDACTED - PERSONAL DATA,"1,346.84",05/07/2017
Various,Various,Various,0070049854,REDACTED - PERSONAL DATA,220.30,05/07/2017
Various,Various,Various,0070049855,REDACTED - PERSONAL DATA,172.87,05/07/2017
Various,Various,Various,0070049856,REDACTED - PERSONAL DATA,"1,007.00",05/07/2017
Various,Various,Various,0070049858,REDACTED - PERSONAL DATA,366.00,05/07/2017
Various,Various,Various,0070049859,REDACTED - PERSONAL DATA,218.10,05/07/2017
Various,Various,Various,0070049860,REDACTED - PERSONAL DATA,236.00,05/07/2017
